Workbook

Sheet Weight sheet
B1: Unit # SG: | C1: 512 | E1: Total Unit Scale Weight /w Ballast | H1: 52652 | I1: gm | J1: Weighted on: | K1: 2016-08-16
E2: Total Unit Scale Weight NO BALLAST | H2: 51555 | I2: gm | J2: Weighted on: | K2: 2016-08-05
E3: Subtotal Unit Weight | H3: =SUM($H$6:$H$7,$H$10,$H$25,$H$44,$H$59,$H$71,$H$86,$H$230) -> 52581.1 | I3: gm | J3: Delta: | K3: =$H$2-$H$3 -> -1026.1
B4: Description | C4: iRobot part # | D4: UW Part # | F4: Qty | G4: Ref Weight | H4: Weight | J4: Delta: | K4: =$H$1-$H$3 -> 70.9
A5: 0 | B5: Flying Seaglider | C5: 4197060 | D5: 49801
A6: 1 | B6: (8x) 10-32 x 3/8 FHMS, joint ring to aft fairing | C6: 4199128 | D6: 55240 | F6: 1 | G6: 12.2 | H6: 11.8 | K6: Subtotal $H$3 = all purple lines:
A7: 1 | B7: (8x) 1/4-28 x 1/2 FHMS, Aft fairing to endcap or Ogive fairing screw | C7: 4199153 | D7: 55294 | F7: 1 | G7: 27.5 | H7: 28.1 | K7: fwd fairing, ballast (if added), aft fairing, pupa
A9: 1 | B9: Assy, Standard Forward Fairing | C9: 4199433 | D9: 55494
E10: Subtotal Weight | H10: =IF($F$12=1,SUM((SUMPRODUCT($F$13:$F$22,$H$13:$H$22)),$H$168),0) -> 7744.3 | I10: gm | J10: diff | K10: 1
D11: Note:no plates | E11: Scale Weight | G11: 7388 | H11: 8018 | I11: gm | J11: =$H$11-$H$10 -> 273.7 | K11: <-- includes Radiation Sensor if installed
A12: 2 | B12: Combined Forward Fairing & Joint Ring | C12: 4199347 / 4199330 | E12: Change Qty to 1 if installed | F12: 1 | H12: 5996 | K12: $H$11 measured on scale 6 Nov 14
A13: 2 | B13: Forward Fairing | C13: 4199347 | D13: 49897 | E13: Change Qty to 1 if installed | F13: 1 | G13: =5515.4+12.1 -> 5527.5 | H13: =IF($F$12=1,($H$12-$H$14),0) -> 5308
A14: 2 | B14: Joint Ring, Fwd to Aft Fairing (bonded to fwd fairing before paint; Long ring = 875g, short ring 688g ) | C14: 4199330 | D14: 49834 | E14: Change Qty to 1 if installed | F14: 1 | G14: 688 | H14: =IF($F$12=1,688,0) -> 688
A15: 2 | B15: Nose weight (2 hole - bonded to fwd fairing after paint) | C15: 4199334 | D15: 49844 | E15: Change Qty to 1 if installed | F15: 1 | G15: 1245 | H15: 1248
A16: 2 | B16: Detachable Fairing Nose | C16: ?? | D16: ?? | F16: 0 | G16: 50
A17: 2 | B17: Nose Weight (5 hole) | C17: ?? | D17: ?? | F17: 0 | G17: 1276
A18: 2 | B18: Nose Weight to Detachable Nose Screws | C18: 4199435 | D18: ?? | F18: 0 | G18: 39
A19: 2 | B19: Nose weight plates | C19: 4199426 | D19: 55448 | F19: =Trim!$D$68 -> 1 | G19: 377 | H19: 479.7 | J19: latest | K19: Plates = 245+124+ tuf gel
A20: 2 | B20: (2x) 1/4-20 x 2" SHCS + 1/4 LW brass, nose plate to nose base (4 - 5 plates) | C20: /4199135 | D20: 55186 / 55253 | F20: =Trim!$D$69 -> 0 | G20: 28.3 | K20: Ross = 401.3
A21: 2 | B21: (2x) 1/4-20 x 1.5" SHCS + 1/4 LW brass, nose plate to nose base (2 -3 plates) | C21: 4199112 / 4199135 | D21: 55185 / 55253 | F21: =Trim!$D$70 -> 1 | G21: 23.2 | H21: 20.6
A22: 2 | B22: (2x) 1/4-20 x .75" SHCS + 1/4 LW brass, nose plate to nose base (1 plate) | C22: /4199135 | D22: 55473 / 55253 | F22: =Trim!$D$71 -> 0 | G22: 18
A24: 1 | B24: Assy., Ballast (STANDARD)
E25: Subtotal Weight | H25: =SUM(ABS($F$27*$H$27),ABS($F$28*$H$28),ABS($F$29*$H$29),ABS($F$30*$H$30),ABS($F$31*$H$31),SUMPRODUCT($F$32:$F$41,$H$32:$H$41)) -> 597.6 | I25: gm
E26: Scale Weight | H26: =SUM(ABS($F$27*$H$27),ABS($F$28*$H$28),ABS($F$29*$H$29),ABS($F$30*$H$30),SUMPRODUCT($F$32:$F$41,$H$32:$H$41)) -> 597.6 | I26: gm | K26: CARPET = ~1g | L26: on 1x lead strip
A27: 2 | B27: Trim .600" aft of pupa joint ring - bottom (5" strip) | F27: =Trim!$D$76 -> 1 | G27: 0 | H27: =Trim!$E$76 -> 173.3 | J27: BTM | K27: CARPET=~15g | L27: on foam =>> 6 blocks: 3x strips, each 2.45g = 7.35g x2 for 12 foams
A28: 2 | B28: Trim .600" aft of pupa joint ring - port side (5" strip) | F28: =Trim!$D$78 -> 0 | G28: 0 | H28: =Trim!$E$78 -> 0 | K28: CARPET= ~4g | L28: on EPDM
A29: 2 | B29: Trim .600" aft of pupa joint ring - starboard side (5" strip) | F29: =Trim!$D$80 -> 1 | G29: 0 | H29: =Trim!$E$80 -> 172.9 | J29: STB | K29: 3x eTAPE = 21 | L29: 3x 2 wraps electrical tape, each 7 = 21 g
A30: 2 | B30: Trim .600" aft of pupa joint ring - top (5" strip) | F30: =Trim!$D$82 -> 1 | G30: 0 | H30: =Trim!$E$82 -> -184.1 | J30: TOP | K30: 2x eTAPE = 14 | L30: 2 position: 2 times around SG
A31: 2 | B31: Trim 1.000" fwd of bulkhead - bottom (5" strip) | F31: =Trim!$D$87 -> 0 | G31: 0 | H31: =Trim!$E$87 -> 0 | J31: FWD FWB | K31: 1x eTAPE = 7 | L31: 1 position: 2 times around SG
A32: 2 | B32: EPDM base (5"x6") + (2x) 2"x 6" tape - bottom | D32: not in BOM | E32: Change Qty to 1 if installed | F32: 0 | G32: 50 | H32: 0 | J32: BTM | K32: EPDM+carpet tape | L32: =21.2+4.08
A33: 2 | B33: EPDM base (5"x6") + (2x) 2"x 6" tape - port | D33: not in BOM | E33: Change Qty to 1 if installed | F33: 1 | G33: 51.6 | H33: 20.8
A34: 2 | B34: EPDM base (5"x6") + (2x) 2"x 6" tape - starboard | D34: not in BOM | E34: Change Qty to 1 if installed | F34: 1 | G34: 50 | H34: 19.8 | J34: STB | K34: EPDM+carpet tape | L34: =22.8+4.08
A35: 2 | B35: EPDM base (5"x6") + (2x) 2"x 6" tape - top | D35: not in BOM | E35: Change Qty to 1 if installed | F35: 0 | G35: 50
A36: 2 | B36: EPDM base (5"x6") + (2x) 2"x 6" tape - fwd of bulkhead - bottom | D36: not in BOM | E36: Change Qty to 1 if installed | F36: 0 | G36: 30 | J36: FWD FWB | K36: EPDM+carpet tape | L36: =22.85+4.08
A37: 2 | B37: (2) Straps - cut to length (start at 34g, subtract trimmed) | D37: not in BOM | E37: Change Qty to 1 if installed | F37: 0 | G37: 30
A38: 2 | B38: (2) Straps - cut to length (start at 17g, subtract trimmed) fwd of bulkhead | D38: not in BOM | E38: Change Qty to 1 if installed | F38: 0 | G38: 15 | J38: FWD FWB | K38: STRAPS | L38: =14.72
A39: 2 | B39: Trim Lead tape (~1g per 5" lead strip) | D39: not in BOM | E39: Change Qty to 1 if installed | F39: 1 | G39: 1 | H39: 10.1 | J39: CARPET | K39: under foam+leads | L39: =15.2+2.056
A40: 2 | B40: Trim Lead tape (~1g per 5" lead strip) fwd of bulkhead | D40: not in BOM | E40: Change Qty to 1 if installed | F40: 1 | G40: 1 | H40: 2 | J40: FWD FWB | K40: lead carpet + etape | L40: =0.89+7+7
A41: 2 | B41: (2) black tape wraps over foam (1 1/2" width) | D41: not in BOM | E41: Change Qty to 1 if installed | F41: 1 | G41: 43.5 | H41: 14.6 | J41: eTAPE | K41: 3x lead, then 3x foam | L41: =7*3+(7*3)
A43: 1 | B43: Assy., Ballast (BATTERY HULL FORWARD JOINT RING)
E44: Subtotal Weight | H44: =SUM(ABS($F$46*$H$46),ABS($F$47*$H$47),ABS($F$48*$H$48),ABS($F$49*$H$49),SUMPRODUCT($F$50:$F$56,$H$50:$H$56)) -> 0 | I44: gm
E45: Scale Weight | H45: =SUM(ABS($F$46*$H$46),ABS($F$47*$H$47),ABS($F$48*$H$48),ABS($F$49*$H$49),SUMPRODUCT($F$50:$F$56,$H$50:$H$56)) -> 0 | I45: gm
A46: 2 | B46: Trim .600" aft of pupa joint ring - bottom (5" strip) | F46: =Trim!$D$97 -> 0 | G46: 300 | H46: =Trim!$E$97 -> 0 | J46: BTM
A47: 2 | B47: Trim .600" aft of pupa joint ring - port side (5" strip) | F47: =Trim!$D$99 -> 0 | G47: 0 | H47: =Trim!$E$99 -> 0
A48: 2 | B48: Trim .600" aft of pupa joint ring - starboard side (5" strip) | F48: =Trim!$D$101 -> 0 | G48: 0 | H48: =Trim!$E$101 -> 0 | J48: STB
A49: 2 | B49: Trim .600" aft of pupa joint ring - top (5" strip) | F49: =Trim!$D$103 -> 0 | G49: 0 | H49: =Trim!$E$103 -> 0 | J49: TOP
A50: 2 | B50: EPDM base (5"x6") + (2x) 2"x 6" tape - bottom | D50: not in BOM | E50: Change Qty to 1 if installed | F50: 0 | G50: 50 | J50: BTM | K50: EPDM+carpet tape | L50: =23+4.43
A51: 2 | B51: EPDM base (5"x6") + (2x) 2"x 6" tape - port | D51: not in BOM | E51: Change Qty to 1 if installed | F51: 0 | G51: 51.6
A52: 2 | B52: EPDM base (5"x6") + (2x) 2"x 6" tape - starboard | D52: not in BOM | E52: Change Qty to 1 if installed | F52: 0 | G52: 50 | J52: STB | K52: EPDM+carpet tape | L52: =20.9+4.1
A53: 2 | B53: EPDM base (5"x6") + (2x) 2"x 6" tape - top | D53: not in BOM | E53: Change Qty to 1 if installed | F53: 0 | G53: 50
A54: 2 | B54: (2) Straps - cut to length (start at 34g, subtract trimmed) | D54: not in BOM | E54: Change Qty to 1 if installed | F54: 0 | G54: 30
A55: 2 | B55: Trim Lead tape (~1g per 5" lead strip) | D55: not in BOM | E55: Change Qty to 1 if installed | F55: 0 | G55: 1 | J55: CARPET | K55: under foam+leads | L55: =14.574+2.156
A56: 2 | B56: (2) black tape wraps over foam (1 1/2" width) | D56: not in BOM | E56: Change Qty to 1 if installed | F56: 0 | G56: 43.5 | J56: eTAPE | K56: 3x lead + 3x foam | L56: =7*3+(7*3) | M56: 3x wraps for foam, 3x wraps for lead, no space for strap
A58: 1 | B58: Assy, Ojive Forward Fairing | C58: 4199433 | D58: 55494
E59: Subtotal Weight | H59: =IF($F$61=1,SUMPRODUCT($F$61:$F$68,$H$61:$H$68),0) -> 0 | I59: gm | J59: diff
D60: Note:no plates | E60: Scale Weight | G60: 7388 | I60: gm | J60: =$H$60-$H$59 -> 0 | K60: <-- includes Radiation Sensor if installed
A61: 2 | B61: Ojive Forward Fairing | C61: ?? | D61: ?? | E61: Change Qty to 1 if installed | F61: 0 | G61: 5535
A62: 2 | B62: Detacable Fairing Nose | C62: ?? | D62: ?? | E62: Change Qty to 1 if installed | F62: 0 | G62: 50
A63: 2 | B63: Nose weight (5 hole) | C63: ?? | D63: 49844 | E63: Change Qty to 1 if installed | F63: 0 | G63: 1276
A64: 2 | B64: Nose weight to detachable nose screws | C64: 4199435 | E64: Change Qty to 1 if installed | F64: 0 | G64: 39
A65: 2 | B65: Nose weight plates | C65: 4199426 | D65: 55448 | F65: =Trim!$D$118 -> 0 | G65: 124.5
A66: 2 | B66: (2x) 1/4-20 x 2" SHCS + 1/4 LW brass, nose plate to nose base (4 - 5 plates) | C66: /4199135 | D66: 55186 / 55253 | F66: =Trim!$D$119 -> 0 | G66: 28.3
A67: 2 | B67: (2x) 1/4-20 x 1.5" SHCS + 1/4 LW brass, nose plate to nose base (2 -3 plates) | C67: 4199112 / 4199135 | D67: 55185 / 55253 | F67: =Trim!$D$120 -> 0 | G67: 23.2
A68: 2 | B68: (2x) 1/4-20 x .75" SHCS + 1/4 LW brass, nose plate to nose base (1 plate) | C68: /4199135 | D68: 55473 / 55253 | F68: =Trim!$D$121 -> 0 | G68: 15.7
A70: 1 | B70: Assy., Standard Aft Fairing | C70: 4199434 | D70: 55497
E71: Subtotal Weight | H71: =IF($F$73=1,(SUM(SUMPRODUCT($F$73:$F$83*$H$73:$H$83),$H$101,$H$107,$H$113,$H$121,$H$127,$H$134,$H$141,$H$154,$H$162,$H$179,$H$186,$H$194,$H$202,$H$210,$H$218)),0) -> 5736.7 | I71: gm | J71: diff | K71: 2
E72: Scale Weight | G72: 5073 | H72: 5741 | I72: gm | J72: =$H$72-$H$71 -> 4.3 | K72: <-- includes Antenna, CTD, Wetlab, Aanderaa, Seabird O2, Argos, PAR, etc., Sensors if installed
A73: 2 | B73: Aft Fairing | C73: 4199495 | D73: 56972 | E73: Change Qty to 1 if installed | F73: 1 | G73: 2062 | H73: 2005 | K73: $H$71 measured on scale 6 Nov 14, EXCEPT wing screws
A74: 2 | B74: Wing, Starboard (1m) | C74: 4199438 | D74: 56751 | E74: Change Qty to 1 if installed | F74: 1 | G74: 686 | H74: 644.9
A75: 2 | B75: Wing, Port (1 m) | C75: 4199438 | D75: 56751 | E75: Change Qty to 1 if installed | F75: 1 | G75: 697 | H75: 645.4
A76: 2 | B76: (16x) 6-32 x 3/8 FHMS (WING SCREWS) | C76: 4199270 | D76: 56912 | E76: Change Qty to 1 if installed | F76: 1 | G76: 11.2 | H76: 10.4
A77: 2 | B77: Rudder | C77: 4199331 | D77: 49839 | E77: Change Qty to 1 if installed | F77: 1 | G77: 120 | H77: 122
A78: 2 | B78: (2x) 1/4-20 x 2" FHMS, rudder to rudder shoe | C78: 4199237 | D78: 55487 | E78: Change Qty to 1 if installed | F78: 1 | G78: 20.3 | H78: 20.5
A79: 2 | B79: Top panel | C79: 4199496 | D79: 57651 | E79: Change Qty to 1 if installed | F79: 1 | G79: 226 | H79: 221
A80: 2 | B80: Top panel (Bump Out) | C80: ? | D80: ? | E80: Change Qty to 1 if installed | F80: 0 | G80: 0
A81: 2 | B81: Bottom panel | C81: 4199496 | D81: 57651 | E81: Change Qty to 1 if installed | F81: 1 | G81: 230 | H81: 200
A82: 2 | B82: Bottom panel (Bump Out) | C82: ? | D82: ? | E82: Change Qty to 1 if installed | F82: 0 | G82: 0
A83: 2 | B83: Panel screws - (18) FHMS 6-32 x .375 | C83: 4205790 | D83: 57671 | E83: Change Qty to 1 if installed | F83: 1 | G83: 17.6 | H83: 17.4
A85: 1 | B85: Assy., Ojive Aft Fairing | C85: 4199434 | D85: 55497
E86: Subtotal Weight | H86: =IF($F$89=1,(SUM(SUMPRODUCT($F$89:$F$98*$H$89:$H$98),$H$101,$H$107,$H$113,$H$121,$H$127,$H$134,$H$141,$H$154,$H$162,$H$179,$H$186,$H$194,$H$202,$H$210,$H$218)),0) -> 0 | I86: gm | J86: diff
E87: Scale Weight | G87: 5073 | I87: gm | J87: =$H$87-$H$86 -> 0 | K87: <-- includes Antenna, CTD, Wetlab, Aanderaa, Seabird O2, Argos, PAR, etc., Sensors if installed
A88: 2 | B88: Combined Aft Fairing & Joint Ring | E88: Change Qty to 1 if installed | F88: 0
A89: 2 | B89: Aft Fairing (Ogive) | C89: ?? | D89: ?? | E89: Change Qty to 1 if installed | F89: 0 | G89: 2062 | H89: =IF($F$88=1,($H$88-$H$90),0) -> 0
A90: 2 | B90: Joint Ring, Aft to Forward Fairing (bonded to Aft fairing before paint) | C90: ?? | D90: ?? | E90: Change Qty to 1 if installed | F90: 0 | G90: 669 | H90: =IF($F$88=1,$G$90,0) -> 0
A91: 2 | B91: Wing, Starboard (Ogive) | C91: ?? | D91: ?? | E91: Change Qty to 1 if installed | F91: 0 | G91: 686
A92: 2 | B92: Wing, Port (Ogive) | C92: ?? | D92: ?? | E92: Change Qty to 1 if installed | F92: 0 | G92: 697
A93: 2 | B93: (16x) 6-32 x 3/8 FHMS (WING SCREWS) | C93: 4199270 | D93: 56912 | E93: Change Qty to 1 if installed | F93: 0 | G93: 11.2
A94: 2 | B94: Rudder (Ogive) | C94: ?? | D94: ?? | E94: Change Qty to 1 if installed | F94: 0 | G94: 120
A95: 2 | B95: (2x) 1/4-20 x 2" FHMS, rudder to rudder shoe | C95: 4199237 | D95: 55487 | E95: Change Qty to 1 if installed | F95: 0 | G95: 20.3
A96: 2 | B96: Top panel (Ogive) | C96: ?? | D96: ?? | E96: Change Qty to 1 if installed | F96: 0 | G96: 226
A97: 2 | B97: Bottom panel (Ogive) | C97: ?? | D97: ?? | E97: Change Qty to 1 if installed | F97: 0 | G97: 230
A98: 2 | B98: Panel screws - (18) FHMS 6-32 x .375 | C98: 4205790 | D98: 57671 | E98: Change Qty to 1 if installed | F98: 0 | G98: 17.6
A100: 2 | B100: Assy., Antenna | C100: 4199332 | D100: 49841
E101: Subtotal Weight | H101: =SUMPRODUCT($F$103*$H$103) -> 549 | I101: gm | J101: diff
E102: Scale Weight | G102: 476.5 | H102: 549 | I102: gm | J102: =$H$101-$H$102 -> 0
A103: 3 | B103: Antenna Assembly GPSI (Shoe, mast, antenna, clamp, heat shrink, comm cable, dummy plug, dummy plug line, zip ties) | C103: 4199393 / 4199395 / 4199089 / 4199352 /4199234 / 4199105 / 4199262 /4199266 /4199394 | D103: 52336 / 52341 / 52454 / 52231 / 55474 /52481 / 56875 /56884 / 52340 | F103: 1 | G103: 528.1 | H103: 549
E104: Antenna SN: | H104: ES-140
A106: 2 | B106: Assy., Aanderaa Optode Oxygen Sensor | C106: 4196239 | D106: 55481
E107: Subtotal Weight | H107: =SUMPRODUCT($F$109*$H$109) -> 395 | I107: gm | J107: diff
E108: Scale Weight | G108: 338.1 | H108: 395 | I108: gm | J108: =$H$108-$H$107 -> 0
A109: 3 | B109: O2 Sensor Assy. (Aanderaa optode, mount base, SS hose clamp, (2x) 8-32 x 5/8 FHMS, (2x) 8-32 nylok) | C109: 4199035 / 4205811 / 4199129 / 4199163 / 4199130 | D109: 52220 / 56905 / 55245 / 55321 / 55246 | E109: Change Qty to 1 if installed | F109: 1 | G109: 433 | H109: 395
E110: Aanderaa Optode SN: | F110: 0 | H110: 199
F111: 0
A112: 2 | B112: Assy., SBE 43f Oxygen Sensor (Not Pumped) | C112: 4192455 | D112: 55482 | F112: 0
E113: Subtotal Weight | H113: =SUM($F$115*$H$115,$F$117*$H$117) -> 366.4 | I113: gm | J113: diff
E114: Scale Weight | H114: 366.4 | I114: gm | J114: =$H$114-$H$113 -> 0
A115: 3 | B115: O2 Sensor Assy. (O2 sensor, Plenum, (2x) 6-32 x 5/8 SHCS - plenum to sensor, O2 bracket, (2x) 8-32 x 5/8 FHMS - bracket to aft fairing, (2x) SS hose clamp) | C115: 4199047 / 4199435 / 4199129 /4199489 / 4199269 | D115: 52356 / 55518/ 55245 / 56906 / 56911 | E115: Change Qty to 1 if installed | F115: 1 | G115: 308.3 | H115: 312.6
E116: SBE 43f SN: | H116: 0221
A117: 3 | B117: O2 Sensor Cable Assembly | C117: 4199353 | D117: 52236 | E117: Change Qty to 1 if installed | F117: 1 | G117: 59.1 | H117: 53.8
A118: 3 | B118: Plug assy, SBE 43f plenum | C118: 4199435 | D118: 55518 | F118: 0 | G118: NA
A120: 2 | B120: Assy., WET Labs Optical - FWD Hole - (Bump OUT) | C120: 4192457 | D120: 55521
E121: Subtotal Weight | H121: =SUMPRODUCT($F$123*$H$123) -> 0 | I121: gm | J121: diff
E122: Scale Weight | G122: 233.5 | H122: 241 | I122: gm | J122: =$H$122-$H$121 -> 241
A123: 3 | B123: Wet Labs sensor Assy. (WL Triplet sensor, Bracket (BUMP), (2x) 6-32 x .625 SHCS - sensor clamp, 6-32 x 0.375 THCS) | C123: 4199039 / 4295315 / 4199120 / 4205790 | E123: Change Qty to 1 if installed | F123: 0 | G123: 233.5
E124: WET Labs SN:
A126: 2 | B126: Assy., WET Labs Optical - aft hole | C126: 4192457 | D126: 55521
E127: Subtotal Weight | H127: =SUMPRODUCT($F$129*$H$129) -> 238.2 | I127: gm | J127: diff
E128: Scale Weight | G128: 233.5 | H128: 269 | I128: gm | J128: =$H$128-$H$127 -> 30.8
A129: 3 | B129: Wet Labs sensor Assy. (WL Triplet sensor, (2x) Wet labs sensor clamp, (2x) 8-32 x 5/8 FHMS - sensor clamp to fairing) | C129: 4199039 / 4199388 / 4199129 | D129: 52296 / 52312 / 55245 | E129: Change Qty to 1 if installed | F129: 1 | G129: 233.5 | H129: 238.2
E130: WET Labs SN: | H130: 1390
A131: 3 | B131: Cover, WL sensor used in shipping | C131: 4199254 | D131: 55520 | F131: 0 | G131: NA
A133: 2 | B133: Assy., WET Labs Optical - Dual Hole Closest to PUPA | C133: 4192457 | D133: 55521
E134: Subtotal Weight | H134: =SUMPRODUCT($F$136*$H$136) -> 249 | I134: gm | J134: diff
E135: Scale Weight | G135: 233.5 | H135: 249 | I135: gm | J135: =$H$135-$H$134 -> 0
A136: 3 | B136: Wet Labs sensor Assy. (WL Triplet sensor, Bracket Ext mount, 6-32 x 0.625 SHCS, 2x 6-32 x 0.375in Truss Head Phillips) | C136: 4199039 / 4295315 / 4199120 / 4205790 | D136: 52296 / 52312 / 55245 | E136: Change Qty to 1 if installed | F136: 1 | G136: 233.5 | H136: 249
E137: WET Labs SN: | H137: 946
A138: 3 | B138: Cover, WL sensor used in shipping | C138: 4199254 | D138: 55520 | F138: 0 | G138: NA
A140: 2 | B140: Assy., SBE CTD & Pumped 43f Oxygen Sensor | C140: 4295305
E141: Subtotal Weight | H141: =SUM(SUMPRODUCT($F$143:$F$145*$H$143:$H$145),($F$147*$H$147),SUMPRODUCT($F$149:$F$150*$H$149:$H$150)) -> 0 | I141: gm | J141: diff
E142: Scale Weight | I142: gm | J142: =$H$142-$H$141 -> 0
A143: 3 | B143: GPCTD 90688.007, Bracket CTD Rear, Bracket CTD Forward, 6-32 x 0.625in SHCS, 8-32 x 0.25in Pan Head, 6-32 x 0.375in Flat Head | C143: 4272424 / 4289667 / 4289656 / 4199120 / 4233372 / 4199270 | D143: ? | E143: Change Qty to 1 if installed | F143: 0 | G143: 917.7
A144: 3 | B144: GPCTD PUMP PWR Cable, GPCTD PWR/Serial Cable | C144: 4293654 / 4274285 | D144: ? | E144: Change Qty to 1 if installed | F144: 0 | G144: 102.5
A145: 3 | B145: TUBING 2x 3/8in id x 1/2" od, 2x 1/2" id x 3/4" od | C145: 4291710 / 4291709 | D145: ? | E145: Change Qty to 1 if installed | F145: 0 | G145: 119
E146: SBE CTD SN:
A147: 3 | B147: GPCTD 90696 Pump, Pump Bracket, 6-32 x 0.375 Flat Head, Cable Ties | C147: 4272326 / 4295332 / 4199270 / 4199110 | D147: ? | E147: Change Qty to 1 if installed | F147: 0 | G147: 381.4
E148: SBE CTD PUMP SN:
A149: 3 | B149: O2 Sensor | E149: Change Qty to 1 if installed | F149: 0 | G149: 413.8
A150: 3 | B150: O2 Sensor Cable Assembly | C150: 4293655 | E150: Change Qty to 1 if installed | F150: 0 | G150: 52.1
E151: SBE 43f (O2) SN:
A153: 2 | B153: Assy., Argos Mount | C153: ? | D153: ?
E154: Subtotal Weight | H154: =SUM(SUMPRODUCT($H$156*$F$156),SUMPRODUCT($F$158:$F$158*$H$158:$H$158)) -> 52.5 | I154: gm | J154: diff
E155: Scale Weight | H155: 52.5 | I155: gm | J155: =$H$155-$H$154 -> 0
A156: 3 | B156: Argos Tag | C156: ? | D156: ? | E156: Change Qty to 1 if installed | F156: 1 | G156: 62 | H156: 52.5 | J156: $H$156 added 7 Nov | K156: PTT #
E157: Argos SN: | H157: 90993 | K157: HEX #
A158: 3 | B158: Argos Mount Hardware. (?) - Clamp to Antenna, 4 screws, 2 brackets | C158: 2601, 4258110 | D158: ? | E158: Change Qty to 1 if installed | F158: 0 | G158: 24.4 | K158: Uplink ID
A161: 2 | B161: Assy., PAR, BSI - QSP2000 | C161: ? | D161: ?
E162: Subtotal Weight | F162: 0 | H162: =SUM(SUMPRODUCT($H$164*$F$164),SUMPRODUCT($F$166:$F$167*$H$166:$H$167)) -> 0 | I162: gm | J162: diff
E163: Scale Weight | I163: gm | J163: =$H$163-$H$162 -> 0
A164: 3 | B164: SENSOR, PAR BSI - QSP-200 SERIES + SHIELD, LIGHT- PAR BSI + (1x) SCREW, FLAT HEAD- PHILLIPS, #6-32 X .375, SS | C164: ? | D164: ? | E164: Change Qty to 1 if installed | F164: 0 | G164: 728.6
E165: PAR SN:
A166: 3 | B166: BRACKET, PAR QSP 2000, INTERNAL + SCREW, (2x) TRUSS HEAD - PHILLIPS, #6-32 X .375, SS + CLAMP, HOSE - WORM DRIVE 2.0IN TO 3.0IN, SS | C166: ? | D166: ? | E166: Change Qty to 1 if installed | F166: 0 | G166: 57.4
A167: 3 | B167: ASSY, CABLE - PAR SENSOR INTERFACE | C167: ? | D167: ? | E167: Change Qty to 1 if installed | F167: 0 | G167: 63
A169: 2 | B169: Assy., Radiation Detector | C169: 4314372 | D169: ?
E170: Subtotal Weight | H170: =SUM(SUMPRODUCT($H$172*$F$172),SUMPRODUCT($F$174:$F$175*$H$174:$H$175)) -> 0 | I170: gm | J170: diff
E171: Scale Weight | I171: gm | J171: =$H$171-$H$170 -> 0
A172: 3 | B172: SENSOR, RADIATION DETECTOR | C172: 4314373 | D172: ? | E172: Change Qty to 1 if installed | F172: 0 | G172: ?
E173: Radiation SN:
A174: 3 | B174: BRACKET, SENSOR, RADIATION DETECTOR / BRACKET, FAIRING SUPPORT, RADIATION DETECTOR / (6x) SCREW, FLAT HEAD - PHILLIPS, #8-32X .625IN SS | C174: 4318407 / 4334120 / 4199129 | D174: ? | E174: Change Qty to 1 if installed | F174: 0 | G174: ?
A175: 3 | B175: FAIRING, SENSOR, RADIATION DETECTOR / (6x) SCREW, BUTTON HEAD - ALLEN, #10-32 X 1.5IN SS | C175: 4318408 / 4254832 | D175: ? | E175: Change Qty to 1 if installed | F175: 0 | G175: ?
A176: 3 | B176: ASSY, CABLE - RADIATION DETECTOR / 1.5IN WIDE ELECTRICAL TAPE | C176: 4326393 / ?????? | E176: Change Qty to 1 if installed | F176: 0 | G176: ?
A178: 2 | B178: Assy, Nortek ADCP | C178: 4314562 | D178: ?
E179: Subtotal Weight | H179: =SUM(SUMPRODUCT($H$181*$F$181),SUMPRODUCT($F$183:$F$183*$H$183:$H$183)) -> 0 | I179: gm | J179: diff
E180: Scale Weight | I180: gm | J180: =$H$180-$H$179 -> 0
A181: 3 | B181: SENSOR, ACOUSTIC DOPPLER CURRENT PROFILER, NORTEK / BRACKET, SENSOR - ADCP / (4x) SCREW, SHCS, 10-32 X .500, SS / (3x) #6-32 X .375 TRUSS HEAD, SS | C181: 4314562 / 4328749 / 2539 / ???? | D181: ? | E181: Change Qty to 1 if installed | F181: 0 | G181: ?
E182: ADCP SN:
A183: 3 | B183: SENSOR, CABLE | C183: ????? | D183: ? | E183: Change Qty to 1 if installed | F183: 0 | G183: ?
A185: 2 | B185: Assy, Imagenex ECHOSounder | C185: 4321091 | D185: ?
E186: Subtotal Weight | H186: =SUM(SUMPRODUCT($F$188*$H$188),SUMPRODUCT($F$190:$F$191*$H$190:$H$191)) -> 0 | I186: gm | J186: diff
E187: Scale Weight | I187: gm | J187: =$H$187-$H$186 -> 0
A188: 3 | B188: SENSOR, ECHOSOUNDER 853, IMAGENEX / BRACKET, SENSOR, BASE - ECHOSOUNDER / BRACKET, SENSOR, STANDOFF - ECHOSOUNDER / (2x) SCREW #8-32 X .500, SS / (3x) SCREW TRUSS HEAD #6-32 X .375, SS / (4x) SCREW #8-32 X .25 TRUSS HEAD | C188: 4321091 / 4328900 / 4329102 | D188: ? | E188: Change Qty to 1 if installed | F188: 0 | G188: ?
E189: ECHOSOUNDER SN:
A190: 3 | B190: SENSOR CABLE | C190: - | D190: ? | E190: Change Qty to 1 if installed | F190: 0 | G190: ?
A191: 3 | B191: New Sensor Cable | C191: ? | D191: ? | E191: Change Qty to 1 if installed | F191: 0 | G191: ?
A193: 2 | B193: Assy, RAFOS | C193: ?? | D193: ?
E194: Subtotal Weight | H194: =SUM(SUMPRODUCT($H$196*$F$196),SUMPRODUCT($F$198:$F$199*$H$198:$H$199)) -> 0 | I194: gm | J194: diff
E195: Scale Weight | I195: gm | J195: =$H$195-$H$194 -> 0
A196: 3 | B196: Hydrophone for RAFOS system - added by UW-SFC | C196: ? | D196: ? | E196: Change Qty to 1 if installed | F196: 0 | G196: 114.8
E197: RAFOS SN:
A198: 3 | B198: RAFOS Mount Hardware. (?) | C198: ? | D198: ? | E198: Change Qty to 1 if installed | F198: 0 | G198: ?
A199: 3 | B199: RAFOS Cable | C199: ? | D199: ? | E199: Change Qty to 1 if installed | F199: 0 | G199: ?
A201: 2 | B201: Assy, New Sensor #1 | C201: ?? | D201: ?
E202: Subtotal Weight | H202: =SUM(SUMPRODUCT($H$204*$F$204),SUMPRODUCT($F$206:$F$207*$H$206:$H$207)) -> 0 | I202: gm | J202: diff
E203: Scale Weight | I203: gm | J203: =$H$203-$H$202 -> 0
A204: 3 | B204: New Sensor #1 | C204: ? | D204: ? | E204: Change Qty to 1 if installed | F204: 0 | G204: ?
E205: New Sensor #1 SN:
A206: 3 | B206: New Sensor #1 Mount Hardware. (?) | C206: ? | D206: ? | E206: Change Qty to 1 if installed | F206: 0 | G206: ?
A207: 3 | B207: New Sensor #1 Cable | C207: ? | D207: ? | E207: Change Qty to 1 if installed | F207: 0 | G207: ?
A209: 2 | B209: Assy, New Sensor #2 | C209: ?? | D209: ?
E210: Subtotal Weight | H210: =SUM(SUMPRODUCT($H$212*$F$212),SUMPRODUCT($F$214:$F$215*$H$214:$H$215)) -> 0 | I210: gm | J210: diff
E211: Scale Weight | I211: gm | J211: =$H$211-$H$210 -> 0
A212: 3 | B212: New Sensor #2 | C212: ? | D212: ? | E212: Change Qty to 1 if installed | F212: 0 | G212: ?
E213: New Sensor #2 SN:
A214: 3 | B214: New Sensor #2 Mount Hardware. (?) | C214: ? | D214: ? | E214: Change Qty to 1 if installed | F214: 0 | G214: ?
A215: 3 | B215: New Sensor #2 Cable | C215: ? | D215: ? | E215: Change Qty to 1 if installed | F215: 0 | G215: ?
A217: 2 | B217: Assy, AFT Foam Block Ballast | C217: ?? | D217: ?
E218: Subtotal Weight | H218: =SUMPRODUCT($F$220:$F$227*$H$220:$H$227) -> 0 | I218: gm | J218: diff
E219: Scale Weight | I219: gm | J219: =$H$219-$H$218 -> 0
A220: 3 | B220: Foam Block location "under Ogive Top hatch cover" | C220: ? | D220: ? | E220: Change Qty to 1 if installed | F220: 0 | G220: 1400
A221: 3 | B221: Hardware for Foam Block location "under Ogive Top hatch cover" | C221: ? | D221: ? | E221: Change Qty to 1 if installed | F221: 0 | G221: 8.4
A222: 3 | B222: Foam Block location "Ogive Bottom Hatch cover" | C222: ? | D222: ? | E222: Change Qty to 1 if installed | F222: 0 | G222: 574
... 301 more rows

Sheet Cal
A1: Calibration Sheet for Seaglider | C1: Serial No. | D1: ='Weight sheet'!$C$1 -> 512
A2: Date: | B2: =NOW() -> 2016-08-29T14:22:50.640 | D2: (From Weight sheets)
A3: Time: | B3: =NOW() -> 2016-08-29T14:22:50.640
A4: Software Revision | B4: 66.11/1138 | C4: Glider PW:
A6: Pitch Mass | C6: Last updated | D6: 2016-08-16
C7: Comments
B9: Headroom, fwd | C9: 100 | D9: AD counts | E9: *Changed @ Kongsberg from 50 (on last trimsheet)
B10: Headroom, aft | C10: 100 | D10: AD counts | F10: Old values, last trimsheet
B11: Hardware Limit (counts) | C11: Software Limit (counts) | D11: cm travel* | F11: Software | G11: cm travel
A12: Minimum (full forward) | B12: ='Weight sheet'!$G$473 -> 82 | C12: =$B$12+$C$9 -> 182 | D12: =($C$12-$C$15)*$B$17 -> -8.083223443 | F12: 54 | G12: -6.84
A13: Maximum (full aft) | B13: ='Weight sheet'!$E$473 -> 4017 | C13: =$B$13-$C$10 -> 3917 | D13: =($C$13-$C$15)*$B$17 -> 3.591501832 | F13: 3823 | G13: 4.94
A14: Stroke Length | D14: =$D$13-$D$12 -> 11.67472527
A15: Pitch Center | B15: (as defined by $C_PITCH) | C15: 2768 | D15: =($C$15-$C$15)*$B$18 -> 0 | F15: 2244
C16: cm full stroke: | D16: 12.8
A17: Conversion constant | B17: =12.8/4095 -> 0.003125763126 | C17: cm per AD | D17: ($PITCH_CNV)
A18: (conversion inverse) | B18: =1/$B$17 -> 319.921875 | C18: AD per cm
A19: *equation | B19: cm = (AD –center)* conversion factor (cm/AD) | J19: Tank Values
B20: (-) cm is fwd of center, (+) cm is aft of center | J20: C_VBD
J21: C_Pitch
A22: Roll Mass | C22: Last updated | D22: 2016-08-16 | J22: C_Roll
C23: Comments | J23: Nose Wt
J24: Mass
B25: Headroom | C25: 150 | D25: AD counts | J25: Density
B26: Hardware Limit (counts) | C26: Software Limit (counts) | D26: degrees roll* | J26: Trim Lead - bottom
A27: Full roll to port | B27: ='Weight sheet'!$G$475 -> 105 | C27: =$B$27+$C$25 -> 255 | D27: =($C$27-$C$29)*$B$32 -> -50.74465 | J27: EPDM base - bottom
A28: Full roll to starboard | B28: ='Weight sheet'!$E$475 -> 4082 | C28: =$B$28-$C$25 -> 3932 | D28: =($C$28-$C$29)*$B$32 -> 53.20414 | J28: Trim - port side
A29: Dive Roll Center | B29: =$C$27+($C$28-$C$27)/2 -> 2093.5 | C29: 2050 | D29: ($C_ROLL_DIVE) | E29: *2041.5 was empty cell | J29: EPDM base - port
A30: Climb Roll Center | B30: =$C$27+($C$28-$C$27)/2 -> 2093.5 | C30: 2030 | D30: ($C_ROLL_CLIMB) | J30: Trim Lead - starboard side
J31: EPDM base - starboard
A32: Conversion constant | B32: 0.02827 | C32: degree per AD | D32: ($ROLL_CONV) | J32: Trim Lead- top
A33: (conversion inverse) | B33: 35.37 | C33: AD per degree | J33: EPDM base - top
A34: *Equation: | B34: deg=(AD-center) * conversion factor | J34: Trim Lead tape
J35: (2) Straps
A36: Variable Buoyancy Drive (VBD) | C36: Last updated | D36: 2016-08-16 | J36: (2) black tape wraps over foam
C37: Comments | J37: Trim Lead fwd of bulkhead - bottom
A38: LeDuc Pump Serial # | B38: ='Weight sheet'!$H$307 -> 59 | C38: (short shaft Serial #) | J38: Trim Lead tape
A39: Boost Pump Serial # | B39: ='Weight sheet'!$H$374 -> 1523165 | J39: EPDM base fwd of bulkhead - bottom
B40: Headroom | C40: 100 | D40: AD counts | F40: Old values, last trimsheet | J40: Strap - fwd of bulkhead
B41: Hardware Limit (counts) | C41: Software Limit (counts) | D41: cm3 (cc) oil* | F41: Software | G41: cm3
A42: $VBD_Min (Ext Bladder full) | B42: ='Weight sheet'!$G$266 -> 299 | C42: =IF($B$42+$C$40>500,$B$42+$C$40,500) -> 500 | D42: =($C$42-$C$45)*$B$47 -> 588.4593701 | F42: 399 | G42: 532
A43: $VBD_Max (Ext Bladder empty) | B43: ='Weight sheet'!$E$266 -> 4060 | C43: =$B$43-$C$40 -> 3960 | D43: =($C$43-$C$45)*$B$47 -> -260.2647899 | F43: 3960 | G43: -342
A44: Total movable oil volume | B44: =$B$43-$B$42 -> 3761 | C44: =$C$43-$C$42 -> 3460 | D44: =$D$42-$D$43 -> 848.72416 | F44: 3561 | G44: 873
A45: Neutral Trim (from Ballast sheet) | B45: ($C_VBD for neutral) | C45: =Trim!$E$20 -> 2898.976625 | D45: (nominally 0 at spec rho) | F45: 2566
A47: Conversion constant | B47: -0.245296 | C47: cc per AD | D47: $VBD_CNV
A48: (conversion inverse) | B48: =1/$B$47 -> -4.076707325 | C48: AD per cc
A49: *equation: | B49: cc oil=(AD@neutral trim)* conv. factor (cc/counts)
B50: (1 cc oil = 1.025 g buoyancy)
A52: Pressure Sensor | C52: Last updated | D52: ='Pres cal'!$D$1 -> 2014-11-03
A53: (all values fed from press-cal worksheet including date) | C53: Comments
B54: Values from Pres Cal sheet
A55: Manufacturer | B55: ='Pres cal'!$B$3 -> Paine
A56: Model # | B56: ='Pres cal'!$B$4 -> 211-75-710-05
A57: Serial # | B57: ='Pres cal'!$B$5 -> 253669
A58: Calibration date | B58: ='Pres cal'!$B$6 -> 2009-08-24
A59: A/D Gain | B59: ='Pres cal'!$B$7 -> 128 | D59: PSI = Slope *AD_Count + Y_Intercept
A60: Atmos @ cal. | B60: ='Pres cal'!$B$8 -> 14.7
A61: Temp @ cal. | B61: ='Pres cal'!$B$9 -> 0 | C61: Psig/AD count | F61: Pres Cal last trimsheet incorrect (typo):
A62: Calibrated Slope | B62: ='Pres cal'!$B$64 -> 0.0001165268599 | C62: (either PresCal-B64) | F62: 0.0001136050846
A63: Cal. Y-Intercept | B63: ='Pres cal'!$B$65 -> -67.64160989 | C63: (Changed each time sensor set for “sea level”) | F63: -23.04572889
A64: Depth Offset | B64: ='Pres cal'!$B$66 -> -46.33450277 | C64: Meters | F64: -15.78632429
B65: Conversion Factor | C65: 0.685 psig/meter
A66: Internal Pressure | C66: Last updated | D66: 2016-08-16
A67: Initial psi: | B67: ='Weight sheet'!$F$250 -> 13.49 | C67: End psi: | D67: ='Weight sheet'!$F$251 -> 8.48
A68: Initial RH: | B68: ='Weight sheet'!$D$250 -> 55.39 | C68: End RH: | D68: ='Weight sheet'!$D$251 -> 46.1
A70: Compass | C70: Last updated | D70: 2016-03-10
C71: Comments
A72: Manufacturer | B72: Sparton
A73: Model # | B73: SP3004D
A74: Serial # | B74: ='Weight sheet'!$H$539 -> K887
A75: Compass SW version #
A76: Compass carrier PCB | B76: ='Weight sheet'!$H$538 -> 91880010
A77: Snug Calibration Date | B77: 03/101/2016
A78: TCM2MAT file creation date | B78: 2016-03-10
A80: Main Board | C80: Last updated | D80: 2013-03-14
C81: Comments
A82: Model # | B82: 52290 | C82: (52290=normal glider)
A83: Mainboard Revision | B83: B.4
A84: Mainboard Serial # | B84: ='Weight sheet'!$H$485 -> 92450012
A85: Computer Type | B85: TT8 | C85: Onset Computers
A86: Computer Serial # | B86: ='Weight sheet'!$H$486 -> 2422137
A87: Disk system | B87: CF8V2 | C87: Persistor Corp.
A88: Serial # | B88: ='Weight sheet'!$H$487 -> 2590
A89: Compact Flash Card Manu. | B89: Silicon Systems
A90: CF card size | B90: 256 MB
A91: CF card serial/ID # | B91: ='Weight sheet'!$H$488 -> SSD-C25MI-3005
A93: Watchdog (PIC) setting (min) | B93: 10 min | C93: (10min = dips 2&4 on)
A95: OEM Board & Sub-systems | C95: Last updated | D95: 2013-03-14
C96: Comments
A97: GPS Manufacturer | B97: Garmin
A98: GPS Model # | B98: 15H-W
A99: GPS Serial # | B99: ='Weight sheet'!$H$493 -> 11H010522
A101: GPSI Antenna Serial # | B101: ='Weight sheet'!H104 -> ES-140 | C101: (fab by Ocean Eng Services)
A102: DC-DC converter Serial # | B102: ='Weight sheet'!$H$494 -> 11835A836
A104: Transducer Manu. | B104: ITC
A105: Transducer Model | B105: 3013
A106: Transducer Serial # | B106: ='Weight sheet'!$H$530 -> 5190
A108: Acoustic Transponder | C108: Last updated | D108: 2013-03-14
C109: Comments
A110: Manufacturer | B110: AAE
A111: Model | B111: 955
A112: Main-board Serial # | B112: ='Weight sheet'!$H$495 -> 193
A113: Sub-board Serial # | B113: ='Weight sheet'!$H$496 -> 193
A114: AAE software ver # | B114: Ver
A116: Interrogate Frequency | B116: 12 | C116: KHz
A117: Reply Frequency | B117: 10.5 | C117: KHz
A118: DIP switch settings | B118: 9 / B | C118: (sw-1/sw-2)
A120: Iridium Modem | C120: Last updated | D120: 2013-03-14
D121: Comments
A122: Model | B122: A3LA-XG
A123: IMEI # | B123: ='Weight sheet'!$H$502 -> 300224010849200
A124: Modem Serial #: | B124: ='Weight sheet'!$H$501 -> 707XL8
A125: SIM Card Owner | B125: UH | C125: primary phone # | D125: secondary #
A126: SIM Card Serial # | B126: ='Weight sheet'!$H$503 -> 8988169224000233297 | C126: ='Weight sheet'!$C$503 -> 8089560582 | D126: 8089560583
A127: Base Modem Type: | B127: 9522B
A128: External Sensors Options
A130: SBE C and T Sensors | C130: Last updated | D130: 2016-03-10
D131: Comments
A132: Sail Serial # | B132: 73
A133: Temp PCB Serial # | B133: =$B$132 -> 73
A134: Cond PCB Serial # | B134: =$B$132 -> 73
A135: SBE Calibration date: | B135: 2015-12-30
A136: Conductivity Calibration Coefficients | C136: Temperature Calibration Coefficients
A137: g= | B137: -9.76951496 | C137: g= | D137: 0.00429423343
A138: h= | B138: 1.08918934 | C138: h= | D138: 0.00062847037
A139: i= | B139: 0.000788938554 | C139: i= | D139: 2.32398866e-05
A140: j= | B140: 5.78720188e-06 | C140: j= | D140: 2.40966639e-06
A141: Cpcor (nom) = | B141: -9.57e-08 | C141: f0 = | D141: 1000
A142: Ctcor (nom) = | B142: 3.25e-06
A143: INST FREQ Min (kHz)= | B143: 2.99161 | C143: INST FREQ Min (Hz)= | D143: 2904.414 | F143: *Take the frequency values from the calibration sheets.
A144: INST FREQ Max (kHz)= | B144: 8.00437 | C144: INST FREQ Max (Hz)= | D144: 5565.356
A147: Optical Sensor(s) | C147: Last updated | D147: 2016-03-10
A148: Forward or Bump Out | C148: cal date | D148: 2015-11-24
A149: Manufacturer | B149: Wetlab
A150: Model | B150: =IF($B$160="CDOM","BBFL2",IF($B$160 & $B$167="NoneNone","None","BB2FL")) -> BBFL2
A151: Serial # | B151: =IF('Weight sheet'!$H$124=0,'Weight sheet'!$H$137,'Weight sheet'!$H$124) -> 946
A153: Chlorophyll cal Constants | B153: Chlorophyll
A154: ="WETLabsCalData."&$B$153&".darkCounts" -> WETLabsCalData.Chlorophyll.darkCounts | B154: 48 | C154: counts
A155: ="WETLabsCalData."&$B$153&".scaleFactor" -> WETLabsCalData.Chlorophyll.scaleFactor | B155: 0.0118 | C155: ug/l/count
A156: ="WETLabsCalData."&$B$153&".maxOutput" -> WETLabsCalData.Chlorophyll.maxOutput | B156: 4130 | C156: counts
A157: ="WETLabsCalData."&$B$153&".resolution" -> WETLabsCalData.Chlorophyll.resolution | B157: 1 | C157: counts
A158: ="WETLabsCalData."&$B$153&".calTemperature" -> WETLabsCalData.Chlorophyll.calTemperature | B158: 20 | C158: C
A160: CDOM or Scattering Sensor | B160: CDOM | C160: =IF($B$160="470","(BLUE)",IF($B$160="532","(GREEN)",IF($B$160="650","(RED)",IF($B$160="880","(PINK)","")))) -> 
A161: =IF($B$160="CDOM","WETLabsCalData."&$B$160&".maxOutput","WETLabsCalData.Scatter_"&$B$160&".wavelength") -> WETLabsCalData.CDOM.maxOutput | B161: 4130 | C161: =IF($B$160="CDOM","counts","nm") -> counts
A162: =IF($B$160="CDOM","WETLabsCalData."&$B$160&".scaleFactor","WETLabsCalData.Scatter_"&$B$160&".scaleFactor") -> WETLabsCalData.CDOM.scaleFactor | B162: 0.0677 | C162: =IF($B$160="CDOM","ppb/count","(m^-1sr^-1)/counts") -> ppb/count
A163: =IF($B$160="CDOM","WETLabsCalData."&$B$160&".darkCounts","WETLabsCalData.Scatter_"&$B$160&".darkCounts") -> WETLabsCalData.CDOM.darkCounts | B163: 28 | C163: counts
A164: =IF($B$160="CDOM","WETLabsCalData."&$B$160&".resolution","WETLabsCalData.Scatter_"&$B$160&".resolution") -> WETLabsCalData.CDOM.resolution | B164: 1.4 | C164: counts
A165: =IF($B$160="CDOM","WETLabsCalData.CDOM.calTemperature","") -> WETLabsCalData.CDOM.calTemperature | B165: 20 | C165: =IF($B$160="CDOM","C","") -> C
A167: Scattering Sensor | B167: 650 | C167: =IF($B$167="470","(BLUE)",IF($B$167="532","(GREEN)",IF($B$167="650","(RED)",IF($B$167="880","(PINK)","None")))) -> (RED)
A168: ="WETLabsCalData.Scatter_"&$B$167&".wavelength" -> WETLabsCalData.Scatter_650.wavelength | B168: =IF($B$167="None",0,$B$167) -> 650 | C168: nm
A169: ="WETLabsCalData.Scatter_"&$B$167&".scaleFactor" -> WETLabsCalData.Scatter_650.scaleFactor | B169: 4.535e-06 | C169: (m^-1sr^-1)/counts
A170: ="WETLabsCalData.Scatter_"&$B$167&".darkCounts" -> WETLabsCalData.Scatter_650.darkCounts | B170: 42 | C170: counts
A171: ="WETLabsCalData.Scatter_"&$B$167&".resolution" -> WETLabsCalData.Scatter_650.resolution | B171: 1.1 | C171: counts
A174: Aft | C174: cal date | D174: 2016-01-13
A175: Manufacturer | B175: Wetlab
A176: Model | B176: =IF($B$186="CDOM","BBFL2",IF($B$186 & $B$193="NoneNone","None","BB2FL")) -> BB2FL
A177: Serial # | B177: ='Weight sheet'!$H$130 -> 1390
A179: Chlorophyll A Sensor | B179: Chlorophyll
A180: ="WETLabsCalData."&$B$179&".darkCounts" -> WETLabsCalData.Chlorophyll.darkCounts | B180: 37 | C180: counts
A181: ="WETLabsCalData."&$B$179&".scaleFactor" -> WETLabsCalData.Chlorophyll.scaleFactor | B181: 0.0119 | C181: ug/l/count
A182: ="WETLabsCalData."&$B$179&".maxOutput" -> WETLabsCalData.Chlorophyll.maxOutput | B182: 4140 | C182: counts
A183: ="WETLabsCalData."&$B$179&".resolution" -> WETLabsCalData.Chlorophyll.resolution | B183: 1.7 | C183: counts
A184: ="WETLabsCalData."&$B$179&".calTemperature" -> WETLabsCalData.Chlorophyll.calTemperature | B184: 22.3 | C184: C
A186: CDOM or Scattering Sensor | B186: 470 | C186: =IF($B$186="470","(BLUE)",IF($B$186="532","(GREEN)",IF($B$186="650","(RED)",IF($B$186="880","(PINK)","")))) -> (BLUE)
A187: =IF($B$186="CDOM","WETLabsCalData."&$B$186&".maxOutput","WETLabsCalData.Scatter_"&$B$186&".wavelength") -> WETLabsCalData.Scatter_470.wavelength | B187: =IF($B$186="None",0,$B$186) -> 470 | C187: =IF($B$186="CDOM","counts","nm") -> nm
A188: =IF($B$186="CDOM","WETLabsCalData."&$B$186&".scaleFactor","WETLabsCalData.Scatter_"&$B$186&".scaleFactor") -> WETLabsCalData.Scatter_470.scaleFactor | B188: 1.081e-05 | C188: =IF($B$186="CDOM","ppb/count","(m^-1sr^-1)/counts") -> (m^-1sr^-1)/counts
A189: =IF($B$186="CDOM","WETLabsCalData."&$B$186&".darkCounts","WETLabsCalData.Scatter_"&$B$186&".darkCounts") -> WETLabsCalData.Scatter_470.darkCounts | B189: 45 | C189: counts
A190: =IF($B$186="CDOM","WETLabsCalData."&$B$186&".resolution","WETLabsCalData.Scatter_"&$B$186&".resolution") -> WETLabsCalData.Scatter_470.resolution | B190: 1 | C190: counts
A191: =IF($B$186="CDOM","WETLabsCalData.CDOM.calTemperature","") ->  | C191: =IF($B$186="CDOM","C","") -> 
A193: Scattering Sensor | B193: 700 | C193: =IF($B$193="470","(BLUE)",IF($B$193="532","(GREEN)",IF($B$193="650","(RED)",IF($B$193="880","(PINK)","None")))) -> None
A194: ="WETLabsCalData.Scatter_"&$B$193&".wavelength" -> WETLabsCalData.Scatter_700.wavelength | B194: =IF($B$193="None",0,$B$193) -> 700 | C194: nm
A195: ="WETLabsCalData.Scatter_"&$B$193&".scaleFactor" -> WETLabsCalData.Scatter_700.scaleFactor | B195: 3.003e-06 | C195: (m^-1sr^-1)/counts
A196: ="WETLabsCalData.Scatter_"&$B$193&".darkCounts" -> WETLabsCalData.Scatter_700.darkCounts | B196: 53 | C196: counts
A197: ="WETLabsCalData.Scatter_"&$B$193&".resolution" -> WETLabsCalData.Scatter_700.resolution | B197: 1.2 | C197: counts
A199: Dissolved Oxygen Sensor - Seabird | C199: Last updated | D199: 2016-03-10
C200: cal date | D200: 2015-12-18
A201: Manufacturer | B201: SBE | C201: Sea-Bird 43f coefficients
A202: Model | B202: 43f | C202: Soc = | D202: 0.00025239
A203: Serial # | B203: ='Weight sheet'!$H$116 -> 0221 | C203: Boc = | D203: NA
A204: Oxygen PCB Serial # | B204: ='Weight sheet'!$H$445 -> 0 | C204: Tcor = | D204: NA
C205: Pcor = | D205: NA
C206: Foffset= | D206: -826.68
C207: A= | D207: -0.0047269
C208: B= | D208: 0.00024574
C209: C= | D209: -3.6145e-06
C210: E= | D210: 0.036
C211: Tau20= | D211: 1.54
A213: Dissolved Oxygen Sensor - Aanderaa | C213: Last updated | D213: 2014-11-03
C214: cal date | D214: 2016-03-04
A215: Manufacturer | B215: Aa | C215: Aanderaa coefficients | F215: FoilCoefA | H215: FoilCoefB
A216: Model | B216: optode | C216: optode_FoilCoefA1 | F216: 0 | G216: -3.604788e-06 | H216: 0 | I216: -7.934824e-07
A217: Serial # | B217: ='Weight sheet'!$H$110 -> 199 | C217: optode_FoilCoefA2 | F217: 1 | G217: -6.843658e-06 | H217: 1 | I217: 3792.411
C218: optode_FoilCoefA3 | F218: 2 | G218: 0.001839203 | H218: 2 | I218: -49.35136
C219: optode_FoilCoefA4 | F219: 3 | G219: -0.1984442 | H219: 3 | I219: 0.633521
C220: optode_FoilCoefA5 | F220: 4 | G220: 0.0008121225 | H220: 4 | I220: -0.01085494
C221: optode_FoilCoefA6 | F221: 5 | G221: -1.220733e-06 | H221: 5 | I221: 0.0001218953
C222: optode_FoilCoefA7 | F222: 6 | G222: 10.86894 | H222: 6 | I222: -7.344972e-07
C223: optode_FoilCoefA8 | F223: 7 | G223: -0.07093984 | H223: 7 | I223: 0
C224: optode_FoilCoefA9 | F224: 8 | G224: 0.0002810467 | H224: 8 | I224: 0
C225: optode_FoilCoefA10 | F225: 9 | G225: -1.32885e-06 | H225: 9 | I225: 0
C226: optode_FoilCoefA11 | F226: 10 | G226: -309.375 | H226: 10 | I226: 0
... 76 more rows

Sheet Trim
A1: SEAGLIDER - Trim and Balance | D1: Date: | E1: =NOW() -> 2016-08-29T14:22:50.640
B2: SG | C2: =Cal!$D$1 -> 512 | D2: Time: | E2: =NOW() -> 2016-08-29T14:22:50.640 | M2: Spreadsheet Usage Notes from Russ Light
G3: 52524 = ALL UP WEIGHT
A4: Comments: | G4: 2014-11-21
G5: 53274 = ALL UP WEIGHT | N5: ERROR here:
G6: 2015-03-24 | L6: Fwd Fairing assy scale wt: | M6: =Trim!$C$61 -> 8518.3 | N6: <--- uses weight including ballast! | O6: =Trim!$C$61 -> 8518.3 | P6: <-- includes nose ballast
C7: Enter data only where font is RED | L7: Aft fairing assy scale wt: | M7: =Trim!$C$125 -> 5741 | N7: <-- Fairing, Wings, Rudder, Antenna | O7: =Trim!$C$125 -> 5741
A8: Density Trim | L8: Fairing screws scale wt: | M8: =Trim!$E$56+Trim!$E$57 -> 39.9 | O8: =Trim!$E$56+Trim!$E$57 -> 39.9
B9: Total Weight (in air), summed items, corrected | C9: =Total_Weight -> 52652 | D9: gm | L9: Pupa assy w/lead scale wt: | M9: ='Weight sheet'!$H$231+SUM($F$68:$F$71)+SUM($F$76:$F$90)+SUM($F$97:$F$107) -> 39551.9 | N9: <--- all ballast included | O9: ='Weight sheet'!$H$231+SUM($F$76:$F$90)+SUM($F$97:$F$107) -> 39051.6 | P9: <-- includes only PUPA ballast
B10: Total Weight | C10: ='Weight sheet'!$H$2+SUM($F$68:$F$71)+SUM($F$76:$F$107)+SUM($F$118:$F$121)+SUM($F$255:$F$262) -> 52652.9 | D10: gm | L10: Total glider wt by assy scale wts: | M10: =SUM($M$6:$M$9) -> 53851.1 | O10: =SUM($O$6:$O$9) -> 53350.8
B11: Weight difference/"error" | C11: =$C$10-Total_Weight_In_Air -> 0.9 | D11: gm | L11: Actual | M11: 53274 | N11: <<<25th march 2015 | O11: 53274
B12: Variable wt, including nose-wt-plates | C12: =SUM($F$68:$F$107,$F$118:$F$121) -> 1097.9 | D12: gm | L12: diff | M12: =$M$10-$M$11 -> 577.1 | O12: =$O$10-$O$11 -> 76.8
B15: Displaced Volume, measured in tank | C15: =Ballast!$H$14 -> 50565 | D15: cc | E15: diff | F15: see Ballast worksheet for more volume details
B16: Displaced Volume, summed items | C16: =$K$53 -> 51242.82238 | D16: cc | E16: =Displaced_Volume-$C$15 -> 677.8223844
B17: volmax measured in tank | C17: 51775 | E17: =Displaced_Volume-C17 -> -532.1776156
B18: Water Density | C18: 1.0275 | D18: gm/cc | F18: **volmax = 619cc (27mar15) | N18: See note to make Buttons work
B19: Net Buoyancy (relative to neutral, positive floats, no thrust) | C19: =Displaced_Volume*rho_2-Total_Weight_In_Air -> 0 | D19: cc | F19: predicted using this spreadsheet, actual may vary!
B20: Internal Oil Stroke (100% is all inside, ext. bladder empty) | C20: 0.6933458452 | E20: =Cal!$C$42+$C$20*(Cal!$C$43-Cal!$C$42) -> 2898.976625 | F20: A/D counts | G20: (input %, not counts)
B21: Set Target Stroke % | C21: 0.713 | E21: Target for Tank testing
G22: ($PITCH_VBD_SHIFT) | H22: 0.00167 | I22: cm per cc
A23: Pitch Trim
B24: Longitudinal CG | C24: =Total_Moment_LCG/Total_Weight -> 89.92485013 | D24: cm | E24: =$C$24/2.54 -> 35.4034843 | F24: inches
B25: Longitudinal CB | C25: =Total_Moment_LCB/Displaced_Volume -> 89.92485013 | D25: cm | E25: =$C$25/2.54 -> 35.4034843 | F25: inches
B26: LCB-LCG Separation | C26: =$C$24-$C$25 -> 1.07590381e-10 | D26: cm
B27: Pitch-mass Stroke (100% is fully aft, nominal is 70%) | C27: 0.6835391216 | E27: =Cal!$C$12+stroke_2*(Cal!$C$13-Cal!$C$12) -> 2735.018619 | F27: A/D counts | G27: (input %, not counts) | J27: If % is lower than 63% add another nose plate
B28: Pitch-mass (batt) Location | C28: =stroke_2*12.8 -> 8.749300757 | D28: cm | J28: If % is greater than 77% remove another nose plate | N28: Fairing density below was found in KUTI tank and then verified in the SeaTrial at Port Susan. RH 5/4/15
B29: Vehicle Pitch Angle (positive is nose up) | C29: =DEGREES(ATAN($C$26/$C$33)) -> 1.489953601e-08 | D29: deg | E29: (goal is change of ~28 deg per cm travel, use goal-seek on Location by +/-1cm to test)
M30: 1.54565 | N30: <- Ref to Fairing Density for Macros
B31: Vertical CG (VCG) | C31: =Tot_mom_VCG/Total_Weight_In_Air -> -0.2138905614 | D31: cm | E31: (goal is ~ -0.45 from prior builds) | I31: range -0.35 t0 -0.65 from history | M31: 1.552661055 | N31: old fairing density
B32: Computed VCB | C32: =Tot_mom_VCB/Displaced_Volume -> 0.1998454601 | D32: cm | E32: (goal is ~0.07 from prior builds) | I32: range 0.05 to 0.1 from history | M32: 1.5745 | N32: from Ross Feb15
B33: VCB-VCG Separation | C33: =$C$32-$C$31 -> 0.4137360215 | D33: cm | E33: (goal is ~0.53 from prior builds) | I33: range 0.4 to 0.65 from history | M33: 1.5625 | N33: before Dec 2015 Refurb
B34: Roll-mass (batt) Angle | C34: 0 | D34: deg
M35: 1.56557036
F37: Total | I37: Moment | N37: Moment | Q37: Moment | R37: Moment
C38: UW Part # | D38: Qty | E38: Weight | F38: Weight | G38: LCG | H38: LCG | I38: LCG | J38: Volume | K38: Total Vol | L38: LCB | M38: LCB | N38: LCB | O38: VCG&B | P38: VCG&B | Q38: VCG | R38: VCB
A39: Description | B39: iRobot Part # | C39: (or Assy Wt) | E39: grams | F39: grams | G39: inch | H39: cm | I39: gm-cm | J39: cc | K39: cc | L39: inch | M39: cm | N39: cc-cm | O39: inch | P39: cm | Q39: gm-cm | R39: cc-cm
B41: Complete fairing & antenna
B42: Subtotal (summed) Weight | C42: =$C$60+$C$124+$C$112+$C$139 -> 13481 | D42: gm | E42: diff
B43: Scale Weight | C43: =$C$61+$C$125+$C$113+$C$140 -> 14259.3 | D43: gm | E43: =$C$43-$C$42 -> 778.3
B44: Summed volume | C44: =SUM($K$62:$K$230) -> 8493.944784 | D44: cc
E45: sum-diff's | F45: =$E$43+$E$48 -> 769.7
B46: Complete pupa
B47: Subtotal (summed) Weight | C47: =$C$265 -> 38462.6 | D47: gm | E47: diff
B48: Scale Weight | C48: =$C$266 -> 38454 | D48: gm | E48: =$C$48-$C$47 -> -8.6
B49: Summed volume | C49: =SUM($K$266:$K$524)+SUM($K$56:$K$57) -> 42748.8776 | D49: cc
C51: Total weights and volume - Flying SG - without adjustment | F51: =SUM($F$55:$F$524) -> 52581.1 | I51: =SUM($I$55:$I$524) -> 4747419.272 | K51: =SUM($K$55:$K$524) -> 51242.82238 | N51: =SUM($N$55:$N$524) -> 4608003.123 | Q51: =SUM($Q$55:$Q$524) -> -11261.76584 | R51: =SUM($R$55:$R$524) -> 10240.64541
C52: Adjustment to reflect trims found in tank & Port Susan | F52: 70.9 | G52: -70.5 | H52: =$G$52*2.54 -> -179.07 | I52: =$F$52*$H$52 -> -12696.063 | J52: 0 | K52: =$J$52*$D$52 -> 0 | L52: 0 | M52: =$L$52*2.54 -> 0 | N52: =$K$52*$M$52 -> 0 | O52: 0 | P52: =$O$52*2.54 -> 0 | Q52: =$F$52*$P$52 -> 0 | R52: =$K$52*$P$52 -> 0
C53: Total weights and volume - Flying SG - adjusted, reported above | F53: =SUM($F$50:$F$52) -> 52652 | I53: =SUM($I$51:$I$52) -> 4734723.209 | K53: =SUM($K$51:$K$52) -> 51242.82238 | N53: =SUM($N$51:$N$52) -> 4608003.123 | Q53: =SUM($Q$51:$Q$52) -> -11261.76584 | R53: =SUM($R$51:$R$52) -> 10240.64541
A55: ='Weight sheet'!$B$5 -> Flying Seaglider | B55: ='Weight sheet'!$C$5 -> 4197060 | C55: ='Weight sheet'!$D$5 -> 49801
A56: ='Weight sheet'!$B$6 -> (8x) 10-32 x 3/8 FHMS, joint ring to aft fairing | B56: ='Weight sheet'!$C$6 -> 4199128 | C56: ='Weight sheet'!$D$6 -> 55240 | D56: ='Weight sheet'!$F$6 -> 1 | E56: ='Weight sheet'!$H$6 -> 11.8 | F56: =$E$56*$D$56 -> 11.8 | G56: 46 | H56: =$G$56*2.54 -> 116.84 | I56: =$F$56*$H$56 -> 1378.712 | J56: =$E$56/SS_Density -> 1.47003862 | K56: =$J$56*$D$56 -> 1.47003862 | L56: =$G$56 -> 46 | M56: =$L$56*2.54 -> 116.84 | N56: =$K$56*$M$56 -> 171.7593123 | O56: 0 | P56: =$O$56*2.54 -> 0 | Q56: =$F$56*$P$56 -> 0 | R56: =$K$56*$P$56 -> 0
A57: (8x) 1/4-28 x 1/2 FHMS, Aft fairing to endcap | B57: ='Weight sheet'!$C$7 -> 4199153 | C57: ='Weight sheet'!$D$7 -> 55294 | D57: ='Weight sheet'!$F$7 -> 1 | E57: ='Weight sheet'!$H$7 -> 28.1 | F57: =$E$57*$D$57 -> 28.1 | G57: 49.5 | H57: =$G$57*2.54 -> 125.73 | I57: =$F$57*$H$57 -> 3533.013 | J57: =$E$57/SS_Density -> 3.500685187 | K57: =$J$57*$D$57 -> 3.500685187 | L57: =$G$57 -> 49.5 | M57: =$L$57*2.54 -> 125.73 | N57: =$K$57*$M$57 -> 440.1411486 | O57: 0 | P57: =$O$57*2.54 -> 0 | Q57: =$F$57*$P$57 -> 0 | R57: =$K$57*$P$57 -> 0
A59: Assy, Forward Fairing | B59: ='Weight sheet'!$C$9 -> 4199433 | C59: ='Weight sheet'!$D$9 -> 55494
B60: Subtotal Weight | C60: =IF($D$62=1,(SUM($F$62:$F$71,$F$211:$F$216)),0) -> 7744.3 | D60: gm | E60: diff
B61: Scale Weight | C61: ='Weight sheet'!$H$11+SUMPRODUCT('Weight sheet'!$F$19:'Weight sheet'!$F$22,'Weight sheet'!$H$19:'Weight sheet'!$H$22) -> 8518.3 | D61: gm | E61: =$C$61-$C$60 -> 774
A62: Forward Fairing | B62: ='Weight sheet'!$C$13 -> 4199347 | C62: ='Weight sheet'!$D$13 -> 49897 | D62: ='Weight sheet'!$F$13 -> 1 | E62: ='Weight sheet'!$H$13 -> 5308 | F62: =$E$62*$D$62 -> 5308 | G62: 28.22 | H62: =$G$62*2.54 -> 71.6788 | I62: =$F$62*$H$62 -> 380471.0704 | J62: =$E$62/Fiberglass_Density -> 3434.153916 | K62: =$J$62*$D$62 -> 3434.153916 | L62: =$G$62 -> 28.22 | M62: =$L$62*2.54 -> 71.6788 | N62: =$K$62*$M$62 -> 246156.0317 | O62: 0 | P62: =$O$62*2.54 -> 0 | Q62: =$E$62*$P$62 -> 0 | R62: =$K$62*$P$62 -> 0
A63: ='Weight sheet'!$B$14 -> Joint Ring, Fwd to Aft Fairing (bonded to fwd fairing before paint; Long ring = 875g, short ring 688g ) | B63: ='Weight sheet'!$C$14 -> 4199330 | C63: ='Weight sheet'!$D$14 -> 49834 | D63: ='Weight sheet'!$F$14 -> 1 | E63: ='Weight sheet'!$H$14 -> 688 | F63: =$E$63*$D$63 -> 688 | G63: 45.85 | H63: =$G$63*2.54 -> 116.459 | I63: =$F$63*$H$63 -> 80123.792 | J63: =$E$63/Alum_density -> 253.5938076 | K63: =$J$63*$D$63 -> 253.5938076 | L63: =$G$63 -> 45.85 | M63: =$L$63*2.54 -> 116.459 | N63: =$K$63*$M$63 -> 29533.28124 | O63: 0 | P63: =$O$63*2.54 -> 0 | Q63: =$F$63*$P$63 -> 0 | R63: =$K$63*$P$63 -> 0
A64: ='Weight sheet'!$B$15 -> Nose weight (2 hole - bonded to fwd fairing after paint) | B64: ='Weight sheet'!$C$15 -> 4199334 | C64: ='Weight sheet'!$D$15 -> 49844 | D64: ='Weight sheet'!$F$15 -> 1 | E64: ='Weight sheet'!$H$15 -> 1248 | F64: =$E$64*$D$64 -> 1248 | G64: 3.715 | H64: =$G$64*2.54 -> 9.4361 | I64: =$F$64*$H$64 -> 11776.2528 | J64: =$E$64/Brass_Density -> 148.3065954 | K64: =$J$64*$D$64 -> 148.3065954 | L64: =$G$64 -> 3.715 | M64: =$L$64*2.54 -> 9.4361 | N64: =$K$64*$M$64 -> 1399.435865 | O64: 0 | P64: =$O$64*2.54 -> 0 | Q64: =$F$64*$P$64 -> 0 | R64: =$K$64*$P$64 -> 0
A65: ='Weight sheet'!$B$16 -> Detachable Fairing Nose | B65: ='Weight sheet'!$C$16 -> ?? | C65: ='Weight sheet'!$D$16 -> ?? | D65: ='Weight sheet'!$F$16 -> 0 | E65: ='Weight sheet'!$H$16 -> 0 | F65: =$E$65*$D$65 -> 0 | G65: 1.35 | H65: =$G$65*2.54 -> 3.429 | I65: =$F$65*$H$65 -> 0 | J65: =$E$65/Brass_Density -> 0 | K65: =$J$65*$D$65 -> 0 | L65: =$G$65 -> 1.35 | M65: =$L$65*2.54 -> 3.429 | N65: =$K$65*$M$65 -> 0 | O65: 0 | P65: =$O$65*2.54 -> 0 | Q65: =$F$65*$P$65 -> 0 | R65: =$K$65*$P$65 -> 0
A66: ='Weight sheet'!$B$17 -> Nose Weight (5 hole) | B66: ='Weight sheet'!$C$17 -> ?? | C66: ='Weight sheet'!$D$17 -> ?? | D66: ='Weight sheet'!$F$17 -> 0 | E66: ='Weight sheet'!$H$17 -> 0 | F66: =$E$66*$D$66 -> 0 | G66: 2.54 | H66: =$G$66*2.54 -> 6.4516 | I66: =$F$66*$H$66 -> 0 | J66: =$E$66/Brass_Density -> 0 | K66: =$J$66*$D$66 -> 0 | L66: =$G$66 -> 2.54 | M66: =$L$66*2.54 -> 6.4516 | N66: =$K$66*$M$66 -> 0 | O66: 0 | P66: =$O$66*2.54 -> 0 | Q66: =$F$66*$P$66 -> 0 | R66: =$K$66*$P$66 -> 0
A67: ='Weight sheet'!$B$18 -> Nose Weight to Detachable Nose Screws | B67: ='Weight sheet'!$C$18 -> 4199435 | C67: ='Weight sheet'!$D$18 -> ?? | D67: ='Weight sheet'!$F$18 -> 0 | E67: ='Weight sheet'!$H$18 -> 0 | F67: =$E$67*$D$67 -> 0 | G67: 3.42 | H67: =$G$67*2.54 -> 8.6868 | I67: =$F$67*$H$67 -> 0 | J67: =$E$67/Brass_Density -> 0 | K67: =$J$67*$D$67 -> 0 | L67: =$G$67 -> 3.42 | M67: =$L$67*2.54 -> 8.6868 | N67: =$K$67*$M$67 -> 0 | O67: 0 | P67: =$O$67*2.54 -> 0 | Q67: =$F$67*$P$67 -> 0 | R67: =$K$67*$P$67 -> 0
A68: ='Weight sheet'!$B$19 -> Nose weight plates | B68: ='Weight sheet'!$C$19 -> 4199426 | C68: ='Weight sheet'!$D$19 -> 55448 | D68: 1 | E68: ='Weight sheet'!H19 -> 479.7 | F68: =$E$68*$D$68 -> 479.7 | G68: 3.715 | H68: =$G$68*2.54 -> 9.4361 | I68: =$F$68*$H$68 -> 4526.49717 | J68: =$E$68/Brass_Density -> 57.00534759 | K68: =$J$68*$D$68 -> 57.00534759 | L68: =$G$68 -> 3.715 | M68: =$L$68*2.54 -> 9.4361 | N68: =$K$68*$M$68 -> 537.9081604 | O68: 0 | P68: =$O$68*2.54 -> 0 | Q68: =$F$68*$P$68 -> 0 | R68: =$K$68*$P$68 -> 0
A69: ='Weight sheet'!$B$20 -> (2x) 1/4-20 x 2" SHCS + 1/4 LW brass, nose plate to nose base (4 - 5 plates) | B69: ='Weight sheet'!$C$20 -> /4199135 | C69: ='Weight sheet'!$D$20 -> 55186 / 55253 | D69: 0 | E69: =IF('Weight sheet'!$H$20=0,'Weight sheet'!$G$20,'Weight sheet'!$H$20) -> 28.3 | F69: =$E$69*$D$69 -> 0 | G69: 3.715 | H69: =$G$69*2.54 -> 9.4361 | I69: =$F$69*$H$69 -> 0 | J69: =$E$69/Brass_Density -> 3.363042187 | K69: =$J$69*$D$69 -> 0 | L69: =$G$69 -> 3.715 | M69: =$L$69*2.54 -> 9.4361 | N69: =$K$69*$M$69 -> 0 | O69: 0 | P69: =$O$69*2.54 -> 0 | Q69: =$F$69*$P$69 -> 0 | R69: =$K$69*$P$69 -> 0
A70: ='Weight sheet'!$B$21 -> (2x) 1/4-20 x 1.5" SHCS + 1/4 LW brass, nose plate to nose base (2 -3 plates) | B70: ='Weight sheet'!$C$21 -> 4199112 / 4199135 | C70: ='Weight sheet'!$D$21 -> 55185 / 55253 | D70: 1 | E70: =IF('Weight sheet'!$H$21=0,'Weight sheet'!$G$21,'Weight sheet'!$H$21) -> 20.6 | F70: =$E$70*$D$70 -> 20.6 | G70: 3.715 | H70: =$G$70*2.54 -> 9.4361 | I70: =$F$70*$H$70 -> 194.38366 | J70: =$E$70/Brass_Density -> 2.448009507 | K70: =$J$70*$D$70 -> 2.448009507 | L70: =$G$70 -> 3.715 | M70: =$L$70*2.54 -> 9.4361 | N70: =$K$70*$M$70 -> 23.09966251 | O70: 0 | P70: =$O$70*2.54 -> 0 | Q70: =$F$70*$P$70 -> 0 | R70: =$K$70*$P$70 -> 0
A71: ='Weight sheet'!$B$22 -> (2x) 1/4-20 x .75" SHCS + 1/4 LW brass, nose plate to nose base (1 plate) | B71: ='Weight sheet'!$C$22 -> /4199135 | C71: ='Weight sheet'!$D$22 -> 55473 / 55253 | D71: 0 | E71: =IF('Weight sheet'!$H$22=0,'Weight sheet'!$G$22,'Weight sheet'!$H$22) -> 18 | F71: =$E$71*$D$71 -> 0 | G71: 3.715 | H71: =$G$71*2.54 -> 9.4361 | I71: =$F$71*$H$71 -> 0 | J71: =$E$71/Brass_Density -> 2.139037433 | K71: =$J$71*$D$71 -> 0 | L71: =$G$71 -> 3.715 | M71: =$L$71*2.54 -> 9.4361 | N71: =$K$71*$M$71 -> 0 | O71: 0 | P71: =$O$71*2.54 -> 0 | Q71: =$F$71*$P$71 -> 0 | R71: =$K$71*$P$71 -> 0
A73: ='Weight sheet'!$B$24 -> Assy., Ballast (STANDARD)
B74: Subtotal Weight | C74: =SUM($F$76:$F$90) -> 597.6 | D74: gm | E74: diff
B75: Scale Weight | C75: ='Weight sheet'!$H$26 -> 597.6 | D75: gm | E75: =$C$75-$C$74 -> 0
A76: ='Weight sheet'!$B$27 -> Trim .600" aft of pupa joint ring - bottom (5" strip) | D76: 1 | E76: 173.3 | F76: =ABS($E$76*$D$76) -> 173.3 | G76: 42.077 | H76: =$G$76*2.54 -> 106.87558 | I76: =ABS($F$76*$H$76) -> 18521.53801 | J76: =IF($E$76<0,ABS($E$76/Material!$B$19),($E$76/Lead_Density)) -> 15.34171388 | K76: =$J$76*$D$76 -> 15.34171388 | L76: =$G$76 -> 42.077 | M76: =$L$76*2.54 -> 106.87558 | N76: =$K$76*$M$76 -> 1639.654569 | O76: -5.16 | P76: =$O$76*2.54 -> -13.1064 | Q76: =$F$76*$P$76 -> -2271.33912 | R76: =$K$76*$P$76 -> -201.0746388
A77: ='Weight sheet'!$B$32 -> EPDM base (5"x6") + (2x) 2"x 6" tape - bottom | C77: not in BOM | D77: ='Weight sheet'!$F$32 -> 0 | E77: ='Weight sheet'!$H$32 -> 0 | F77: =$E$77*$D$77 -> 0 | G77: 42.077 | H77: =$G$77*2.54 -> 106.87558 | I77: =ABS($F$77*$H$77) -> 0 | J77: =$F$77/Material!$B$14 -> 0 | K77: =$J$77*$D$77 -> 0 | L77: =$G$77 -> 42.077 | M77: =$L$77*2.54 -> 106.87558 | N77: =$K$77*$M$77 -> 0 | O77: -5 | P77: =$O$77*2.54 -> -12.7 | Q77: =$F$77*$P$77 -> 0 | R77: =$K$77*$P$77 -> 0
A78: ='Weight sheet'!$B$28 -> Trim .600" aft of pupa joint ring - port side (5" strip) | D78: 0 | E78: 0 | F78: =ABS($E$78*$D$78) -> 0 | G78: 42.08 | H78: =$G$78*2.54 -> 106.8832 | I78: =ABS($F$78*$H$78) -> 0 | J78: =IF($E$78<0,ABS($E$78/Material!$B$19),($E$78/Lead_Density)) -> 0 | K78: =$J$78*$D$78 -> 0 | L78: =$G$78 -> 42.08 | M78: =$L$78*2.54 -> 106.8832 | N78: =$K$78*$M$78 -> 0 | O78: 0 | P78: =$O$78*2.54 -> 0 | Q78: =$F$78*$P$78 -> 0 | R78: =$K$78*$P$78 -> 0
A79: ='Weight sheet'!$B$33 -> EPDM base (5"x6") + (2x) 2"x 6" tape - port | C79: not in BOM | D79: ='Weight sheet'!$F$33 -> 1 | E79: ='Weight sheet'!$H$33 -> 20.8 | F79: =$E$79*$D$79 -> 20.8 | G79: 42.077 | H79: =$G$79*2.54 -> 106.87558 | I79: =ABS($F$79*$H$79) -> 2223.012064 | J79: =$F$79/Material!$B$14 -> 14.92537313 | K79: =$J$79*$D$79 -> 14.92537313 | L79: =$G$79 -> 42.077 | M79: =$L$79*2.54 -> 106.87558 | N79: =$K$79*$M$79 -> 1595.15791 | O79: 0 | P79: =$O$79*2.54 -> 0 | Q79: =$F$79*$P$79 -> 0 | R79: =$K$79*$P$79 -> 0
A80: ='Weight sheet'!$B$29 -> Trim .600" aft of pupa joint ring - starboard side (5" strip) | D80: 1 | E80: 172.9 | F80: =ABS($E$80*$D$80) -> 172.9 | G80: 42.077 | H80: =$G$80*2.54 -> 106.87558 | I80: =ABS($F$80*$H$80) -> 18478.78778 | J80: =IF($E$80<0,ABS($E$80/Material!$B$19),($E$80/Lead_Density)) -> 15.30630312 | K80: =$J$80*$D$80 -> 15.30630312 | L80: =$G$80 -> 42.077 | M80: =$L$80*2.54 -> 106.87558 | N80: =$K$80*$M$80 -> 1635.870023 | O80: 0 | P80: =$O$80*2.54 -> 0 | Q80: =$F$80*$P$80 -> 0 | R80: =$K$80*$P$80 -> 0
A81: ='Weight sheet'!$B$34 -> EPDM base (5"x6") + (2x) 2"x 6" tape - starboard | C81: not in BOM | D81: ='Weight sheet'!$F$34 -> 1 | E81: ='Weight sheet'!$H$34 -> 19.8 | F81: =$E$81*$D$81 -> 19.8 | G81: 42.077 | H81: =$G$81*2.54 -> 106.87558 | I81: =ABS($F$81*$H$81) -> 2116.136484 | J81: =$F$81/Material!$B$14 -> 14.20780712 | K81: =$J$81*$D$81 -> 14.20780712 | L81: =$G$81 -> 42.077 | M81: =$L$81*2.54 -> 106.87558 | N81: =$K$81*$M$81 -> 1518.467626 | O81: 0 | P81: =$O$81*2.54 -> 0 | Q81: =$F$81*$P$81 -> 0 | R81: =$K$81*$P$81 -> 0
A82: ='Weight sheet'!$B$30 -> Trim .600" aft of pupa joint ring - top (5" strip) | D82: 1 | E82: -184.1 | F82: =ABS($E$82*$D$82) -> 184.1 | G82: 42.077 | H82: =$G$82*2.54 -> 106.87558 | I82: =ABS($F$82*$H$82) -> 19675.79428 | J82: =IF($E$82<0,ABS($E$82/Material!$B$19),($E$82/Lead_Density)) -> 438.3333333 | K82: =$J$82*$D$82 -> 438.3333333 | L82: =$G$82 -> 42.077 | M82: =$L$82*2.54 -> 106.87558 | N82: =$K$82*$M$82 -> 46847.12923 | O82: 5.1 | P82: =$O$82*2.54 -> 12.954 | Q82: =$F$82*$P$82 -> 2384.8314 | R82: =$K$82*$P$82 -> 5678.17
A83: ='Weight sheet'!$B$35 -> EPDM base (5"x6") + (2x) 2"x 6" tape - top | C83: not in BOM | D83: ='Weight sheet'!$F$35 -> 0 | E83: ='Weight sheet'!$H$35 -> 0 | F83: =$E$83*$D$83 -> 0 | G83: 42.077 | H83: =$G$83*2.54 -> 106.87558 | I83: =ABS($F$83*$H$83) -> 0 | J83: =$F$83/Material!$B$14 -> 0 | K83: =$J$83*$D$83 -> 0 | L83: =$G$83 -> 42.077 | M83: =$L$83*2.54 -> 106.87558 | N83: =$K$83*$M$83 -> 0 | O83: 5 | P83: =$O$83*2.54 -> 12.7 | Q83: =$F$83*$P$83 -> 0 | R83: =$K$83*$P$83 -> 0
A84: ='Weight sheet'!$B$39 -> Trim Lead tape (~1g per 5" lead strip) | C84: not in BOM | D84: ='Weight sheet'!$F$39 -> 1 | E84: ='Weight sheet'!$H$39 -> 10.1 | F84: =$E$84*$D$84 -> 10.1 | G84: 42.077 | H84: =$G$84*2.54 -> 106.87558 | I84: =ABS($F$84*$H$84) -> 1079.443358 | J84: =$E$84/PVC_Density -> 7.163120567 | K84: =$J$84*$D$84 -> 7.163120567 | L84: =$G$84 -> 42.077 | M84: =$L$84*2.54 -> 106.87558 | N84: =$K$84*$M$84 -> 765.5626652 | O84: 5.1 | P84: =$O$84*2.54 -> 12.954 | Q84: =$F$84*$P$84 -> 130.8354 | R84: =$K$84*$P$84 -> 92.79106383
A85: ='Weight sheet'!$B$37 -> (2) Straps - cut to length (start at 34g, subtract trimmed) | D85: ='Weight sheet'!$F$37 -> 0 | E85: ='Weight sheet'!$H$37 -> 0 | F85: =$E$85*$D$85 -> 0 | G85: 42.077 | H85: =$G$85*2.54 -> 106.87558 | I85: =ABS($F$85*$H$85) -> 0 | J85: =$E$85/Material!$B$15 -> 0 | K85: =$J$85*$D$85 -> 0 | L85: =$G$85 -> 42.077 | M85: =$L$85*2.54 -> 106.87558 | N85: =$K$85*$M$85 -> 0 | O85: 0 | P85: =$O$85*2.54 -> 0 | Q85: =$F$85*$P$85 -> 0 | R85: =$K$85*$P$85 -> 0
A86: ='Weight sheet'!$B$41 -> (2) black tape wraps over foam (1 1/2" width) | C86: not in BOM | D86: ='Weight sheet'!$F$41 -> 1 | E86: ='Weight sheet'!$H$41 -> 14.6 | F86: =($E$86*$D$86) -> 14.6 | G86: 42.077 | H86: =$G$86*2.54 -> 106.87558 | I86: =ABS($F$86*$H$86) -> 1560.383468 | J86: =$F$86/Material!$B$10 -> 10.35460993 | K86: =$J$86*$D$86 -> 10.35460993 | L86: =$G$86 -> 42.077 | M86: =$L$86*2.54 -> 106.87558 | N86: =$K$86*$M$86 -> 1106.654942 | O86: 0 | P86: =$O$86*2.54 -> 0 | Q86: =$F$86*$P$86 -> 0 | R86: =$K$86*$P$86 -> 0
A87: ='Weight sheet'!$B$31 -> Trim 1.000" fwd of bulkhead - bottom (5" strip) | D87: 0 | E87: 0 | F87: =($E$87*$D$87) -> 0 | G87: 22.45 | H87: =$G$87*2.54 -> 57.023 | I87: =ABS($F$87*$H$87) -> 0 | J87: =IF($E$87<0,ABS($E$87/Material!$B$19),($E$87/Lead_Density)) -> 0 | K87: =$J$87*$D$87 -> 0 | L87: =$G$87 -> 22.45 | M87: =$L$87*2.54 -> 57.023 | N87: =$K$87*$M$87 -> 0 | O87: -4.035 | P87: =$O$87*2.54 -> -10.2489 | Q87: =$F$87*$P$87 -> 0 | R87: =$K$87*$P$87 -> 0
A88: EPDM base (5"x6") + (2x) 2"x 6" tape - fwd of bulkhead - bottom | C88: not in BOM | D88: ='Weight sheet'!$F$36 -> 0 | E88: ='Weight sheet'!$H$36 -> 0 | F88: =$E$88*$D$88 -> 0 | G88: 22.45 | H88: =$G$88*2.54 -> 57.023 | I88: =ABS($F$88*$H$88) -> 0 | J88: =$F$88/Material!$B$14 -> 0 | K88: =$J$88*$D$88 -> 0 | L88: =$G$88 -> 22.45 | M88: =$L$88*2.54 -> 57.023 | N88: =$K$88*$M$88 -> 0 | O88: -4.035 | P88: =$O$88*2.54 -> -10.2489 | Q88: =$F$88*$P$88 -> 0 | R88: =$K$88*$P$88 -> 0
A89: Trim Lead tape (~1g per 5" lead strip) -fwd of bulkhead - bottom | D89: ='Weight sheet'!$F$40 -> 1 | E89: ='Weight sheet'!$H$40 -> 2 | F89: =$E$89*$D$89 -> 2 | G89: 22.45 | H89: =$G$89*2.54 -> 57.023 | I89: =ABS($F$89*$H$89) -> 114.046 | J89: =$E$89/PVC_Density -> 1.418439716 | K89: =$J$89*$D$89 -> 1.418439716 | L89: =$G$89 -> 22.45 | M89: =$L$89*2.54 -> 57.023 | N89: =$K$89*$M$89 -> 80.88368794 | O89: -4.035 | P89: =$O$89*2.54 -> -10.2489 | Q89: =$F$89*$P$89 -> -20.4978 | R89: =$K$89*$P$89 -> -14.53744681
A90: ='Weight sheet'!$B$38 -> (2) Straps - cut to length (start at 17g, subtract trimmed) fwd of bulkhead | C90: not in BOM | D90: ='Weight sheet'!$F$38 -> 0 | E90: ='Weight sheet'!$H$38 -> 0 | F90: =$E$90*$D$90 -> 0 | G90: 22.45 | H90: =$G$90*2.54 -> 57.023 | I90: =ABS($F$90*$H$90) -> 0 | J90: =$E$90/Material!$B$15 -> 0 | K90: =$J$90*$D$90 -> 0 | L90: =$G$90 -> 22.45 | M90: =$L$90*2.54 -> 57.023 | N90: =$K$90*$M$90 -> 0 | O90: -4.035 | P90: =$O$90*2.54 -> -10.2489 | Q90: =$F$90*$P$90 -> 0 | R90: =$K$90*$P$90 -> 0
B91: lead goal | C91: 1310
B92: currently at | C92: 1159.8 | D92: 150.2 | E92: diff
A94: ='Weight sheet'!$B$43 -> Assy., Ballast (BATTERY HULL FORWARD JOINT RING)
B95: Subtotal Weight | C95: =SUM($F$97:$F$107) -> 0 | D95: gm | E95: diff
B96: Scale Weight | C96: ='Weight sheet'!$H$45 -> 0 | D96: gm | E96: =$C$96-$C$95 -> 0
A97: ='Weight sheet'!$B$46 -> Trim .600" aft of pupa joint ring - bottom (5" strip) | D97: 0 | E97: 0 | F97: =ABS($E$97*$D$97) -> 0 | G97: 34.08 | H97: =$G$97*2.54 -> 86.5632 | I97: =ABS($F$97*$H$97) -> 0 | J97: =IF($E$97<0,ABS($E$97/Material!$B$19),($E$97/Lead_Density)) -> 0 | K97: =$J$97*$D$97 -> 0 | L97: =$G$97 -> 34.08 | M97: =$L$97*2.54 -> 86.5632 | N97: =$K$97*$M$97 -> 0 | O97: -5.16 | P97: =$O$97*2.54 -> -13.1064 | Q97: =$F$97*$P$97 -> 0 | R97: =$K$97*$P$97 -> 0
A98: ='Weight sheet'!$B$50 -> EPDM base (5"x6") + (2x) 2"x 6" tape - bottom | C98: not in BOM | D98: ='Weight sheet'!$F$50 -> 0 | E98: ='Weight sheet'!$H$50 -> 0 | F98: =$E$98*$D$98 -> 0 | G98: 34.08 | H98: =$G$98*2.54 -> 86.5632 | I98: =ABS($F$98*$H$98) -> 0 | J98: =$F$98/Material!$B$14 -> 0 | K98: =$J$98*$D$98 -> 0 | L98: =$G$98 -> 34.08 | M98: =$L$98*2.54 -> 86.5632 | N98: =$K$98*$M$98 -> 0 | O98: -5 | P98: =$O$98*2.54 -> -12.7 | Q98: =$F$98*$P$98 -> 0 | R98: =$K$98*$P$98 -> 0
A99: ='Weight sheet'!$B$47 -> Trim .600" aft of pupa joint ring - port side (5" strip) | D99: 0 | E99: 0 | F99: =ABS($E$99*$D$99) -> 0 | G99: 34.08 | H99: =$G$99*2.54 -> 86.5632 | I99: =ABS($F$99*$H$99) -> 0 | J99: =IF($E$99<0,ABS($E$99/Material!$B$19),($E$99/Lead_Density)) -> 0 | K99: =$J$99*$D$99 -> 0 | L99: =$G$99 -> 34.08 | M99: =$L$99*2.54 -> 86.5632 | N99: =$K$99*$M$99 -> 0 | O99: 0 | P99: =$O$99*2.54 -> 0 | Q99: =$F$99*$P$99 -> 0 | R99: =$K$99*$P$99 -> 0
A100: ='Weight sheet'!$B$51 -> EPDM base (5"x6") + (2x) 2"x 6" tape - port | C100: not in BOM | D100: ='Weight sheet'!$F$51 -> 0 | E100: ='Weight sheet'!$H$51 -> 0 | F100: =$E$100*$D$100 -> 0 | G100: 34.08 | H100: =$G$100*2.54 -> 86.5632 | I100: =ABS($F$100*$H$100) -> 0 | J100: =$F$100/Material!$B$14 -> 0 | K100: =$J$100*$D$100 -> 0 | L100: =$G$100 -> 34.08 | M100: =$L$100*2.54 -> 86.5632 | N100: =$K$100*$M$100 -> 0 | O100: 0 | P100: =$O$100*2.54 -> 0 | Q100: =$F$100*$P$100 -> 0 | R100: =$K$100*$P$100 -> 0
A101: ='Weight sheet'!$B$48 -> Trim .600" aft of pupa joint ring - starboard side (5" strip) | D101: 0 | E101: 0 | F101: =ABS($E$101*$D$101) -> 0 | G101: 34.08 | H101: =$G$101*2.54 -> 86.5632 | I101: =ABS($F$101*$H$101) -> 0 | J101: =IF($E$101<0,ABS($E$101/Material!$B$19),($E$101/Lead_Density)) -> 0 | K101: =$J$101*$D$101 -> 0 | L101: =$G$101 -> 34.08 | M101: =$L$101*2.54 -> 86.5632 | N101: =$K$101*$M$101 -> 0 | O101: 0 | P101: =$O$101*2.54 -> 0 | Q101: =$F$101*$P$101 -> 0 | R101: =$K$101*$P$101 -> 0
A102: ='Weight sheet'!$B$52 -> EPDM base (5"x6") + (2x) 2"x 6" tape - starboard | C102: not in BOM | D102: ='Weight sheet'!$F$52 -> 0 | E102: ='Weight sheet'!$H$52 -> 0 | F102: =$E$102*$D$102 -> 0 | G102: 34.08 | H102: =$G$102*2.54 -> 86.5632 | I102: =ABS($F$102*$H$102) -> 0 | J102: =$F$102/Material!$B$14 -> 0 | K102: =$J$102*$D$102 -> 0 | L102: =$G$102 -> 34.08 | M102: =$L$102*2.54 -> 86.5632 | N102: =$K$102*$M$102 -> 0 | O102: 0 | P102: =$O$102*2.54 -> 0 | Q102: =$F$102*$P$102 -> 0 | R102: =$K$102*$P$102 -> 0
A103: ='Weight sheet'!$B$49 -> Trim .600" aft of pupa joint ring - top (5" strip) | D103: 0 | E103: 0 | F103: =ABS($E$103*$D$103) -> 0 | G103: 34.08 | H103: =$G$103*2.54 -> 86.5632 | I103: =ABS($F$103*$H$103) -> 0 | J103: =IF($E$103<0,ABS($E$103/Material!$B$19),($E$103/Lead_Density)) -> 0 | K103: =$J$103*$D$103 -> 0 | L103: =$G$103 -> 34.08 | M103: =$L$103*2.54 -> 86.5632 | N103: =$K$103*$M$103 -> 0 | O103: 5.1 | P103: =$O$103*2.54 -> 12.954 | Q103: =$F$103*$P$103 -> 0 | R103: =$K$103*$P$103 -> 0
A104: ='Weight sheet'!$B$53 -> EPDM base (5"x6") + (2x) 2"x 6" tape - top | C104: not in BOM | D104: ='Weight sheet'!$F$53 -> 0 | E104: ='Weight sheet'!$H$53 -> 0 | F104: =$E$104*$D$104 -> 0 | G104: 34.08 | H104: =$G$104*2.54 -> 86.5632 | I104: =ABS($F$104*$H$104) -> 0 | J104: =$F$104/Material!$B$14 -> 0 | K104: =$J$104*$D$104 -> 0 | L104: =$G$104 -> 34.08 | M104: =$L$104*2.54 -> 86.5632 | N104: =$K$104*$M$104 -> 0 | O104: 5 | P104: =$O$104*2.54 -> 12.7 | Q104: =$F$104*$P$104 -> 0 | R104: =$K$104*$P$104 -> 0
A105: ='Weight sheet'!$B$55 -> Trim Lead tape (~1g per 5" lead strip) | C105: not in BOM | D105: ='Weight sheet'!$F$55 -> 0 | E105: ='Weight sheet'!$H$55 -> 0 | F105: =$E$105*$D$105 -> 0 | G105: 34.08 | H105: =$G$105*2.54 -> 86.5632 | I105: =ABS($F$105*$H$105) -> 0 | J105: =$E$105/PVC_Density -> 0 | K105: =$J$105*$D$105 -> 0 | L105: =$G$105 -> 34.08 | M105: =$L$105*2.54 -> 86.5632 | N105: =$K$105*$M$105 -> 0 | O105: 5.1 | P105: =$O$105*2.54 -> 12.954 | Q105: =$F$105*$P$105 -> 0 | R105: =$K$105*$P$105 -> 0
A106: ='Weight sheet'!$B$54 -> (2) Straps - cut to length (start at 34g, subtract trimmed) | D106: ='Weight sheet'!$F$54 -> 0 | E106: ='Weight sheet'!$H$54 -> 0 | F106: =$E$106*$D$106 -> 0 | G106: 34.08 | H106: =$G$106*2.54 -> 86.5632 | I106: =ABS($F$106*$H$106) -> 0 | J106: =$E$106/Material!$B$15 -> 0 | K106: =$J$106*$D$106 -> 0 | L106: =$G$106 -> 34.08 | M106: =$L$106*2.54 -> 86.5632 | N106: =$K$106*$M$106 -> 0 | O106: 0 | P106: =$O$106*2.54 -> 0 | Q106: =$F$106*$P$106 -> 0 | R106: =$K$106*$P$106 -> 0
A107: ='Weight sheet'!$B$56 -> (2) black tape wraps over foam (1 1/2" width) | C107: not in BOM | D107: ='Weight sheet'!$F$56 -> 0 | E107: ='Weight sheet'!$H$56 -> 0 | F107: =($E$107*$D$107) -> 0 | G107: 34.08 | H107: =$G$107*2.54 -> 86.5632 | I107: =ABS($F$107*$H$107) -> 0 | J107: =$F$107/Material!$B$10 -> 0 | K107: =$J$107*$D$107 -> 0 | L107: =$G$107 -> 34.08 | M107: =$L$107*2.54 -> 86.5632 | N107: =$K$107*$M$107 -> 0 | O107: 0 | P107: =$O$107*2.54 -> 0 | Q107: =$F$107*$P$107 -> 0 | R107: =$K$107*$P$107 -> 0
B108: lead goal | C108: 1310
B109: currently at | C109: 1159.8 | D109: 150.2 | E109: diff
A111: ='Weight sheet'!$B$58 -> Assy, Ojive Forward Fairing | B111: ='Weight sheet'!$C$58 -> 4199433 | C111: ='Weight sheet'!$D$58 -> 55494
B112: Subtotal Weight | C112: =IF($D$114=1,(SUM($F$114:$F$121,$F$211:$F$216)),0) -> 0 | D112: gm | E112: diff
B113: Scale Weight | C113: ='Weight sheet'!$H$60+SUMPRODUCT('Weight sheet'!$F$65:'Weight sheet'!$F$68,'Weight sheet'!$H$65:'Weight sheet'!$H$68) -> 0 | D113: gm | E113: =$C$113-$C$112 -> 0
A114: ='Weight sheet'!$B$61 -> Ojive Forward Fairing | B114: ='Weight sheet'!$C$61 -> ?? | C114: ='Weight sheet'!$D$61 -> ?? | D114: ='Weight sheet'!$F$61 -> 0 | E114: ='Weight sheet'!$H$61 -> 0 | F114: =$E$114*$D$114 -> 0 | G114: 30.72 | H114: =$G$114*2.54 -> 78.0288 | I114: =$F$114*$H$114 -> 0 | J114: =$E$114/Fiberglass_Density -> 0 | K114: =$J$114*$D$114 -> 0 | L114: =$G$114 -> 30.72 | M114: =$L$114*2.54 -> 78.0288 | N114: =$K$114*$M$114 -> 0 | O114: 0 | P114: =$O$114*2.54 -> 0 | Q114: =$E$114*$P$114 -> 0 | R114: =$K$114*$P$114 -> 0
A115: ='Weight sheet'!$B$62 -> Detacable Fairing Nose | B115: ='Weight sheet'!$C$62 -> ?? | C115: ='Weight sheet'!$D$62 -> ?? | D115: ='Weight sheet'!$F$62 -> 0 | E115: ='Weight sheet'!$H$62 -> 0 | F115: =$E$115*$D$115 -> 0 | G115: 1.35 | H115: =$G$115*2.54 -> 3.429 | I115: =$F$115*$H$115 -> 0 | J115: =$E$115/Material!$B$21 -> 0 | K115: =$J$115*$D$115 -> 0 | L115: =$G$115 -> 1.35 | M115: =$L$115*2.54 -> 3.429 | N115: =$K$115*$M$115 -> 0 | O115: 0 | P115: =$O$115*2.54 -> 0 | Q115: =$F$115*$P$115 -> 0 | R115: =$K$115*$P$115 -> 0
A116: ='Weight sheet'!$B$63 -> Nose weight (5 hole) | B116: ='Weight sheet'!$C$63 -> ?? | C116: ='Weight sheet'!$D$63 -> 49844 | D116: ='Weight sheet'!$F$63 -> 0 | E116: ='Weight sheet'!$H$63 -> 0 | F116: =$E$116*$D$116 -> 0 | G116: 2.54 | H116: =$G$116*2.54 -> 6.4516 | I116: =$F$116*$H$116 -> 0 | J116: =$E$116/Brass_Density -> 0 | K116: =$J$116*$D$116 -> 0 | L116: =$G$116 -> 2.54 | M116: =$L$116*2.54 -> 6.4516 | N116: =$K$116*$M$116 -> 0 | O116: 0 | P116: =$O$116*2.54 -> 0 | Q116: =$F$116*$P$116 -> 0 | R116: =$K$116*$P$116 -> 0
A117: ='Weight sheet'!$B$64 -> Nose weight to detachable nose screws | B117: ='Weight sheet'!$C$64 -> 4199435 | C117: ='Weight sheet'!$D$64 -> 0 | D117: ='Weight sheet'!$F$64 -> 0 | E117: ='Weight sheet'!$H$64 -> 0 | F117: =$E$117*$D$117 -> 0 | G117: 3.42 | H117: =$G$117*2.54 -> 8.6868 | I117: =$F$117*$H$117 -> 0 | J117: =$E$117/Brass_Density -> 0 | K117: =$J$117*$D$117 -> 0 | L117: =$G$117 -> 3.42 | M117: =$L$117*2.54 -> 8.6868 | N117: =$K$117*$M$117 -> 0 | O117: 0 | P117: =$O$117*2.54 -> 0 | Q117: =$F$117*$P$117 -> 0 | R117: =$K$117*$P$117 -> 0
A118: ='Weight sheet'!$B$65 -> Nose weight plates | B118: ='Weight sheet'!$C$65 -> 4199426 | C118: ='Weight sheet'!$D$65 -> 55448 | D118: 0 | E118: ='Weight sheet'!$H$65 -> 0 | F118: =$E$118*$D$118 -> 0 | G118: 4.88 | H118: =$G$118*2.54 -> 12.3952 | I118: =$F$118*$H$118 -> 0 | J118: =$E$118/Brass_Density -> 0 | K118: =$J$118*$D$118 -> 0 | L118: =$G$118 -> 4.88 | M118: =$L$118*2.54 -> 12.3952 | N118: =$K$118*$M$118 -> 0 | O118: 0 | P118: =$O$118*2.54 -> 0 | Q118: =$F$118*$P$118 -> 0 | R118: =$K$118*$P$118 -> 0
A119: ='Weight sheet'!$B$66 -> (2x) 1/4-20 x 2" SHCS + 1/4 LW brass, nose plate to nose base (4 - 5 plates) | B119: ='Weight sheet'!$C$66 -> /4199135 | C119: ='Weight sheet'!$D$66 -> 55186 / 55253 | D119: 0 | E119: ='Weight sheet'!$H$66 -> 0 | F119: =$E$119*$D$119 -> 0 | G119: 4.89 | H119: =$G$119*2.54 -> 12.4206 | I119: =$F$119*$H$119 -> 0 | J119: =$E$119/Brass_Density -> 0 | K119: =$J$119*$D$119 -> 0 | L119: =$G$119 -> 4.89 | M119: =$L$119*2.54 -> 12.4206 | N119: =$K$119*$M$119 -> 0 | O119: 0 | P119: =$O$119*2.54 -> 0 | Q119: =$F$119*$P$119 -> 0 | R119: =$K$119*$P$119 -> 0
A120: ='Weight sheet'!$B$67 -> (2x) 1/4-20 x 1.5" SHCS + 1/4 LW brass, nose plate to nose base (2 -3 plates) | B120: ='Weight sheet'!$C$67 -> 4199112 / 4199135 | C120: ='Weight sheet'!$D$67 -> 55185 / 55253 | D120: 0 | E120: ='Weight sheet'!$H$67 -> 0 | F120: =$E$120*$D$120 -> 0 | G120: 4.64 | H120: =$G$120*2.54 -> 11.7856 | I120: =$F$120*$H$120 -> 0 | J120: =$E$120/Brass_Density -> 0 | K120: =$J$120*$D$120 -> 0 | L120: =$G$120 -> 4.64 | M120: =$L$120*2.54 -> 11.7856 | N120: =$K$120*$M$120 -> 0 | O120: 0 | P120: =$O$120*2.54 -> 0 | Q120: =$F$120*$P$120 -> 0 | R120: =$K$120*$P$120 -> 0
A121: ='Weight sheet'!$B$68 -> (2x) 1/4-20 x .75" SHCS + 1/4 LW brass, nose plate to nose base (1 plate) | B121: ='Weight sheet'!$C$68 -> /4199135 | C121: ='Weight sheet'!$D$68 -> 55473 / 55253 | D121: 0 | E121: ='Weight sheet'!$H$68 -> 0 | F121: =$E$121*$D$121 -> 0 | G121: 4.39 | H121: =$G$121*2.54 -> 11.1506 | I121: =$F$121*$H$121 -> 0 | J121: =$E$121/Brass_Density -> 0 | K121: =$J$121*$D$121 -> 0 | L121: =$G$121 -> 4.39 | M121: =$L$121*2.54 -> 11.1506 | N121: =$K$121*$M$121 -> 0 | O121: 0 | P121: =$O$121*2.54 -> 0 | Q121: =$F$121*$P$121 -> 0 | R121: =$K$121*$P$121 -> 0
A123: ='Weight sheet'!$B$70 -> Assy., Standard Aft Fairing | B123: ='Weight sheet'!$C$70 -> 4199434 | C123: ='Weight sheet'!$D$70 -> 55497
B124: Subtotal Weight | C124: =IF('Weight sheet'!$F$73=1,(SUM($F$126:$F$136,$F$152:$F$208,$F$221:$F$262)),0) -> 5736.7 | D124: gm | E124: diff
B125: Scale Weight | C125: ='Weight sheet'!$H$72 -> 5741 | D125: gm | E125: =$C$125-$C$124 -> 4.3
A126: ='Weight sheet'!$B$73 -> Aft Fairing | B126: ='Weight sheet'!$C$73 -> 4199495 | C126: ='Weight sheet'!$D$73 -> 56972 | D126: ='Weight sheet'!$F$73 -> 1 | E126: ='Weight sheet'!$H$73 -> 2005 | F126: =$E$126*$D$126 -> 2005 | G126: 54.87 | H126: =$G$126*2.54 -> 139.3698 | I126: =$F$126*$H$126 -> 279436.449 | J126: =$F$126/Fiberglass_Density -> 1297.188885 | K126: =$J$126*$D$126 -> 1297.188885 | L126: =$G$126 -> 54.87 | M126: =$L$126*2.54 -> 139.3698 | N126: =$K$126*$M$126 -> 180788.9555 | O126: -0.02 | P126: =$O$126*2.54 -> -0.0508 | Q126: =$F$126*$P$126 -> -101.854 | R126: =$K$126*$P$126 -> -65.89719535
A127: ='Weight sheet'!$B$74 -> Wing, Starboard (1m) | B127: ='Weight sheet'!$C$74 -> 4199438 | C127: ='Weight sheet'!$D$74 -> 56751 | D127: ='Weight sheet'!$F$74 -> 1 | E127: ='Weight sheet'!$H$74 -> 644.9 | F127: =$E$127*$D$127 -> 644.9 | G127: =$H$127/2.54 -> 51.45669291 | H127: 130.7 | I127: =$F$127*$H$127 -> 84288.43 | J127: =$D$127*641.6 -> 641.6 | K127: =$J$127*$D$127 -> 641.6 | L127: =$G$127 -> 51.45669291 | M127: =$H$127 -> 130.7 | N127: =$K$127*$M$127 -> 83857.12 | O127: 0 | P127: =$O$127*2.54 -> 0 | Q127: =$F$127*$P$127 -> 0 | R127: =$K$127*$P$127 -> 0
A128: ='Weight sheet'!$B$75 -> Wing, Port (1 m) | B128: ='Weight sheet'!$C$75 -> 4199438 | C128: ='Weight sheet'!$D$75 -> 56751 | D128: ='Weight sheet'!$F$75 -> 1 | E128: ='Weight sheet'!$H$75 -> 645.4 | F128: =$E$128*$D$128 -> 645.4 | G128: =$H$128/2.54 -> 51.45669291 | H128: 130.7 | I128: =$F$128*$H$128 -> 84353.78 | J128: =$D$128*641.6 -> 641.6 | K128: =$J$128*$D$128 -> 641.6 | L128: =$G$128 -> 51.45669291 | M128: =$H$128 -> 130.7 | N128: =$K$128*$M$128 -> 83857.12 | O128: 0 | P128: =$O$128*2.54 -> 0 | Q128: =$F$128*$P$128 -> 0 | R128: =$K$128*$P$128 -> 0
A129: ='Weight sheet'!$B$76 -> (16x) 6-32 x 3/8 FHMS (WING SCREWS) | B129: ='Weight sheet'!$C$76 -> 4199270 | C129: ='Weight sheet'!$D$76 -> 56912 | D129: ='Weight sheet'!$F$76 -> 1 | E129: ='Weight sheet'!$H$76 -> 10.4 | F129: =$E$129*$D$129 -> 10.4 | G129: 50 | H129: =$G$129*2.54 -> 127 | I129: =$F$129*$H$129 -> 1320.8 | J129: =$E$129/SS_Density -> 1.295627258 | K129: =$J$129*$D$129 -> 1.295627258 | L129: =$G$129 -> 50 | M129: =$L$129*2.54 -> 127 | N129: =$K$129*$M$129 -> 164.5446618 | O129: 0 | P129: =$O$129*2.54 -> 0 | Q129: =$F$129*$P$129 -> 0 | R129: =$K$129*$P$129 -> 0
A130: ='Weight sheet'!$B$77 -> Rudder | B130: ='Weight sheet'!$C$77 -> 4199331 | C130: ='Weight sheet'!$D$77 -> 49839 | D130: ='Weight sheet'!$F$77 -> 1 | E130: ='Weight sheet'!$H$77 -> 122 | F130: =$E$130*$D$130 -> 122 | G130: 67.58 | H130: =$G$130*2.54 -> 171.6532 | I130: =$F$130*$H$130 -> 20941.6904 | J130: =$F$130/Material!$B$16 -> 100.8264463 | K130: =$J$130*$D$130 -> 100.8264463 | L130: =$G$130 -> 67.58 | M130: =$L$130*2.54 -> 171.6532 | N130: =$K$130*$M$130 -> 17307.18215 | O130: 0 | P130: =$O$130*2.54 -> 0 | Q130: =$F$130*$P$130 -> 0 | R130: =$K$130*$P$130 -> 0
A131: ='Weight sheet'!$B$78 -> (2x) 1/4-20 x 2" FHMS, rudder to rudder shoe | B131: ='Weight sheet'!$C$78 -> 4199237 | C131: ='Weight sheet'!$D$78 -> 55487 | D131: ='Weight sheet'!$F$78 -> 1 | E131: ='Weight sheet'!$H$78 -> 20.5 | F131: =$E$131*$D$131 -> 20.5 | G131: 67.75 | H131: =$G$131*2.54 -> 172.085 | I131: =$F$131*$H$131 -> 3527.7425 | J131: =$E$131/SS_Density -> 2.553880653 | K131: =$J$131*$D$131 -> 2.553880653 | L131: =$G$131 -> 67.75 | M131: =$L$131*2.54 -> 172.085 | N131: =$K$131*$M$131 -> 439.4845521 | O131: 0 | P131: =$O$131*2.54 -> 0 | Q131: =$F$131*$P$131 -> 0 | R131: =$K$131*$P$131 -> 0
A132: ='Weight sheet'!$B$79 -> Top panel | B132: ='Weight sheet'!$C$79 -> 4199496 | C132: ='Weight sheet'!$D$79 -> 57651 | D132: ='Weight sheet'!$F$79 -> 1 | E132: ='Weight sheet'!$H$79 -> 221 | F132: =$E$132*$D$132 -> 221 | G132: 54.3 | H132: =$G$132*2.54 -> 137.922 | I132: =$F$132*$H$132 -> 30480.762 | J132: =$E$132/Material!$B$16 -> 182.6446281 | K132: =$J$132*$D$132 -> 182.6446281 | L132: =$G$132 -> 54.3 | M132: =$L$132*2.54 -> 137.922 | N132: =$K$132*$M$132 -> 25190.7124 | O132: 1.65 | P132: =$O$132*2.54 -> 4.191 | Q132: =$F$132*$P$132 -> 926.211 | R132: =$K$132*$P$132 -> 765.4636364
A133: ='Weight sheet'!$B$80 -> Top panel (Bump Out) | B133: ='Weight sheet'!$C$80 -> ? | C133: ='Weight sheet'!$D$80 -> ? | D133: ='Weight sheet'!$F$80 -> 0 | E133: ='Weight sheet'!$H$80 -> 0 | F133: =$E$133*$D$133 -> 0 | G133: 54.3 | H133: =$G$133*2.54 -> 137.922 | I133: =$F$133*$H$133 -> 0 | J133: 232.4 | K133: =$J$133*$D$133 -> 0 | L133: =$G$133 -> 54.3 | M133: =$L$133*2.54 -> 137.922 | N133: =$K$133*$M$133 -> 0 | O133: 1.65 | P133: =$O$133*2.54 -> 4.191 | Q133: =$F$133*$P$133 -> 0 | R133: =$K$133*$P$133 -> 0
A134: ='Weight sheet'!$B$81 -> Bottom panel | B134: ='Weight sheet'!$C$81 -> 4199496 | C134: ='Weight sheet'!$D$81 -> 57651 | D134: ='Weight sheet'!$F$81 -> 1 | E134: ='Weight sheet'!$H$81 -> 200 | F134: =$E$134*$D$134 -> 200 | G134: 54.3 | H134: =$G$134*2.54 -> 137.922 | I134: =$F$134*$H$134 -> 27584.4 | J134: =$E$134/Material!$B$16 -> 165.2892562 | K134: =$J$134*$D$134 -> 165.2892562 | L134: =$G$134 -> 54.3 | M134: =$L$134*2.54 -> 137.922 | N134: =$K$134*$M$134 -> 22797.02479 | O134: -1.65 | P134: =$O$134*2.54 -> -4.191 | Q134: =$F$134*$P$134 -> -838.2 | R134: =$K$134*$P$134 -> -692.7272727
A135: ='Weight sheet'!$B$82 -> Bottom panel (Bump Out) | B135: ='Weight sheet'!$C$82 -> ? | C135: ='Weight sheet'!$D$82 -> ? | D135: ='Weight sheet'!$F$82 -> 0 | E135: ='Weight sheet'!$H$82 -> 0 | F135: =$E$135*$D$135 -> 0 | G135: 0 | H135: =$G$135*2.54 -> 0 | I135: =$F$135*$H$135 -> 0 | J135: =$E$135/Material!$B$16 -> 0 | K135: =$J$135*$D$135 -> 0 | L135: =$G$135 -> 0 | M135: =$L$135*2.54 -> 0 | N135: =$K$135*$M$135 -> 0 | O135: 0 | P135: =$O$135*2.54 -> 0 | Q135: =$F$135*$P$135 -> 0 | R135: =$K$135*$P$135 -> 0
A136: ='Weight sheet'!$B$83 -> Panel screws - (18) FHMS 6-32 x .375 | B136: ='Weight sheet'!$C$83 -> 4205790 | C136: ='Weight sheet'!$D$83 -> 57671 | D136: ='Weight sheet'!$F$83 -> 1 | E136: ='Weight sheet'!$H$83 -> 17.4 | F136: =$E$136*$D$136 -> 17.4 | G136: 54.3 | H136: =$G$136*2.54 -> 137.922 | I136: =$F$136*$H$136 -> 2399.8428 | J136: =$F$136/SS_Density -> 2.167684066 | K136: =$J$136*$D$136 -> 2.167684066 | L136: =$G$136 -> 54.3 | M136: =$L$136*2.54 -> 137.922 | N136: =$K$136*$M$136 -> 298.9713218 | O136: 0 | P136: =$O$136*2.54 -> 0 | Q136: =$F$136*$P$136 -> 0 | R136: =$K$136*$P$136 -> 0
A138: ='Weight sheet'!$B$85 -> Assy., Ojive Aft Fairing | B138: ='Weight sheet'!$C$85 -> 4199434 | C138: ='Weight sheet'!$D$85 -> 55497
B139: Subtotal Weight | C139: =IF('Weight sheet'!$F$88=1,(SUM($F$141:$F$208,$F$221:$F$262)),0) -> 0 | D139: gm | E139: diff
B140: Scale Weight | C140: ='Weight sheet'!$H$87 -> 0 | D140: gm | E140: =$C$140-$C$139 -> 0
A141: ='Weight sheet'!$B$89 -> Aft Fairing (Ogive) | B141: ='Weight sheet'!$C$89 -> ?? | C141: ='Weight sheet'!$D$89 -> ?? | D141: ='Weight sheet'!$F$89 -> 0 | E141: ='Weight sheet'!$H$89 -> 0 | F141: =$E$141*$D$141 -> 0 | G141: 62.24 | H141: =$G$141*2.54 -> 158.0896 | I141: =$F$141*$H$141 -> 0 | J141: =$F$141/Fiberglass_Density -> 0 | K141: =$J$141*$D$141 -> 0 | L141: =$G$141 -> 62.24 | M141: =$L$141*2.54 -> 158.0896 | N141: =$K$141*$M$141 -> 0 | O141: -0.008 | P141: =$O$141*2.54 -> -0.02032 | Q141: =$F$141*$P$141 -> 0 | R141: =$K$141*$P$141 -> 0
A142: ='Weight sheet'!$B$90 -> Joint Ring, Aft to Forward Fairing (bonded to Aft fairing before paint) | B142: ='Weight sheet'!$C$90 -> ?? | C142: ='Weight sheet'!$D$90 -> ?? | D142: ='Weight sheet'!$F$90 -> 0 | E142: ='Weight sheet'!$H$90 -> 0 | F142: =$E$142*$D$142 -> 0 | G142: 48.73 | H142: =$G$142*2.54 -> 123.7742 | I142: =$F$142*$H$142 -> 0 | J142: =$F$142/Alum_density -> 0 | K142: =$J$142*$D$142 -> 0 | L142: =$G$142 -> 48.73 | M142: =$L$142*2.54 -> 123.7742 | N142: =$K$142*$M$142 -> 0 | O142: 0 | P142: =$O$142*2.54 -> 0 | Q142: =$F$142*$P$142 -> 0 | R142: =$K$142*$P$142 -> 0
A143: ='Weight sheet'!$B$91 -> Wing, Starboard (Ogive) | B143: ='Weight sheet'!$C$91 -> ?? | C143: ='Weight sheet'!$D$91 -> ?? | D143: ='Weight sheet'!$F$91 -> 0 | E143: ='Weight sheet'!$H$91 -> 0 | F143: =$E$143*$D$143 -> 0 | G143: 56.25 | H143: 130.7 | I143: =$F$143*$H$143 -> 0 | J143: =$D$143*641.6 -> 0 | K143: =$J$143*$D$143 -> 0 | L143: =$G$143 -> 56.25 | M143: =$H$143 -> 130.7 | N143: =$K$143*$M$143 -> 0 | O143: 0 | P143: =$O$143*2.54 -> 0 | Q143: =$F$143*$P$143 -> 0 | R143: =$K$143*$P$143 -> 0
A144: ='Weight sheet'!$B$92 -> Wing, Port (Ogive) | B144: ='Weight sheet'!$C$92 -> ?? | C144: ='Weight sheet'!$D$92 -> ?? | D144: ='Weight sheet'!$F$92 -> 0 | E144: ='Weight sheet'!$H$92 -> 0 | F144: =$E$144*$D$144 -> 0 | G144: 56.25 | H144: 130.7 | I144: =$F$144*$H$144 -> 0 | J144: =$D$144*641.6 -> 0 | K144: =$J$144*$D$144 -> 0 | L144: =$G$144 -> 56.25 | M144: =$H$144 -> 130.7 | N144: =$K$144*$M$144 -> 0 | O144: 0 | P144: =$O$144*2.54 -> 0 | Q144: =$F$144*$P$144 -> 0 | R144: =$K$144*$P$144 -> 0
A145: ='Weight sheet'!$B$93 -> (16x) 6-32 x 3/8 FHMS (WING SCREWS) | B145: ='Weight sheet'!$C$93 -> 4199270 | C145: ='Weight sheet'!$D$93 -> 56912 | D145: ='Weight sheet'!$F$93 -> 0 | E145: ='Weight sheet'!$H$93 -> 0 | F145: =$E$145*$D$145 -> 0 | G145: 55.71 | H145: =$G$145*2.54 -> 141.5034 | I145: =$F$145*$H$145 -> 0 | J145: =$E$145/SS_Density -> 0 | K145: =$J$145*$D$145 -> 0 | L145: =$G$145 -> 55.71 | M145: =$L$145*2.54 -> 141.5034 | N145: =$K$145*$M$145 -> 0 | O145: 0 | P145: =$O$145*2.54 -> 0 | Q145: =$F$145*$P$145 -> 0 | R145: =$K$145*$P$145 -> 0
A146: ='Weight sheet'!$B$94 -> Rudder (Ogive) | B146: ='Weight sheet'!$C$94 -> ?? | C146: ='Weight sheet'!$D$94 -> ?? | D146: ='Weight sheet'!$F$94 -> 0 | E146: ='Weight sheet'!$H$94 -> 0 | F146: =$E$146*$D$146 -> 0 | G146: 75.5 | H146: =$G$146*2.54 -> 191.77 | I146: =$F$146*$H$146 -> 0 | J146: =$F$146/Material!$B$16 -> 0 | K146: =$J$146*$D$146 -> 0 | L146: =$G$146 -> 75.5 | M146: =$L$146*2.54 -> 191.77 | N146: =$K$146*$M$146 -> 0 | O146: 0 | P146: =$O$146*2.54 -> 0 | Q146: =$F$146*$P$146 -> 0 | R146: =$K$146*$P$146 -> 0
A147: ='Weight sheet'!$B$95 -> (2x) 1/4-20 x 2" FHMS, rudder to rudder shoe | B147: ='Weight sheet'!$C$95 -> 4199237 | C147: ='Weight sheet'!$D$95 -> 55487 | D147: ='Weight sheet'!$F$95 -> 0 | E147: ='Weight sheet'!$H$95 -> 0 | F147: =$E$147*$D$147 -> 0 | G147: 74.83 | H147: =$G$147*2.54 -> 190.0682 | I147: =$F$147*$H$147 -> 0 | J147: =$E$147/SS_Density -> 0 | K147: =$J$147*$D$147 -> 0 | L147: =$G$147 -> 74.83 | M147: =$L$147*2.54 -> 190.0682 | N147: =$K$147*$M$147 -> 0 | O147: 0 | P147: =$O$147*2.54 -> 0 | Q147: =$F$147*$P$147 -> 0 | R147: =$K$147*$P$147 -> 0
A148: ='Weight sheet'!$B$96 -> Top panel (Ogive) | B148: ='Weight sheet'!$C$96 -> ?? | C148: ='Weight sheet'!$D$96 -> ?? | D148: ='Weight sheet'!$F$96 -> 0 | E148: ='Weight sheet'!$H$96 -> 0 | F148: =$E$148*$D$148 -> 0 | G148: 58.62 | H148: =$G$148*2.54 -> 148.8948 | I148: =$F$148*$H$148 -> 0 | J148: =$E$148/Material!$B$16 -> 0 | K148: =$J$148*$D$148 -> 0 | L148: =$G$148 -> 58.62 | M148: =$L$148*2.54 -> 148.8948 | N148: =$K$148*$M$148 -> 0 | O148: 4.9 | P148: =$O$148*2.54 -> 12.446 | Q148: =$F$148*$P$148 -> 0 | R148: =$K$148*$P$148 -> 0
A149: ='Weight sheet'!$B$97 -> Bottom panel (Ogive) | B149: ='Weight sheet'!$C$97 -> ?? | C149: ='Weight sheet'!$D$97 -> ?? | D149: ='Weight sheet'!$F$97 -> 0 | E149: ='Weight sheet'!$H$97 -> 0 | F149: =$E$149*$D$149 -> 0 | G149: 58.62 | H149: =$G$149*2.54 -> 148.8948 | I149: =$F$149*$H$149 -> 0 | J149: =$E$149/Material!$B$16 -> 0 | K149: =$J$149*$D$149 -> 0 | L149: =$G$149 -> 58.62 | M149: =$L$149*2.54 -> 148.8948 | N149: =$K$149*$M$149 -> 0 | O149: -4.74 | P149: =$O$149*2.54 -> -12.0396 | Q149: =$F$149*$P$149 -> 0 | R149: =$K$149*$P$149 -> 0
A150: ='Weight sheet'!$B$98 -> Panel screws - (18) FHMS 6-32 x .375 | B150: ='Weight sheet'!$C$98 -> 4205790 | C150: ='Weight sheet'!$D$98 -> 57671 | D150: ='Weight sheet'!$F$98 -> 0 | E150: ='Weight sheet'!$H$98 -> 0 | F150: =$E$150*$D$150 -> 0 | G150: 58.1 | H150: =$G$150*2.54 -> 147.574 | I150: =$F$150*$H$150 -> 0 | J150: =$F$150/SS_Density -> 0 | K150: =$J$150*$D$150 -> 0 | L150: =$G$150 -> 58.1 | M150: =$L$150*2.54 -> 147.574 | N150: =$K$150*$M$150 -> 0 | O150: 0 | P150: =$O$150*2.54 -> 0 | Q150: =$F$150*$P$150 -> 0 | R150: =$K$150*$P$150 -> 0
A152: ='Weight sheet'!$B$100 -> Assy., Antenna | B152: ='Weight sheet'!$C$100 -> 4199332 | C152: ='Weight sheet'!$D$100 -> 49841
B153: Subtotal Weight | C153: =SUM($F$155:$F$156) -> 549 | D153: gm | E153: diff
B154: Scale Weight | C154: ='Weight sheet'!$H$102 -> 549 | D154: gm | E154: =$C$154-$C$153 -> 0
A155: ='Weight sheet'!$B$103 -> Antenna Assembly GPSI (Shoe, mast, antenna, clamp, heat shrink, comm cable, dummy plug, dummy plug line, zip ties) | B155: ='Weight sheet'!$C$103 -> 4199393 / 4199395 / 4199089 / 4199352 /4199234 / 4199105 / 4199262 /4199266 /4199394 | C155: ='Weight sheet'!$D$103 -> 52336 / 52341 / 52454 / 52231 / 55474 /52481 / 56875 /56884 / 52340 | D155: ='Weight sheet'!$F$103 -> 1 | E155: ='Weight sheet'!$H$103 -> 549 | F155: =$E$155*$D$155 -> 549 | G155: 85 | H155: =$G$155*2.54 -> 215.9 | I155: =$F$155*$H$155 -> 118529.1 | J155: 355.5 | K155: =$J$155*$D$155 -> 355.5 | L155: 81.305 | M155: =$L$155*2.54 -> 206.5147 | N155: =$K$155*$M$155 -> 73415.97585 | O155: 0 | P155: =$O$155*2.54 -> 0 | Q155: =$F$155*$P$155 -> 0 | R155: =$K$155*$P$155 -> 0
A156: Cap (DGO protector during build - do not weigh) | C156: 52481 | D156: 0 | E156: NA
A158: ='Weight sheet'!$B$106 -> Assy., Aanderaa Optode Oxygen Sensor | B158: ='Weight sheet'!$C$106 -> 4196239 | C158: ='Weight sheet'!$D$106 -> 55481
B159: Subtotal Weight | C159: =SUM($F$161:$F$161) -> 395 | D159: gm | E159: diff
B160: Scale Weight | C160: ='Weight sheet'!$H$108 -> 395 | D160: gm | E160: =$C$160-$C$159 -> 0
A161: ='Weight sheet'!$B$109 -> O2 Sensor Assy. (Aanderaa optode, mount base, SS hose clamp, (2x) 8-32 x 5/8 FHMS, (2x) 8-32 nylok) | B161: ='Weight sheet'!$C$109 -> 4199035 / 4205811 / 4199129 / 4199163 / 4199130 | C161: ='Weight sheet'!$D$109 -> 52220 / 56905 / 55245 / 55321 / 55246 | D161: ='Weight sheet'!$F$109 -> 1 | E161: ='Weight sheet'!$H$109 -> 395 | F161: =$E$161*$D$161 -> 395 | G161: 57.48 | H161: =$G$161*2.54 -> 145.9992 | I161: =$F$161*$H$161 -> 57669.684 | J161: 105.22 | K161: =$J$161*$D$161 -> 105.22 | L161: =$G$161 -> 57.48 | M161: =$L$161*2.54 -> 145.9992 | N161: =$K$161*$M$161 -> 15362.03582 | O161: 4.5 | P161: =$O$161*2.54 -> 11.43 | Q161: =$F$161*$P$161 -> 4514.85 | R161: =$K$161*$P$161 -> 1202.6646
A163: ='Weight sheet'!$B$112 -> Assy., SBE 43f Oxygen Sensor (Not Pumped) | B163: ='Weight sheet'!$C$112 -> 4192455 | C163: ='Weight sheet'!$D$112 -> 55482
B164: Subtotal Weight | C164: =SUM($F$166:$F$168) -> 366.4 | D164: gm | E164: diff
B165: Scale Weight | C165: ='Weight sheet'!$H$114 -> 366.4 | D165: gm | E165: =$C$165-$C$164 -> 0
A166: ='Weight sheet'!$B$115 -> O2 Sensor Assy. (O2 sensor, Plenum, (2x) 6-32 x 5/8 SHCS - plenum to sensor, O2 bracket, (2x) 8-32 x 5/8 FHMS - bracket to aft fairing, (2x) SS hose clamp) | B166: ='Weight sheet'!$C$115 -> 4199047 / 4199435 / 4199129 /4199489 / 4199269 | C166: ='Weight sheet'!$D$115 -> 52356 / 55518/ 55245 / 56906 / 56911 | D166: ='Weight sheet'!$F$115 -> 1 | E166: ='Weight sheet'!$H$115 -> 312.6 | F166: =$E$166*$D$166 -> 312.6 | G166: 56.37 | H166: =$G$166*2.54 -> 143.1798 | I166: =$F$166*$H$166 -> 44758.00548 | J166: 164.7 | K166: =$J$166*$D$166 -> 164.7 | L166: =$G$166 -> 56.37 | M166: =$L$166*2.54 -> 143.1798 | N166: =$K$166*$M$166 -> 23581.71306 | O166: 2.5 | P166: =$O$166*2.54 -> 6.35 | Q166: =$F$166*$P$166 -> 1985.01 | R166: =$K$166*$P$166 -> 1045.845
A167: ='Weight sheet'!$B$117 -> O2 Sensor Cable Assembly | B167: ='Weight sheet'!$C$117 -> 4199353 | C167: ='Weight sheet'!$D$117 -> 52236 | D167: ='Weight sheet'!$F$117 -> 1 | E167: ='Weight sheet'!$H$117 -> 53.8 | F167: =$E$167*$D$167 -> 53.8 | G167: 50 | H167: =$G$167*2.54 -> 127 | I167: =$F$167*$H$167 -> 6832.6 | J167: 29 | K167: =$J$167*$D$167 -> 29 | L167: =$G$167 -> 50 | M167: =$L$167*2.54 -> 127 | N167: =$K$167*$M$167 -> 3683 | O167: 2 | P167: =$O$167*2.54 -> 5.08 | Q167: =$F$167*$P$167 -> 273.304 | R167: =$K$167*$P$167 -> 147.32
A168: ='Weight sheet'!$B$118 -> Plug assy, SBE 43f plenum | B168: ='Weight sheet'!$C$118 -> 4199435 | C168: ='Weight sheet'!$D$118 -> 55518 | D168: ='Weight sheet'!$F$118 -> 0 | E168: ='Weight sheet'!$G$118 -> NA
A170: ='Weight sheet'!$B$120 -> Assy., WET Labs Optical - FWD Hole - (Bump OUT) | B170: ='Weight sheet'!$C$120 -> 4192457 | C170: ='Weight sheet'!$D$120 -> 55521
B171: Subtotal Weight | C171: =SUM($E$173) -> 0 | D171: gm | E171: diff
B172: Scale Weight | C172: ='Weight sheet'!$H$122 -> 241 | D172: gm | E172: =$C$172-$C$171 -> 241
A173: ='Weight sheet'!$B$123 -> Wet Labs sensor Assy. (WL Triplet sensor, Bracket (BUMP), (2x) 6-32 x .625 SHCS - sensor clamp, 6-32 x 0.375 THCS) | B173: ='Weight sheet'!$C$123 -> 4199039 / 4295315 / 4199120 / 4205790 | C173: ='Weight sheet'!$D$123 -> 0 | D173: ='Weight sheet'!$F$123 -> 0 | E173: ='Weight sheet'!$H$123 -> 0 | F173: =$E$173*$D$173 -> 0 | G173: 53.025 | H173: =$G$173*2.54 -> 134.6835 | I173: =$F$173*$H$173 -> 0 | J173: =209+59.98 -> 268.98 | K173: =$J$173*$D$173 -> 0 | L173: =$G$173 -> 53.025 | M173: =$L$173*2.54 -> 134.6835 | N173: =$K$173*$M$173 -> 0 | O173: -1.237 | P173: =$O$173*2.54 -> -3.14198 | Q173: =$F$173*$P$173 -> 0 | R173: =$K$173*$P$173 -> 0
A175: ='Weight sheet'!$B$126 -> Assy., WET Labs Optical - aft hole | B175: ='Weight sheet'!$C$126 -> 4192457 | C175: ='Weight sheet'!$D$126 -> 55521
B176: Subtotal Weight | C176: =SUM($E$178) -> 238.2 | D176: gm | E176: diff
B177: Scale Weight | C177: ='Weight sheet'!$H$128 -> 269 | D177: gm | E177: =$C$177-$C$176 -> 30.8
A178: ='Weight sheet'!$B$129 -> Wet Labs sensor Assy. (WL Triplet sensor, (2x) Wet labs sensor clamp, (2x) 8-32 x 5/8 FHMS - sensor clamp to fairing) | B178: ='Weight sheet'!$C$129 -> 4199039 / 4199388 / 4199129 | C178: ='Weight sheet'!$D$129 -> 52296 / 52312 / 55245 | D178: ='Weight sheet'!$F$129 -> 1 | E178: ='Weight sheet'!$H$129 -> 238.2 | F178: =$E$178*$D$178 -> 238.2 | G178: 62.33 | H178: =$G$178*2.54 -> 158.3182 | I178: =$F$178*$H$178 -> 37711.39524 | J178: 178.8 | K178: =$J$178*$D$178 -> 178.8 | L178: =$G$178 -> 62.33 | M178: =$L$178*2.54 -> 158.3182 | N178: =$K$178*$M$178 -> 28307.29416 | O178: -1.237 | P178: =$O$178*2.54 -> -3.14198 | Q178: =$F$178*$P$178 -> -748.419636 | R178: =$K$178*$P$178 -> -561.786024
A179: ='Weight sheet'!$B$131 -> Cover, WL sensor used in shipping | B179: ='Weight sheet'!$C$131 -> 4199254 | C179: ='Weight sheet'!$D$131 -> 55520 | D179: 0 | E179: NA
A181: ='Weight sheet'!$B$133 -> Assy., WET Labs Optical - Dual Hole Closest to PUPA | B181: ='Weight sheet'!$C$133 -> 4192457 | C181: ='Weight sheet'!$D$133 -> 55521
B182: Subtotal Weight | C182: =SUM($E$184) -> 249 | D182: gm | E182: diff
B183: Scale Weight | C183: ='Weight sheet'!$H$135 -> 249 | D183: gm | E183: =$C$183-$C$182 -> 0
A184: ='Weight sheet'!$B$136 -> Wet Labs sensor Assy. (WL Triplet sensor, Bracket Ext mount, 6-32 x 0.625 SHCS, 2x 6-32 x 0.375in Truss Head Phillips) | B184: ='Weight sheet'!$C$136 -> 4199039 / 4295315 / 4199120 / 4205790 | C184: ='Weight sheet'!$D$136 -> 52296 / 52312 / 55245 | D184: ='Weight sheet'!$F$136 -> 1 | E184: ='Weight sheet'!$H$136 -> 249 | F184: =$E$184*$D$184 -> 249 | G184: 60.15 | H184: =$G$184*2.54 -> 152.781 | I184: =$F$184*$H$184 -> 38042.469 | J184: 178.8 | K184: =$J$184*$D$184 -> 178.8 | L184: =$G$184 -> 60.15 | M184: =$L$184*2.54 -> 152.781 | N184: =$K$184*$M$184 -> 27317.2428 | O184: -1.237 | P184: =$O$184*2.54 -> -3.14198 | Q184: =$F$184*$P$184 -> -782.35302 | R184: =$K$184*$P$184 -> -561.786024
A185: Cover, WL sensor used in shipping | B185: ='Weight sheet'!$C$138 -> 4199254 | C185: ='Weight sheet'!$D$138 -> 55520 | D185: 0 | E185: NA
A187: ='Weight sheet'!$B$140 -> Assy., SBE CTD & Pumped 43f Oxygen Sensor | B187: ='Weight sheet'!$C$140 -> 4295305 | C187: ='Weight sheet'!$D$140 -> 0
B188: Subtotal Weight | C188: =SUM($F$190:$F$195) -> 0 | D188: gm | E188: diff
B189: Scale Weight | C189: ='Weight sheet'!$H$142 -> 0 | D189: gm | E189: =$C$189-$C$188 -> 0
A190: ='Weight sheet'!$B$143 -> GPCTD 90688.007, Bracket CTD Rear, Bracket CTD Forward, 6-32 x 0.625in SHCS, 8-32 x 0.25in Pan Head, 6-32 x 0.375in Flat Head | B190: ='Weight sheet'!$C$143 -> 4272424 / 4289667 / 4289656 / 4199120 / 4233372 / 4199270 | C190: ='Weight sheet'!$D$143 -> ? | D190: ='Weight sheet'!$F$143 -> 0 | E190: ='Weight sheet'!$H$143 -> 0 | F190: =$E$190*$D$190 -> 0 | G190: =IF($D$126-1,55.178,55.5) -> 55.5 | H190: =$G$190*2.54 -> 140.97 | I190: =$F$190*$H$190 -> 0 | J190: 635 | K190: =$J$190*$D$190 -> 0 | L190: =$G$190 -> 55.5 | M190: =$L$190*2.54 -> 140.97 | N190: =$K$190*$M$190 -> 0 | O190: 3.795 | P190: =$O$190*2.54 -> 9.6393 | Q190: =$F$190*$P$190 -> 0 | R190: =$K$190*$P$190 -> 0
A191: ='Weight sheet'!$B$144 -> GPCTD PUMP PWR Cable, GPCTD PWR/Serial Cable | B191: ='Weight sheet'!$C$144 -> 4293654 / 4274285 | C191: ='Weight sheet'!$D$144 -> ? | D191: ='Weight sheet'!$F$144 -> 0 | E191: ='Weight sheet'!$H$144 -> 0 | F191: =$E$191*$D$191 -> 0 | G191: =IF($D$126-1,55.18,57) -> 57 | H191: =$G$191*2.54 -> 144.78 | I191: =$F$191*$H$191 -> 0 | J191: 130 | K191: =$J$191*$D$191 -> 0 | L191: =$G$191 -> 57 | M191: =$L$191*2.54 -> 144.78 | N191: =$K$191*$M$191 -> 0 | O191: 0 | P191: =$O$191*2.54 -> 0 | Q191: =$F$191*$P$191 -> 0 | R191: =$K$191*$P$191 -> 0
A192: ='Weight sheet'!$B$145 -> TUBING 2x 3/8in id x 1/2" od, 2x 1/2" id x 3/4" od | B192: ='Weight sheet'!$C$145 -> 4291710 / 4291709 | C192: ='Weight sheet'!$D$145 -> ? | D192: ='Weight sheet'!$F$145 -> 0 | E192: ='Weight sheet'!$H$145 -> 0 | F192: =$E$192*$D$192 -> 0 | G192: =IF($D$126-1,59.46,60) -> 60 | H192: =$G$192*2.54 -> 152.4 | I192: =$F$192*$H$192 -> 0 | J192: 60 | K192: =$J$192*$D$192 -> 0 | L192: =$G$192 -> 60 | M192: =$L$192*2.54 -> 152.4 | N192: =$K$192*$M$192 -> 0 | O192: 0 | P192: =$O$192*2.54 -> 0 | Q192: =$F$192*$P$192 -> 0 | R192: =$K$192*$P$192 -> 0
A193: ='Weight sheet'!$B$147 -> GPCTD 90696 Pump, Pump Bracket, 6-32 x 0.375 Flat Head, Cable Ties | B193: ='Weight sheet'!$C$147 -> 4272326 / 4295332 / 4199270 / 4199110 | C193: ='Weight sheet'!$D$147 -> ? | D193: ='Weight sheet'!$F$147 -> 0 | E193: ='Weight sheet'!$H$147 -> 0 | F193: =$E$193*$D$193 -> 0 | G193: 64.3 | H193: =$G$193*2.54 -> 163.322 | I193: =$F$193*$H$193 -> 0 | J193: 286 | K193: =$J$193*$D$193 -> 0 | L193: =$G$193 -> 64.3 | M193: =$L$193*2.54 -> 163.322 | N193: =$K$193*$M$193 -> 0 | O193: 0 | P193: =$O$193*2.54 -> 0 | Q193: =$F$193*$P$193 -> 0 | R193: =$K$193*$P$193 -> 0
A194: ='Weight sheet'!$B$149 -> O2 Sensor | B194: ='Weight sheet'!$C$149 -> 0 | C194: ='Weight sheet'!$D$149 -> 0 | D194: ='Weight sheet'!$F$149 -> 0 | E194: ='Weight sheet'!$H$149 -> 0 | F194: =$E$194*$D$194 -> 0 | G194: 59.5 | H194: =$G$194*2.54 -> 151.13 | I194: =$F$194*$H$194 -> 0 | J194: 336 | K194: =$J$194*$D$194 -> 0 | L194: =$G$194 -> 59.5 | M194: =$L$194*2.54 -> 151.13 | N194: =$K$194*$M$194 -> 0 | O194: 0 | P194: =$O$194*2.54 -> 0 | Q194: =$F$194*$P$194 -> 0 | R194: =$K$194*$P$194 -> 0
A195: ='Weight sheet'!$B$150 -> O2 Sensor Cable Assembly | B195: ='Weight sheet'!$C$150 -> 4293655 | C195: ='Weight sheet'!$D$150 -> 0 | D195: ='Weight sheet'!$F$150 -> 0 | E195: ='Weight sheet'!$H$150 -> 0 | F195: =$E$195*$D$195 -> 0 | G195: =IF($D$126-1,50,50) -> 50 | H195: =$G$195*2.54 -> 127 | I195: =$F$195*$H$195 -> 0 | J195: 75 | K195: =$J$195*$D$195 -> 0 | L195: =$G$195 -> 50 | M195: =$L$195*2.54 -> 127 | N195: =$K$195*$M$195 -> 0 | O195: 0 | P195: =$O$195*2.54 -> 0 | Q195: =$F$195*$P$195 -> 0 | R195: =$K$195*$P$195 -> 0
A197: ='Weight sheet'!$B$153 -> Assy., Argos Mount | B197: ='Weight sheet'!$C$153 -> ? | C197: ='Weight sheet'!$D$153 -> ?
B198: Subtotal Weight | C198: =SUM($F$200:$F$201) -> 52.5 | D198: gm | E198: diff
B199: Scale Weight | C199: ='Weight sheet'!$H$155 -> 52.5 | D199: gm | E199: =$C$199-$C$198 -> 0
A200: ='Weight sheet'!$B$156 -> Argos Tag | B200: ='Weight sheet'!$C$156 -> ? | C200: ='Weight sheet'!$D$156 -> ? | D200: ='Weight sheet'!$F$156 -> 1 | E200: ='Weight sheet'!$H$156 -> 52.5 | F200: =$E$200*$D$200 -> 52.5 | G200: 67.58 | H200: =$G$200*2.54 -> 171.6532 | I200: =$F$200*$H$200 -> 9011.793 | J200: 34.2 | K200: =$J$200*$D$200 -> 34.2 | L200: =$G$200 -> 67.58 | M200: =$L$200*2.54 -> 171.6532 | N200: =$K$200*$M$200 -> 5870.53944 | O200: 0.75 | P200: =$O$200*2.54 -> 1.905 | Q200: =$F$200*$P$200 -> 100.0125 | R200: =$K$200*$P$200 -> 65.151
A201: ='Weight sheet'!$B$158 -> Argos Mount Hardware. (?) - Clamp to Antenna, 4 screws, 2 brackets | B201: ='Weight sheet'!$C$158 -> 2601, 4258110 | C201: ='Weight sheet'!$D$158 -> ? | D201: ='Weight sheet'!$F$158 -> 0 | E201: ='Weight sheet'!$H$158 -> 0 | F201: =$E$201*$D$201 -> 0 | G201: 67.58 | H201: =$G$201*2.54 -> 171.6532 | I201: =$F$201*$H$201 -> 0 | J201: 8.3 | K201: =$J$201*$D$201 -> 0 | L201: =$G$201 -> 67.58 | M201: =$L$201*2.54 -> 171.6532 | N201: =$K$201*$M$201 -> 0 | O201: 0.15 | P201: =$O$201*2.54 -> 0.381 | Q201: =$F$201*$P$201 -> 0 | R201: =$K$201*$P$201 -> 0
A203: ='Weight sheet'!$B$161 -> Assy., PAR, BSI - QSP2000 | B203: ='Weight sheet'!$C$161 -> ? | C203: ='Weight sheet'!$D$161 -> ?
B204: Subtotal Weight | C204: =SUM($F$206:$F$208) -> 0 | D204: gm | E204: diff
B205: Scale Weight | C205: ='Weight sheet'!$H$163 -> 0 | D205: gm | E205: =$C$205-$C$204 -> 0
A206: ='Weight sheet'!$B$164 -> SENSOR, PAR BSI - QSP-200 SERIES + SHIELD, LIGHT- PAR BSI + (1x) SCREW, FLAT HEAD- PHILLIPS, #6-32 X .375, SS | B206: ='Weight sheet'!$C$164 -> ? | C206: ='Weight sheet'!$D$164 -> ? | D206: ='Weight sheet'!$F$164 -> 0 | E206: ='Weight sheet'!$H$164 -> 0 | F206: =$E$206*$D$206 -> 0 | G206: 60.05 | H206: =$G$206*2.54 -> 152.527 | I206: =$F$206*$H$206 -> 0 | J206: 320 | K206: =$J$206*$D$206 -> 0 | L206: =$G$206 -> 60.05 | M206: =$L$206*2.54 -> 152.527 | N206: =$K$206*$M$206 -> 0 | O206: 2 | P206: =$O$206*2.54 -> 5.08 | Q206: =$F$206*$P$206 -> 0 | R206: =$K$206*$P$206 -> 0
A207: ='Weight sheet'!$B$166 -> BRACKET, PAR QSP 2000, INTERNAL + SCREW, (2x) TRUSS HEAD - PHILLIPS, #6-32 X .375, SS + CLAMP, HOSE - WORM DRIVE 2.0IN TO 3.0IN, SS | B207: ='Weight sheet'!$C$166 -> ? | C207: ='Weight sheet'!$D$166 -> ? | D207: ='Weight sheet'!$F$166 -> 0 | E207: ='Weight sheet'!$H$166 -> 0 | F207: =$E$207*$D$207 -> 0 | G207: 62.1 | H207: =$G$207*2.54 -> 157.734 | I207: =$F$207*$H$207 -> 0 | J207: 26 | K207: =$J$207*$D$207 -> 0 | L207: =$G$207 -> 62.1 | M207: =$L$207*2.54 -> 157.734 | N207: =$K$207*$M$207 -> 0 | O207: 1 | P207: =$O$207*2.54 -> 2.54 | Q207: =$F$207*$P$207 -> 0 | R207: =$K$207*$P$207 -> 0
A208: ='Weight sheet'!$B$167 -> ASSY, CABLE - PAR SENSOR INTERFACE | B208: ='Weight sheet'!$C$167 -> ? | C208: ='Weight sheet'!$D$167 -> ? | D208: ='Weight sheet'!$F$167 -> 0 | E208: ='Weight sheet'!$H$167 -> 0 | F208: =$E$208*$D$208 -> 0 | G208: 55 | H208: =$G$208*2.54 -> 139.7 | I208: =$F$208*$H$208 -> 0 | J208: 3.5 | K208: =$J$208*$D$208 -> 0 | L208: =$G$208 -> 55 | M208: =$L$208*2.54 -> 139.7 | N208: =$K$208*$M$208 -> 0 | O208: 0 | P208: =$O$208*2.54 -> 0 | Q208: =$F$208*$P$208 -> 0 | R208: =$K$208*$P$208 -> 0
A210: ='Weight sheet'!$B$169 -> Assy., Radiation Detector | B210: ='Weight sheet'!$C$169 -> 4314372 | C210: ='Weight sheet'!$D$169 -> ?
B211: Subtotal Weight | C211: =SUM($F$213:$F$215) -> 0 | D211: gm | E211: diff
B212: Scale Weight | C212: ='Weight sheet'!$H$171 -> 0 | D212: gm | E212: =$C$212-$C$211 -> 0
A213: ='Weight sheet'!$B$172 -> SENSOR, RADIATION DETECTOR | B213: ='Weight sheet'!$C$172 -> 4314373 | C213: ='Weight sheet'!$D$172 -> ? | D213: ='Weight sheet'!$F$172 -> 0 | E213: ='Weight sheet'!$H$172 -> 0 | F213: =$E$213*$D$213 -> 0 | G213: -1.88 | H213: =$G$213*2.54 -> -4.7752 | I213: =$F$213*$H$213 -> 0 | J213: 2886.827 | K213: =$J$213*$D$213 -> 0 | L213: =$G$213 -> -1.88 | M213: =$L$213*2.54 -> -4.7752 | N213: =$K$213*$M$213 -> 0 | O213: 0 | P213: =$O$213*2.54 -> 0 | Q213: =$F$213*$P$213 -> 0 | R213: =$K$213*$P$213 -> 0
A214: ='Weight sheet'!$B$174 -> BRACKET, SENSOR, RADIATION DETECTOR / BRACKET, FAIRING SUPPORT, RADIATION DETECTOR / (6x) SCREW, FLAT HEAD - PHILLIPS, #8-32X .625IN SS | B214: ='Weight sheet'!$C$174 -> 4318407 / 4334120 / 4199129 | C214: ='Weight sheet'!$D$174 -> ? | D214: ='Weight sheet'!$F$174 -> 0 | E214: ='Weight sheet'!$H$174 -> 0 | F214: =$E$214*$D$214 -> 0 | G214: 7.751 | H214: =$G$214*2.54 -> 19.68754 | I214: =$F$214*$H$214 -> 0 | J214: 262.52 | K214: =$J$214*$D$214 -> 0 | L214: =$G$214 -> 7.751 | M214: =$L$214*2.54 -> 19.68754 | N214: =$K$214*$M$214 -> 0 | O214: 0 | P214: =$O$214*2.54 -> 0 | Q214: =$F$214*$P$214 -> 0 | R214: =$K$214*$P$214 -> 0
A215: ='Weight sheet'!$B$175 -> FAIRING, SENSOR, RADIATION DETECTOR / (6x) SCREW, BUTTON HEAD - ALLEN, #10-32 X 1.5IN SS | B215: ='Weight sheet'!$C$175 -> 4318408 / 4254832 | C215: ='Weight sheet'!$D$175 -> ? | D215: ='Weight sheet'!$F$175 -> 0 | E215: ='Weight sheet'!$H$175 -> 0 | F215: =$E$215*$D$215 -> 0 | G215: 4.276 | H215: =$G$215*2.54 -> 10.86104 | I215: =$F$215*$H$215 -> 0 | J215: 167.31 | K215: =$J$215*$D$215 -> 0 | L215: =$G$215 -> 4.276 | M215: =$L$215*2.54 -> 10.86104 | N215: =$K$215*$M$215 -> 0 | O215: 0 | P215: =$O$215*2.54 -> 0 | Q215: =$F$215*$P$215 -> 0 | R215: =$K$215*$P$215 -> 0
A216: ='Weight sheet'!$B$176 -> ASSY, CABLE - RADIATION DETECTOR / 1.5IN WIDE ELECTRICAL TAPE | B216: ='Weight sheet'!$C$176 -> 4326393 / ?????? | C216: ='Weight sheet'!$D$176 -> 0 | D216: ='Weight sheet'!$F$176 -> 0 | E216: ='Weight sheet'!$H$176 -> 0 | F216: =$E$216*$D$216 -> 0 | G216: 30.693 | H216: =$G$216*2.54 -> 77.96022 | I216: =$F$216*$H$216 -> 0 | J216: 64.991 | K216: =$J$216*$D$216 -> 0 | L216: =$G$216 -> 30.693 | M216: =$L$216*2.54 -> 77.96022 | N216: =$K$216*$M$216 -> 0 | O216: 5 | P216: =$O$216*2.54 -> 12.7 | Q216: =$F$216*$P$216 -> 0 | R216: =$K$216*$P$216 -> 0
A218: ='Weight sheet'!$B$178 -> Assy, Nortek ADCP | B218: ='Weight sheet'!$C$178 -> 4314562 | C218: ='Weight sheet'!$D$178 -> ?
B219: Subtotal Weight | C219: =SUM($F$221:$F$222) -> 0 | D219: gm | E219: diff
B220: Scale Weight | C220: ='Weight sheet'!$H$180 -> 0 | D220: gm | E220: =$C$220-$C$219 -> 0
A221: ='Weight sheet'!$B$181 -> SENSOR, ACOUSTIC DOPPLER CURRENT PROFILER, NORTEK / BRACKET, SENSOR - ADCP / (4x) SCREW, SHCS, 10-32 X .500, SS / (3x) #6-32 X .375 TRUSS HEAD, SS | B221: ='Weight sheet'!$C$181 -> 4314562 / 4328749 / 2539 / ???? | C221: ='Weight sheet'!$D$181 -> ? | D221: ='Weight sheet'!$F$181 -> 0 | E221: ='Weight sheet'!$H$181 -> 0 | F221: =$E$221*$D$221 -> 0 | G221: 54.63 | H221: =$G$221*2.54 -> 138.7602 | I221: =$F$221*$H$221 -> 0 | J221: 1307.9 | K221: =$J$221*$D$221 -> 0 | L221: =$G$221 -> 54.63 | M221: =$L$221*2.54 -> 138.7602 | N221: =$K$221*$M$221 -> 0 | O221: -5.33 | P221: =$O$221*2.54 -> -13.5382 | Q221: =$F$221*$P$221 -> 0 | R221: =$K$221*$P$221 -> 0
A222: ='Weight sheet'!$B$183 -> SENSOR, CABLE | B222: ='Weight sheet'!$C$183 -> ????? | C222: ='Weight sheet'!$D$183 -> ? | D222: ='Weight sheet'!$F$183 -> 0 | E222: ='Weight sheet'!$H$183 -> 0 | F222: =$E$222*$D$222 -> 0 | G222: 54 | H222: =$G$222*2.54 -> 137.16 | I222: =$F$222*$H$222 -> 0 | J222: 51.5 | K222: =$J$222*$D$222 -> 0 | L222: =$G$222 -> 54 | M222: =$L$222*2.54 -> 137.16 | N222: =$K$222*$M$222 -> 0 | O222: 0 | P222: =$O$222*2.54 -> 0 | Q222: =$F$222*$P$222 -> 0 | R222: =$K$222*$P$222 -> 0
A224: ='Weight sheet'!$B$185 -> Assy, Imagenex ECHOSounder | B224: ='Weight sheet'!$C$185 -> 4321091 | C224: ='Weight sheet'!$D$185 -> ?
... 277 more rows

Sheet Lead Worksheet
A1: SG lead worksheet | B1: SG | C1: =Cal!$D$1 -> 512
B2: date | C2: 2015-05-04 | E2: Ballast for: | F2: OCEAN
B3: time | E3: Density: | F3: =rho_2 -> 1.0275
B4: who | C4: RH | E4: Thrust: | F4: ~250 | G4: cc
B6: Wt. goal | C6: Actual | M6: Actual
A7: Forward Fairing | B7: grams | C7: grams/pcs | M7: sum grams
A8: Nose plates (qty) | B8: =Trim!$D$68 -> 1 | C8: pc-1 | D8: pc-2 | E8: pc-3 | F8: pc-4 | G8: pc-5 | H8: pc-6 | I8: pc-7 | J8: pc-8 | K8: pc-9
A9: weights | B9: =IF(Trim!$D$62=1,Trim!$F$68,Trim!$F$118) -> 479.7 | C9: 246.5 | E9: 233.2 | M9: =SUM($C$9:$I$9) -> 479.7 | P9: =$B$9-$M$9 -> 0
A10: screws | B10: =IF(Trim!$D$62=1,SUM(Trim!$F$69:$F$71),SUM(Trim!$F$119:$F$121)) -> 20.6 | C10: 20.6 | M10: =SUM($C$10:$I$10) -> 20.6 | P10: =$B$10-$M$10 -> 0
J11: sum lead | M11: =SUM($M$9:$M$10) -> 500.3
H12: Scale weight of fwd fairing with nose plates added | I12: ='Weight sheet'!$H$10 -> 7744.3 | J12: gm
A14: Lead On Pupa At Fairing Joint Ring | C14: port/top | G14: middle | K14: stbrd/bottom
A16: Bottom side Weight
A17: weight tape | B17: =Trim!$F$76 -> 173.3 | G17: 173.3 | M17: =SUM($C$17:$K$17) -> 173.3 | P17: =$B$17-$M$17 -> 0
A18: rubber & tape | B18: =Trim!$F$77 -> 0 | M18: =SUM($C$18:$K$18) -> 0 | P18: =$B$18-$M$18 -> 0
A19: Port side Weight
A20: weight tape | B20: =Trim!$F$78 -> 0 | M20: =SUM($C$20:$K$20) -> 0 | P20: =$B$20-$M$20 -> 0
A21: rubber & tape | B21: =Trim!$F$79 -> 20.8 | G21: 20.8 | M21: =SUM($C$21:$K$21) -> 20.8 | P21: =$B$21-$M$21 -> 0
A22: Starboard side Weight
A23: weight tape | B23: =Trim!$F$80 -> 172.9 | G23: 172.9 | M23: =SUM($C$23:$K$23) -> 172.9 | P23: =$B$23-$M$23 -> 0
A24: rubber & tape | B24: =Trim!$F$81 -> 19.8 | G24: 19.8 | M24: =SUM($C$24:$K$24) -> 19.8 | P24: =$B$24-$M$24 -> 0
A25: Top side Weight
A26: weight tape | B26: =Trim!$F$82 -> 184.1 | G26: 184.1 | M26: =SUM($C$26:$K$26) -> 184.1 | P26: =$B$26-$M$26 -> 0 | R26: *FOAM
A27: rubber & tape | B27: =Trim!$F$83 -> 0 | M27: =SUM($C$27:$K$27) -> 0 | P27: =$B$27-$M$27 -> 0
A28: Trim Lead tape | B28: =Trim!$F$84 -> 10.1 | G28: 10.1 | M28: =SUM($C$28:$K$28) -> 10.1 | P28: =$B$28-$M$28 -> 0
A29: All around strap | B29: =Trim!$F$85 -> 0 | M29: =SUM($C$29:$K$29) -> 0 | P29: =$B$29-$M$29 -> 0
A30: Total tape at aft | B30: =Trim!$F$86 -> 14.6 | G30: 14.6 | M30: =SUM($C$30:$K$30) -> 14.6 | P30: =$B$30-$M$30 -> 0
K31: sum lead | M31: =SUM($M$16:$M$30) -> 595.6
H32: Scale weight of pupa with lead added: | I32: =Trim!$M$9 -> 39551.9 | J32: gm
C34: port/top | G34: middle | K34: stbrd/bottom
A35: Forward, bottom lead
A36: weight tape | B36: =Trim!$F$87 -> 0 | M36: =SUM($C$36:$K$36) -> 0 | P36: =$B$36-$M$36 -> 0
A37: rubber & tape | B37: =Trim!$F$88 -> 0 | M37: =SUM($C$37:$K$37) -> 0 | P37: =$B$37-$M$37 -> 0
A38: All around strap | B38: =Trim!$E$90 -> 0 | M38: =SUM($C$38:$K$38) -> 0 | P38: =$B$38-$M$38 -> 0
A39: Total tape | B39: =Trim!$E$89 -> 2 | M39: =SUM($C$39:$K$39) -> 0 | P39: =$B$39-$M$39 -> 2
J40: sum lead | M40: =SUM($M$35:$M$39) -> 0
H42: sum all variable wt. | I42: =SUM($M$31,$M$40) -> 595.6
B44: Whole glider weight - BEFORE PUTTING IN TANK or BOX - DRY!!! | I44: =total_scale_weight -> 52652.9 | J44: gm

Sheet Ballast
A1: Ballasting worksheet | C1: =Trim!$B$2 -> SG | D1: =Cal!$D$1 -> 512
B2: Date: | C2: =NOW() -> 2016-08-29T14:22:50.640 | D2: Time: | E2: =NOW() -> 2016-08-29T14:22:50.640
B4: Conversions | D4: Units
A5: VBD | B5: =1/$B$6 -> -4.076707325 | C5: counts/cc | D5: cc=cm3 | E5: gm=grams
B6: -0.245296 | C6: cc/counts | D6: counts=AtoD counts
A8: In tank to find original volume of SG | J8: Regression data From Ocean test
A9: Tank Temp | B9: 23.3 | C9: deg C | D9: SNUG 25 Mar 2015 | J9: Mass: | K9: =total_scale_weight -> 52652.9
A10: Tank Salinity (meas) | B10: 36 | C10: S/m | D10: SNUG 25 Mar 2015 | J10: Max volume: | M10: Max Volume for: | N10: ='Lead Worksheet'!$F$2 -> OCEAN | P10: xxxxx | Q10: cc
A11: Tank Salinity (corr) | B11: 36 | C11: ppt | D11: =35/36.311 -> 0.9638952384 | E11: ratio for tank salt | J11: Neutral density:
A12: Tank Density | B12: 1.0246 | C12: gram/cc | D12: calculated using web-calculator | J12: C_VBD:
A13: SG Mass | B13: 53274 | C13: grams | D13: measured with lead est. from orig. trim sheet | H13: all up scale weight! | J13: C_PITCH:
A14: SG Volume | B14: =B13/B12 -> 51994.92485 | C14: cc | D14: at neutral, when achieved relative to C_VBD | H14: 50565 | J14: C_ROLL_DIVE:
A15: Neutral by interation in tank | C15: 0 | D15: cc | J15: C_ROLL_CLIMB:
A16: Relative to set C_VBD | C16: 3059 | D16: counts | J16: Nose Wt *
A17: (Neil's table ) | B17: counts* | C17: VBD rel V0, cc | D17: Displacement | J17: Trim Lead - bottom *
A18: Vol max (oil outside) | B18: =Cal!$C$42 -> 500 | C18: =($B$18-$B$19)*$B$6 -> 627.712464 | D18: =$H$14+$C$18 -> 51192.71246 | E18: cc (pos. floats) | J18: EPDM base - bottom *
A19: Vol neutral | B19: =$C$16+($C$15*$B$5) -> 3059 | C19: (obsv in tank) | D19: =$H$14 -> 50565 | E19: cc | J19: Trim - port side *
A20: Vol min (oil inside) | B20: =Cal!$C$43 -> 3960 | C20: =($B$20-$B$19)*$B$6 -> -221.011696 | D20: =$H$14+$C$20 -> 50343.9883 | E20: cc (neg. sinks) | J20: EPDM base - port *
A21: Max movable vol. | C21: =$C$18-$C$20 -> 848.72416 | J21: Trim Lead - starboard side *
J22: EPDM base - starboard *
J23: Trim Lead- top *
J24: EPDM base - top *
A25: New enviornment ballasting | J25: Trim Lead tape *
A26: SG Mass (observed) | B26: 52033 | D26: 5/17/13 jm | J26: (2) Straps *
A27: SG Vol max (obsv/est) | B27: 51148 | D27: 5/17/13 jm | J27: (2) black tape wraps over foam *
A28: SG Vol min | B28: =$B$27-$C$21 -> 50299.27584 | J28: Trim Lead fwd of bulkhead - bottom *
A29: New enivron density | B29: 1.0275 | C29: g/cc | D29: UH 5/10/13 | J29: Trim Lead tape *
A30: Goal for thrust | B30: 250 | C30: cc | D30: UH | J30: EPDM base fwd of bulkhead - bottom *
A31: New Vol neutral | B31: =$B$28+$B$30 -> 50549.27584 | C31: cc | D31: lead density | E31: 11.296 | F31: gm/cc | J31: Strap - fwd of bulkhead *
A32: Change mass by | B32: =($B$29*$B$31-$B$26)/(1-($B$29/11.296)) -> -102.986908 | C32: gm | D32: vol lead change | E32: =$B$32/$E$31 -> -9.117112957 | F32: cc | J32: Measured Thrust *
A33: Projected new mass | B33: =$B$26+$B$32 -> 51930.01309 | C33: gm | J33: * - filled in by Macro
A34: Proj. Vol. max | B34: =$B$27+$B$32/$E$31 -> 51138.88289 | C34: cc
A36: VBD points for new environ
A37: (Neil's table ) | B37: counts* | C37: VBD rel V0, cc | D37: Displacement
A38: Vol max | B38: =Cal!$C$42 -> 500 | C38: =($B$38-$B$39)*$B$6 -> 598.72416 | D38: =$D$39+$C$38+$E$32 -> 51138.88289 | E38: cc | J38: Customer Environment
A39: Vol neutral (C_VBD) | B39: =(($D$39-$B$28)*$B$5)+$B$40 -> 2940.823169 | C39: 0 | D39: =$B$31 -> 50549.27584 | E39: cc | J39: Density
A40: Vol min | B40: =Cal!$C$43 -> 3960 | C40: =($B$40-$B$39)*$B$6 -> -250 | D40: =$D$38-($C$38-$C$40) -> 50290.15873 | E40: cc | J40: Requested Thrust
A41: Max movable vol. | C41: =$C$38-$C$40 -> 848.72416
A42: Actual new mass | B42: =total_scale_weight -> 52652.9 | C42: gm
A43: Est. Vol. neutral | B43: =$B$42/$B$29 -> 51243.6983 | C43: cc
A44: Est. C_VBD | B44: =$B$39+($B$43-$D$39)*$B$5 -> 109.8660523 | C44: counts

Sheet Pres cal
A1: Pressure Sensor | C1: last updated | D1: 2014-11-03
A2: =Trim!$B$2 -> SG | B2: =Cal!$D$1 -> 512
A3: Manufacturer | B3: Paine
A4: Model # | B4: 211-75-710-05 | D4: Conversion to SG counts
A5: Serial # | B5: ='Weight sheet'!$H$470 -> 253669 | D5: A/D Ref Voltage | F5: 2.495
A6: Calibration date | B6: 2009-08-24 | D6: Volts/AD-count | F6: 1.487135887e-07
A7: A/D Gain | B7: 128 | C7: (Default value 128 for Paine - 64 for Druck) | D7: A/D Counts/Volt | F7: 6724335.07
A8: Atmos @ cal. | B8: 14.7 | C8: (Default value 14.7) | D8: Max counts (24 bit AD) | F8: =2^24 -> 16777216
A9: Temp @ cal. | B9: 0 | C9: (Default value 0) | D9: Excitation Voltage | F9: 5.000
A11: Paine calibration data from sheet delivered with sensor
A12: Excitation Voltage = 10.000V
A13: Response voltages in mV
A14: Pressure | B14: 0 deg C | D14: 30 deg C
A15: (PSIA) | B15: Increasing | C15: Decreasing | D15: Increasing | E15: Decreasing
A16: 0 | B16: 1.019660709 | C16: 1.03147243 | D16: 0.9770311388 | E16: 0.9926916721
A17: 300 | B17: 7.037493473 | C17: 7.047665954 | D17: 6.994501139 | E17: 7.016934567
A18: 600 | B18: 13.03934222 | C18: 13.052 | D18: 13.00407064 | E18: 13.025
A19: 900 | B19: 19.02163618 | C19: 19.03459839 | D19: 18.99983404 | E19: 19.01334411
A20: 1200 | B20: 24.98393916 | C20: 24.99616011 | D20: 24.97538363 | E20: 24.9793949
A21: 1500 | B21: 30.93625942 | D21: 30.9238733
A23: Averages of increasing and decreasing and adjusted for Seaglider 5.000V excitation voltage
A24: (PSIA) | B24: Average | D24: Average
A25: 0 | B25: =(($B$16+$C$16)/2)/2 -> 0.5127832848 | D25: =(($D$16+$E$16)/2)/2 -> 0.4924307027
A26: 300 | B26: =(($B$17+$C$17)/2)/2 -> 3.521289857 | D26: =(($D$17+$E$17)/2)/2 -> 3.502858926
A27: 600 | B27: =(($B$18+$C$18)/2)/2 -> 6.522835556 | D27: =(($D$18+$E$18)/2)/2 -> 6.507267659
A28: 900 | B28: =(($B$19+$C$19)/2)/2 -> 9.514058643 | D28: =(($D$19+$E$19)/2)/2 -> 9.503294537
A29: 1200 | B29: =(($B$20+$C$20)/2)/2 -> 12.49502482 | D29: =(($D$20+$E$20)/2)/2 -> 12.48869463
A30: 1500 | B30: =($B$21)/2 -> 15.46812971 | D30: =($D$21)/2 -> 15.46193665
A33: 0 Deg C | C33: 30 Deg C
A34: Pressure | B34: Output | C34: Pressure | D34: Output
A35: (PSIA) | B35: (A/D counts) | C35: (PSIA) | D35: (A/D counts)
A36: 0 | B36: =($B$25*$B$7)*$F$7/1000 -> 441360.2081 | C36: 0 | D36: =($D$25*$B$7)*$F$7/1000 -> 423842.4376
A37: 300 | B37: =($B$26*$B$7)*$F$7/1000 -> 3030826.608 | C37: 300 | D37: =($D$26*$B$7)*$F$7/1000 -> 3014962.832
A38: 600 | B38: =($B$27*$B$7)*$F$7/1000 -> 5614301.681 | C38: 600 | D38: =($D$27*$B$7)*$F$7/1000 -> 5600902.161
A39: 900 | B39: =($B$28*$B$7)*$F$7/1000 -> 8188891.928 | C39: 900 | D39: =($D$28*$B$7)*$F$7/1000 -> 8179627.103
A40: 1200 | B40: =($B$29*$B$7)*$F$7/1000 -> 10754653.9 | C40: 1200 | D40: =($D$29*$B$7)*$F$7/1000 -> 10749205.41
A41: 1500 | B41: =($B$30*$B$7)*$F$7/1000 -> 13313649.55 | C41: 1500 | D41: =($D$30*$B$7)*$F$7/1000 -> 13308319.09
A43: Slope Coefficient Units (PSIA/A-D )
A44: Intercept Coefficient (PSIA)
A45: 0 Deg C | C45: 30 Deg C
A46: Slope | B46: =SLOPE($A$36:$A$41,$B$36:$B$41) -> 0.0001165268599 | C46: Slope | D46: =SLOPE($C$36:$C$41,$D$36:$D$41) -> 0.0001164024201
A47: Intercept | B47: =INTERCEPT($A$36:$A$41,$B$36:$B$41) -> -52.94160989 | C47: Intercept | D47: =INTERCEPT($C$36:$C$41,$D$36:$D$41) -> -50.78771434
A50: Error Analysis 0 Deg | D50: Error Analysis 30 Deg
A51: Actual | B51: Calculated | C51: Error | D51: Actual | E51: Calculated | F51: Error
A52: (PSIA) | B52: (PSIA) | D52: (PSIA) | E52: (PSIA)
A53: 0 | B53: =$B$36*$B$46+$B$47 -> -1.511290747 | D53: 0 | E53: =$D$36*$D$46+$D$47 -> -1.451428855
A54: 300 | B54: =$B$37*$B$46+$B$47 -> 300.2310977 | C54: =($A$54-$B$54)/$A$54 -> -0.0007703257537 | D54: 300 | E54: =$D$37*$D$46+$D$47 -> 300.1612559 | F54: =($D$54-$E$54)/$D$54 -> -0.0005375195118
A55: 600 | B55: =$B$38*$B$46+$B$47 -> 601.2753357 | C55: =($A$55-$B$55)/$A$55 -> -0.002125559522 | D55: 600 | E55: =$D$38*$D$46+$D$47 -> 601.170852 | F55: =($D$55-$E$55)/$D$55 -> -0.00195141992
A56: 900 | B56: =$B$39*$B$46+$B$47 -> 901.2842528 | C56: =($A$56-$B$56)/$A$56 -> -0.001426947508 | D56: 900 | E56: =$D$39*$D$46+$D$47 -> 901.340676 | F56: =($D$56-$E$56)/$D$56 -> -0.001489640005
A57: 1200 | B57: =$B$40*$B$46+$B$47 -> 1200.264439 | C57: =($A$57-$B$57)/$A$57 -> -0.0002203655483 | D57: 1200 | E57: =$D$40*$D$46+$D$47 -> 1200.44581 | F57: =($D$57-$E$57)/$D$57 -> -0.0003715084445
A58: 1500 | B58: =$B$41*$B$46+$B$47 -> 1498.456166 | C58: =($A$58-$B$58)/$A$58 -> 0.001029222738 | D58: 1500 | E58: =$D$41*$D$46+$D$47 -> 1498.332835 | F58: =($D$58-$E$58)/$D$58 -> 0.001111443392
A60: Use these values for Seaglider Calibration Coefficients
A61: Slope Coefficient Units (PSIG/A-D )
A62: Intercept Coefficient (PSIG)
A63: 0 Deg C | D63: 30 Deg C
A64: Slope | B64: =$B$46 -> 0.0001165268599 | D64: Slope | E64: =$D$46 -> 0.0001164024201
A65: Intercept | B65: =$B$47-$B$8 -> -67.64160989 | D65: Intercept | E65: =$E$47-$B$8 -> -14.7
A66: Depth Offset | B66: =$B$65*0.685 -> -46.33450277 | D66: Depth Offset | E66: =$E$65*0.685 -> -10.0695

Sheet Tank _ PS notes
A1: Tank and Puget Sound Notes
A2: Seaglider | B2: =Cal!$D$1 -> 512
A3: Date | B3: Action
A4: xx/xx/xx

Sheet Maint
A1: Maintenance sheet
A2: MS | B2: =Trim!$C$2 -> 512
A3: Date | B3: Action
A4: xx/xx/xx

Sheet Motor Data
A1: Motor Data
B3: Main Pump Motor | F3: Boost Pump motor | J3: Roll Motor | N3: Pitch Motor | R3: Amp w/full mass shifter assy. orientation - nose down, full lift | U3: Amp of pitch system during Port Susan dives
A4: MS SN | B4: Burn in time (min): | C4: Amp @ start of burn in (mA): | D4: Amp @ end of burn in (mA): | E4: Amp w/main pump and oil (no load on bench) (mA): | F4: Burn in time (min): | G4: Amp @ start of burn in (mA): | H4: Amp @ end of burn in (mA): | I4: Amp w/micro pump (mA): | J4: Burn in time (min): | K4: Amp @ start of burn in (mA): | L4: Amp @ end of burn in (mA): | M4: Amp w/gear block assy. (mA): | N4: Burn in time (min): | O4: Amp @ start of burn in (mA): | P4: Amp @ end of burn in (mA): | Q4: Amp w/gear block assy. (mA): | R4: 100-cycle average time (sec): | S4: 100-cycle avg. current (mA) | T4: 100-cycle avg. current peak (mA) | U4: Initial flair maneuver (dive start) (mA) | V4: Surface maneuver (mA) | W4: Apogee maneuver (mid dive) (mA)
A5: ='Weight sheet'!$H$332 -> 0 | B5: 30 | C5: ='Weight sheet'!$F$332 -> 0 | D5: ='Weight sheet'!$G$332 -> 0
A6: =IF(ISBLANK('Weight sheet'!$H$351),'Weight sheet'!$H$368,'Weight sheet'!$H$351) -> 0 | F6: 30 | G6: =IF(ISBLANK('Weight sheet'!$F$351),'Weight sheet'!$F$368,'Weight sheet'!$F$351) -> 0 | H6: =IF(ISBLANK('Weight sheet'!$G$351),'Weight sheet'!$G$368,'Weight sheet'!$G$351) -> 0
A7: ='Weight sheet'!$H$468 -> 0 | J7: 30 | K7: ='Weight sheet'!$F$468 -> 0 | L7: ='Weight sheet'!$G$468 -> 0
A8: ='Weight sheet'!$H$467 -> 0 | N8: 30 | O8: ='Weight sheet'!$F$467 -> 0 | P8: ='Weight sheet'!$G$467 -> 0

Sheet Material
A1: Material Density | B1: MS | C1: =Trim!$C$2 -> 512
A2: Date: | B2: =NOW() -> 2016-08-29T14:22:50.640 | C2: Time: | D2: =NOW() -> 2016-08-29T14:22:50.640
A3: 6061 T6 Alum | B3: 2.713 | C3: gm/cc
A4: Lead | B4: 11.296 | C4: gm/cc
A5: Naval Brass | B5: 8.415 | C5: gm/cc
A6: Stainless Steel | B6: 8.027 | C6: gm/cc
A7: Polypropylene | B7: 0.9 | C7: gm/cc
A8: Fairing fiberglass density** | B8: =Trim!$M$30 -> 1.54565 | C8: gm/cc | D8: From Ross Jan15
A9: Zinc | B9: 7.1 | C9: gm/cc
A10: PVC Density | B10: 1.41 | C10: gm/cc
A11: Neoprene Density | B11: 1.23 | C11: gm/cc
A12: Hydraulic Oil* Density | B12: 0.8229 | C12: gm/cc
A13: PRC Wing Density | B13: 0.672 | C13: gm/cc
A14: EPDM sheet density | B14: 1.3936 | C14: gm/cc
A15: Nylon density | B15: 1.151 | C15: gm/cc
A16: Polycarbonate | B16: 1.21 | C16: gm/cc
A17: Duraform PA w/ Paint | B17: 1.0003 | C17: gm/cc
A18: Duraform PA | B18: 1 | C18: gm/cc
A19: syntactic foam density | B19: 0.42 | C19: gm/cc
A20: Urethane | B20: 1.1 | C20: gm/cc
A21: Delrin 150 | B21: 1.42 | C21: gm/cc
A22: HDPE | B22: 1.05 | C22: gm/cc
A25: ** vary to balance overall density of glider
A26: *Amsoil AWF-ISO15 (synthetic) specfic gravity is 0.8229gm/cc from product sheet 1/23/2009

Sheet sg_calib_constants (hidden)
A1: % Last edited on DATE
A2: % sg_calib_constants.m
A3: % values from spreadsheet for easy inclusion of glider params into diveplot.m, etc.
A5: % basic glider and mission params
A6: id_str | B6: =' | C6: =Cal!$D$1 -> 512 | D6: ';
A7: mission_title | B7: =' | C7: ='Lead Worksheet'!$F$2 -> OCEAN | D7: ';
A8: mass | B8: = | C8: ='Weight sheet'!$H$1/1000 -> 52.652 | D8: ; | E8: % kg (from sum on trim sheet)
A9: volmax | B9: = | C9: =Ballast!$P$10 -> xxxxx | D9: ; | E9: % cc (from ballast worksheet final table)
A10: rho0 | B10: = | C10: =IF(Ballast!$B$29=0,rho_2*1000,Ballast!$B$29*1000) -> 1027.5 | D10: ; | E10: % kg/m3 (from ballast worksheet for "new" environment)
A12: % initial hydrodynamic model params
A13: hd_a | B13: = | C13: 0.003836 | D13: ;
A14: hd_b | B14: = | C14: 0.010078 | D14: ;
A15: hd_c | B15: = | C15: 9.85e-06 | D15: ;
A16: therm_expan | B16: = | C16: 7.05e-05 | D16: ;
A17: temp_ref | B17: = | C17: 15 | D17: ;
A18: abs_compress | B18: = | C18: 4.18e-06 | D18: ;
A19: pitchbias | B19: = | C19: 0 | D19: ;
A21: % software limits from cal sheet:
A22: pitch_min_cnts | B22: = | C22: =Cal!$C$12 -> 182 | D22: ;
A23: pitch_max_cnts | B23: = | C23: =Cal!$C$13 -> 3917 | D23: ;
A24: roll_min_cnts | B24: = | C24: =Cal!$C$27 -> 255 | D24: ;
A25: roll_max_cnts | B25: = | C25: =Cal!$C$28 -> 3932 | D25: ;
A26: vbd_min_cnts | B26: = | C26: =Cal!$C$42 -> 500 | D26: ;
A27: vbd_max_cnts | B27: = | C27: =Cal!$C$43 -> 3960 | D27: ;
A28: vbd_cnts_per_cc | B28: = | C28: =Cal!$B$48 -> -4.076707325 | D28: ;
A30: % pump parameters
A31: pump_rate_intercept | B31: = | C31: 1.275 | D31: ;
A32: pump_rate_slope | B32: = | C32: -0.00015 | D32: ;
A33: pump_power_intercept | B33: = | C33: 17.4033 | D33: ;
A34: pump_power_slope | B34: = | C34: 0.017824 | D34: ;
A36: % CT sensors cal constants
A37: =IF(AND((LEN(Cal!$B$132)=1),Cal!$B$132=0),"%calibcomm","calibcomm") -> calibcomm | B37: =' | C37: =IF((AND((LEN(Cal!B132)=1),Cal!B132=0)),""," Serial #: " & Cal!B132 & " CAL: " &MONTH(Cal!B135)&DAY(Cal!B135)&RIGHT(YEAR(Cal!B135),2)) -> Serial #: 73 CAL: 123015 | D37: '; | E37: % Serial # and cal date
A38: =IF(AND((LEN(Cal!$B$132)=1),Cal!$B$132=0),"%t_g","t_g") -> t_g | B38: = | C38: =Cal!$D$137 -> 0.00429423343 | D38: ;
A39: =IF(AND((LEN(Cal!$B$132)=1),Cal!$B$132=0),"%t_h","t_h") -> t_h | B39: = | C39: =Cal!$D$138 -> 0.00062847037 | D39: ;
A40: =IF(AND((LEN(Cal!$B$132)=1),Cal!$B$132=0),"%t_i","t_i") -> t_i | B40: = | C40: =Cal!$D$139 -> 2.32398866e-05 | D40: ;
A41: =IF(AND((LEN(Cal!$B$132)=1),Cal!$B$132=0),"%t_j","t_j") -> t_j | B41: = | C41: =Cal!$D$140 -> 2.40966639e-06 | D41: ;
A42: =IF(AND((LEN(Cal!$B$132)=1),Cal!$B$132=0),"%c_g","c_g") -> c_g | B42: = | C42: =Cal!$B$137 -> -9.76951496 | D42: ;
A43: =IF(AND((LEN(Cal!$B$132)=1),Cal!$B$132=0),"%c_h","c_h") -> c_h | B43: = | C43: =Cal!$B$138 -> 1.08918934 | D43: ;
A44: =IF(AND((LEN(Cal!$B$132)=1),Cal!$B$132=0),"%c_i","c_i") -> c_i | B44: = | C44: =Cal!$B$139 -> 0.000788938554 | D44: ;
A45: =IF(AND((LEN(Cal!$B$132)=1),Cal!$B$132=0),"%c_j","c_j") -> c_j | B45: = | C45: =Cal!$B$140 -> 5.78720188e-06 | D45: ;
A46: =IF(AND((LEN(Cal!$B$132)=1),Cal!$B$132=0),"%cpcor","cpcor") -> cpcor | B46: = | C46: =Cal!$B$141 -> -9.57e-08 | D46: ;
A47: =IF(AND((LEN(Cal!$B$132)=1),Cal!$B$132=0),"%ctcor","ctcor") -> ctcor | B47: = | C47: =Cal!$B$142 -> 3.25e-06 | D47: ;
A48: =IF(AND((LEN(Cal!$B$132)=1),Cal!$B$132=0),"%sbe_cond_freq_min","sbe_cond_freq_min") -> sbe_cond_freq_min | B48: = | C48: =Cal!$B$143 -> 2.99161 | D48: ; | E48: % kHz, from cal for 0 salinity
A49: =IF(AND((LEN(Cal!$B$132)=1),Cal!$B$132=0),"%sbe_cond_freq_max","sbe_cond_freq_max") -> sbe_cond_freq_max | B49: = | C49: =Cal!$B$144 -> 8.00437 | D49: ; | E49: % kHz, est for greater than 34.9 sal max T
A50: =IF(AND((LEN(Cal!$B$132)=1),Cal!$B$132=0),"%sbe_temp_freq_min","sbe_temp_freq_min") -> sbe_temp_freq_min | B50: = | C50: =Cal!$D$143/1000 -> 2.904414 | D50: ; | E50: % kHz, from cal for 1 deg T
A51: =IF(AND((LEN(Cal!$B$132)=1),Cal!$B$132=0),"%sbe_temp_freq_max","sbe_temp_freq_max") -> sbe_temp_freq_max | B51: = | C51: =Cal!$D$144/1000 -> 5.565356 | D51: ; | E51: % kHz, from cal for 32.5 deg T
A53: % oxygen cal constants
A54: =IF(AND((LEN(Cal!B203)+(LEN(Cal!B240))=2),(Cal!B203)+((Cal!B240)=0)),"%comm_oxy_type","comm_oxy_type") -> comm_oxy_type | B54: =' | C54: =IF(AND((LEN(Cal!B203)+(LEN(Cal!B240))=2),((Cal!B203+Cal!B240)=0)),0,IF((Cal!B203>0),"SBE_43f","Pumped_SBE_43f")) -> SBE_43f | D54: '; | E54: % spec "SBE_43f" or "Pumped_SBE_43f"
A55: =IF(AND((LEN(Cal!B203)+(LEN(Cal!B240))=2),(Cal!B203)+((Cal!B240)=0)),"%calibcomm_oxygen","calibcomm_oxygen") -> calibcomm_oxygen | B55: =' | C55: =IF((C54)=0,0,IF(Cal!B203=0,("SN: "&Cal!B240&" CAL: "&IF(Cal!D237=0,0,MONTH(Cal!D237))&DAY(Cal!D237)&RIGHT(YEAR(Cal!D237),2)),("SN: "&Cal!B203&" CAL: "&IF(Cal!D200=0,0,MONTH(Cal!D200))&DAY(Cal!D200)&RIGHT(YEAR(Cal!D200),2)))) -> SN: 0221 CAL: 121815 | D55: '; | E55: % Serial # and cal date
A56: =IF(AND((LEN(Cal!B203)+(LEN(Cal!B240))=2),(Cal!B203)+((Cal!B240)=0)),"%Soc","Soc") -> Soc | B56: = | C56: =IF(Cal!$B$203=0,Cal!$D$239,Cal!$D$202) -> 0.00025239 | D56: ;
A57: =IF(AND((LEN(Cal!B203)+(LEN(Cal!B240))=2),(Cal!B203)+((Cal!B240)=0)),"%Foffset","Foffset") -> Foffset | B57: = | C57: =IF(Cal!$B$203=0,Cal!$D$243,Cal!$D$206) -> -826.68 | D57: ;
A58: =IF(AND((LEN(Cal!B203)+(LEN(Cal!B240))=2),(Cal!B203)+((Cal!B240)=0)),"%o_a","o_a") -> o_a | B58: = | C58: =IF(Cal!$B$203=0,Cal!$D$244,Cal!$D$207) -> -0.0047269 | D58: ;
A59: =IF(AND((LEN(Cal!B203)+(LEN(Cal!B240))=2),(Cal!B203)+((Cal!B240)=0)),"%o_b","o_b") -> o_b | B59: = | C59: =IF(Cal!$B$203=0,Cal!$D$245,Cal!$D$208) -> 0.00024574 | D59: ;
A60: =IF(AND((LEN(Cal!B203)+(LEN(Cal!B240))=2),(Cal!B203)+((Cal!B240)=0)),"%o_c","o_c") -> o_c | B60: = | C60: =IF(Cal!$B$203=0,Cal!$D$246,Cal!$D$209) -> -3.6145e-06 | D60: ;
A61: =IF(AND((LEN(Cal!B203)+(LEN(Cal!B240))=2),(Cal!B203)+((Cal!B240)=0)),"%o_e","o_e") -> o_e | B61: = | C61: =IF(Cal!$B$203=0,Cal!$D$247,Cal!$D$210) -> 0.036 | D61: ;
A62: =IF(AND((LEN(Cal!B203)+(LEN(Cal!B240))=2),(Cal!B203)+((Cal!B240)=0)),"%Tau20","Tau20") -> Tau20 | B62: = | C62: =IF(Cal!$B$203=0,Cal!$D$248,Cal!$D$211) -> 1.54 | D62: ;
A63: =IF(AND((LEN(Cal!B203)+(LEN(Cal!B240))=2),(Cal!B203)+((Cal!B240)=0)),"%Pcor","Pcor") -> Pcor | B63: = | C63: =IF(Cal!$B$203=0,Cal!$D$242,Cal!$D$205) -> NA | D63: ;
A65: %Aanderaa cal Constants
A66: =IF(AND((LEN(Cal!$B$217)=1),(Cal!$B$217)=0),"%comm_oxy_type","comm_oxy_type") -> comm_oxy_type | B66: =' | C66: =IF(AND((LEN(Cal!$B$217)=1),(Cal!$B$217)=0),0,"Aa_optode") -> Aa_optode | D66: '; | E66: % spec Aa_optode
A67: =IF(AND((LEN(Cal!$B$217)=1),(Cal!$B$217)=0),"%calibcomm_oxygen","calibcomm_oxygen") -> calibcomm_oxygen | B67: =' | C67: =IF(C66=0,0,("SN: "&Cal!B217&" CAL: "&MONTH(Cal!D214))&DAY(Cal!D214)&RIGHT(YEAR(Cal!D214),2)) -> SN: 199 CAL: 3416 | D67: '; | E67: % Serial # and cal date
A68: =IF(AND((LEN(Cal!$B$217)=1),(Cal!$B$217)=0),"%optode_FoilCoefA1","optode_FoilCoefA1") -> optode_FoilCoefA1 | B68: = | C68: =Cal!$D$216 -> 0 | D68: ;
A69: =IF(AND((LEN(Cal!$B$217)=1),(Cal!$B$217)=0),"%optode_FoilCoefA2","optode_FoilCoefA2") -> optode_FoilCoefA2 | B69: = | C69: =Cal!$D$217 -> 0 | D69: ;
A70: =IF(AND((LEN(Cal!$B$217)=1),(Cal!$B$217)=0),"%optode_FoilCoefA3","optode_FoilCoefA3") -> optode_FoilCoefA3 | B70: = | C70: =Cal!$D$218 -> 0 | D70: ;
A71: =IF(AND((LEN(Cal!$B$217)=1),(Cal!$B$217)=0),"%optode_FoilCoefA4","optode_FoilCoefA4") -> optode_FoilCoefA4 | B71: = | C71: =Cal!$D$219 -> 0 | D71: ;
A72: =IF(AND((LEN(Cal!$B$217)=1),(Cal!$B$217)=0),"%optode_FoilCoefA5","optode_FoilCoefA5") -> optode_FoilCoefA5 | B72: = | C72: =Cal!$D$220 -> 0 | D72: ;
A73: =IF(AND((LEN(Cal!$B$217)=1),(Cal!$B$217)=0),"%optode_FoilCoefA6","optode_FoilCoefA6") -> optode_FoilCoefA6 | B73: = | C73: =Cal!$D$221 -> 0 | D73: ;
A74: =IF(AND((LEN(Cal!$B$217)=1),(Cal!$B$217)=0),"%optode_FoilCoefA7","optode_FoilCoefA7") -> optode_FoilCoefA7 | B74: = | C74: =Cal!$D$222 -> 0 | D74: ;
A75: =IF(AND((LEN(Cal!$B$217)=1),(Cal!$B$217)=0),"%optode_FoilCoefA8","optode_FoilCoefA8") -> optode_FoilCoefA8 | B75: = | C75: =Cal!$D$223 -> 0 | D75: ;
A76: =IF(AND((LEN(Cal!$B$217)=1),(Cal!$B$217)=0),"%optode_FoilCoefA9","optode_FoilCoefA9") -> optode_FoilCoefA9 | B76: = | C76: =Cal!$D$224 -> 0 | D76: ;
A77: =IF(AND((LEN(Cal!$B$217)=1),(Cal!$B$217)=0),"%optode_FoilCoefA10","optode_FoilCoefA10") -> optode_FoilCoefA10 | B77: = | C77: =Cal!$D$225 -> 0 | D77: ;
A78: =IF(AND((LEN(Cal!$B$217)=1),(Cal!$B$217)=0),"%optode_FoilCoefA11","optode_FoilCoefA11") -> optode_FoilCoefA11 | B78: = | C78: =Cal!$D$226 -> 0 | D78: ;
A79: =IF(AND((LEN(Cal!$B$217)=1),(Cal!$B$217)=0),"%optode_FoilCoefA12","optode_FoilCoefA12") -> optode_FoilCoefA12 | B79: = | C79: =Cal!$D$227 -> 0 | D79: ;
A80: =IF(AND((LEN(Cal!$B$217)=1),(Cal!$B$217)=0),"%optode_FoilCoefA13","optode_FoilCoefA13") -> optode_FoilCoefA13 | B80: = | C80: =Cal!$D$228 -> 0 | D80: ;
A81: =IF(AND((LEN(Cal!$B$217)=1),(Cal!$B$217)=0),"%optode_FoilCoefB1","optode_FoilCoefB1") -> optode_FoilCoefB1 | B81: = | C81: =Cal!$D$229 -> 0 | D81: ;
A82: =IF(AND((LEN(Cal!$B$217)=1),(Cal!$B$217)=0),"%optode_FoilCoefB2","optode_FoilCoefB2") -> optode_FoilCoefB2 | B82: = | C82: =Cal!$D$230 -> 0 | D82: ;
A83: =IF(AND((LEN(Cal!$B$217)=1),(Cal!$B$217)=0),"%optode_FoilCoefB3","optode_FoilCoefB3") -> optode_FoilCoefB3 | B83: = | C83: =Cal!$D$231 -> 0 | D83: ;
A84: =IF(AND((LEN(Cal!$B$217)=1),(Cal!$B$217)=0),"%optode_FoilCoefB4","optode_FoilCoefB4") -> optode_FoilCoefB4 | B84: = | C84: =Cal!$D$232 -> 0 | D84: ;
A85: =IF(AND((LEN(Cal!$B$217)=1),(Cal!$B$217)=0),"%optode_FoilCoefB5","optode_FoilCoefB5") -> optode_FoilCoefB5 | B85: = | C85: =Cal!$D$233 -> 0 | D85: ;
A86: =IF(AND((LEN(Cal!$B$217)=1),(Cal!$B$217)=0),"%optode_FoilCoefB6","optode_FoilCoefB6") -> optode_FoilCoefB6 | B86: = | C86: =Cal!$D$234 -> 0 | D86: ;
A88: %Wetlab Forward or Bump Out cal Constants
A89: % Chlorophyll cal Constants
A90: =IF(AND((LEN(Cal!B151)=1),Cal!B151=0),"%" &Cal!A154,Cal!A154) -> WETLabsCalData.Chlorophyll.darkCounts | B90: = | C90: =Cal!$B$154 -> 48 | D90: ;
A91: =IF(AND((LEN(Cal!B151)=1),Cal!B151=0),"%" &Cal!A155,Cal!A155) -> WETLabsCalData.Chlorophyll.scaleFactor | B91: = | C91: =Cal!$B$155 -> 0.0118 | D91: ;
A92: =IF(AND((LEN(Cal!B151)=1),Cal!B151=0),"%" &Cal!A156,Cal!A156) -> WETLabsCalData.Chlorophyll.maxOutput | B92: = | C92: =Cal!$B$156 -> 4130 | D92: ;
A93: =IF(AND((LEN(Cal!B151)=1),Cal!B151=0),"%" &Cal!A157,Cal!A157) -> WETLabsCalData.Chlorophyll.resolution | B93: = | C93: =Cal!$B$157 -> 1 | D93: ;
A94: =IF(AND((LEN(Cal!B151)=1),Cal!B151=0),"%" &Cal!A158,Cal!A158) -> WETLabsCalData.Chlorophyll.calTemperature | B94: = | C94: =Cal!$B$158 -> 20 | D94: ;
A96: %CDOM or Scattering cal Constants
A97: =IF(AND((LEN(Cal!B151)=1),Cal!B151=0),"%" &Cal!A161,Cal!A161) -> WETLabsCalData.CDOM.maxOutput | B97: = | C97: =Cal!$B$161 -> 4130 | D97: ;
A98: =IF(AND((LEN(Cal!B151)=1),Cal!B151=0),"%" &Cal!A162,Cal!A162) -> WETLabsCalData.CDOM.scaleFactor | B98: = | C98: =Cal!$B$162 -> 0.0677 | D98: ;
A99: =IF(AND((LEN(Cal!B151)=1),Cal!B151=0),"%" &Cal!A163,Cal!A163) -> WETLabsCalData.CDOM.darkCounts | B99: = | C99: =Cal!$B$163 -> 28 | D99: ;
A100: =IF(AND((LEN(Cal!B151)=1),Cal!B151=0),"%" &Cal!A164,Cal!A164) -> WETLabsCalData.CDOM.resolution | B100: = | C100: =Cal!$B$164 -> 1.4 | D100: ;
A101: =IF(AND((LEN(Cal!B151)=1),Cal!B151=0),"%" &Cal!A165,Cal!A165) -> WETLabsCalData.CDOM.calTemperature | B101: =IF(Cal!$B$160="CDOM","=","") -> = | C101: =Cal!$B$165 -> 20 | D101: =IF(Cal!$B$160="CDOM",";","") -> ;
A103: ="% "&Cal!$A$167&" " &Cal!$B$167&" " &Cal!$C$167 -> % Scattering Sensor 650 (RED)
A104: =IF(AND((LEN(Cal!B151)=1),Cal!B151=0),"%" & Cal!A168,Cal!A168) -> WETLabsCalData.Scatter_650.wavelength | B104: = | C104: =Cal!$B$168 -> 650 | D104: ;
A105: =IF(AND((LEN(Cal!B151)=1),Cal!B151=0),"%" & Cal!A169,Cal!A169) -> WETLabsCalData.Scatter_650.scaleFactor | B105: = | C105: =Cal!$B$169 -> 4.535e-06 | D105: ;
A106: =IF(AND((LEN(Cal!B151)=1),Cal!B151=0),"%" & Cal!A170,Cal!A170) -> WETLabsCalData.Scatter_650.darkCounts | B106: = | C106: =Cal!$B$170 -> 42 | D106: ;
A107: =IF(AND((LEN(Cal!B151)=1),Cal!B151=0),"%" & Cal!A171,Cal!A171) -> WETLabsCalData.Scatter_650.resolution | B107: = | C107: =Cal!$B$171 -> 1.1 | D107: ;
A109: %Wetlab Aft cal Constants
A110: % Chlorophyll cal Constants
A111: =IF(AND((LEN(Cal!B177)=1),Cal!B177=0),"%" &Cal!A180,Cal!A180) -> WETLabsCalData.Chlorophyll.darkCounts | B111: = | C111: =Cal!$B$180 -> 37 | D111: ;
A112: =IF(AND((LEN(Cal!B177)=1),Cal!B177=0),"%" &Cal!A181,Cal!A181) -> WETLabsCalData.Chlorophyll.scaleFactor | B112: = | C112: =Cal!$B$181 -> 0.0119 | D112: ;
A113: =IF(AND((LEN(Cal!B177)=1),Cal!B177=0),"%" &Cal!A182,Cal!A182) -> WETLabsCalData.Chlorophyll.maxOutput | B113: = | C113: =Cal!$B$182 -> 4140 | D113: ;
A114: =IF(AND((LEN(Cal!B177)=1),Cal!B177=0),"%" &Cal!A183,Cal!A183) -> WETLabsCalData.Chlorophyll.resolution | B114: = | C114: =Cal!$B$183 -> 1.7 | D114: ;
A115: =IF(AND((LEN(Cal!B177)=1),Cal!B177=0),"%" &Cal!A184,Cal!A184) -> WETLabsCalData.Chlorophyll.calTemperature | B115: = | C115: =Cal!$B$184 -> 22.3 | D115: ;
A118: %CDOM or Scattering cal Constants
A119: =IF(AND((LEN(Cal!B177)=1),Cal!B177=0),"%" &Cal!A187,Cal!A187) -> WETLabsCalData.Scatter_470.wavelength | B119: = | C119: =Cal!$B$187 -> 470 | D119: ;
A120: =IF(AND((LEN(Cal!B177)=1),Cal!B177=0),"%" &Cal!A188,Cal!A188) -> WETLabsCalData.Scatter_470.scaleFactor | B120: = | C120: =Cal!$B$188 -> 1.081e-05 | D120: ;
A121: =IF(AND((LEN(Cal!B177)=1),Cal!B177=0),"%" &Cal!A189,Cal!A189) -> WETLabsCalData.Scatter_470.darkCounts | B121: = | C121: =Cal!$B$189 -> 45 | D121: ;
A122: =IF(AND((LEN(Cal!B177)=1),Cal!B177=0),"%" &Cal!A190,Cal!A190) -> WETLabsCalData.Scatter_470.resolution | B122: = | C122: =Cal!$B$190 -> 1 | D122: ;
A123: =IF(AND((LEN(Cal!B177)=1),Cal!B177=0),"%" &Cal!A191,Cal!A191) ->  | B123: =IF(Cal!$B$186="CDOM","=","") ->  | C123: =Cal!$B$191 -> 0 | D123: =IF(Cal!$B$186="CDOM",";","") -> 
A125: ="% "&Cal!$A$193&" " &Cal!$B$193&" " &Cal!$C$193 -> % Scattering Sensor 700 None
A126: =IF(AND((LEN(Cal!B177)=1),Cal!B177=0),"%" & Cal!A194,Cal!A194) -> WETLabsCalData.Scatter_700.wavelength | B126: = | C126: =Cal!$B$194 -> 700 | D126: ;
A127: =IF(AND((LEN(Cal!B177)=1),Cal!B177=0),"%" & Cal!A195,Cal!A195) -> WETLabsCalData.Scatter_700.scaleFactor | B127: = | C127: =Cal!$B$195 -> 3.003e-06 | D127: ;
A128: =IF(AND((LEN(Cal!B177)=1),Cal!B177=0),"%" & Cal!A196,Cal!A196) -> WETLabsCalData.Scatter_700.darkCounts | B128: = | C128: =Cal!$B$196 -> 53 | D128: ;
A129: =IF(AND((LEN(Cal!B177)=1),Cal!B177=0),"%" & Cal!A197,Cal!A197) -> WETLabsCalData.Scatter_700.resolution | B129: = | C129: =Cal!$B$197 -> 1.2 | D129: ;
A131: % PAR Calibration Constants and Device Properties
A132: =IF(AND((LEN(Cal!$B$261)=1),Cal!$B$261=0),"%PAR_CalData.manufacturer","PAR_CalData.manufacturer") -> %PAR_CalData.manufacturer | B132: =' | C132: =Cal!$B$260 -> Biospherical Instruments, Inc | D132: '; | E132: % Manufacturer
A133: =IF(AND((LEN(Cal!$B$261)=1),Cal!$B$261=0),"%PAR_CalData.serialNumber","PAR_CalData.serialNumber") -> %PAR_CalData.serialNumber | B133: =' | C133: =Cal!$B$261 -> 0 | D133: '; | E133: % Serial #
A134: =IF(AND((LEN(Cal!$B$261)=1),Cal!$B$261=0),"%PAR_CalData.calData","PAR_CalData.calData") -> %PAR_CalData.calData | B134: =' | C134: =Cal!$B$262 -> xx/xx/xx | D134: '; | E134: % cal date
A135: =IF(AND((LEN(Cal!$B$261)=1),Cal!$B$261=0),"%PAR_CalData.sensorDark","PAR_CalData.sensorDark") -> %PAR_CalData.sensorDark | B135: = | C135: =Cal!$D$263 -> 0 | D135: ; | E135: % mv
A136: =IF(AND((LEN(Cal!$B$261)=1),Cal!$B$261=0),"%PAR_CalData.scalingFactor","PAR_CalData.scalingFactor") -> %PAR_CalData.scalingFactor | B136: = | C136: =Cal!$D$264 -> 0 | D136: ; | E136: % Volts/uE/cm^2sec
A138: % Radiation Calibration Constants and Device Properties
A139: =IF(AND((LEN(Cal!$B$270)=1),Cal!$B$270=0),"%RAD_CalData.manufacturer","RAD_CalData(1).manufacturer") -> %RAD_CalData.manufacturer | B139: =' | C139: =Cal!$B$269 -> Princeton Gamma Tech | D139: '; | E139: % Manufacturer
A140: =IF(AND((LEN(Cal!$B$270)=1),Cal!$B$270=0),"%RAD_CalData.serialNumber","RAD_CalData.serialNumber") -> %RAD_CalData.serialNumber | B140: =' | C140: =Cal!$B$270 -> 0 | D140: '; | E140: % Serial #
A141: =IF(AND((LEN(Cal!$B$270)=1),Cal!$B$270=0),"%RAD_CalData.calData","RAD_CalData.calData") -> %RAD_CalData.calData | B141: =' | C141: =Cal!$B$271 -> xx/xx/xx | D141: '; | E141: % cal date
A143: %Nortek ADCP Sensor cal Constants
A144: =IF(AND((LEN(Cal!$B$277)=1),Cal!$B$277=0),"%?","?") -> %? | B144: = | C144: =Cal!$D$279 -> 0 | D144: ;
A145: =IF(AND((LEN(Cal!$B$277)=1),Cal!$B$277=0),"%?","?") -> %? | B145: = | C145: =Cal!$D$280 -> 0 | D145: ;
A146: =IF(AND((LEN(Cal!$B$277)=1),Cal!$B$277=0),"%?","?") -> %? | B146: = | C146: =Cal!$D$281 -> 0 | D146: ;
A148: %Imagenex ECHOSounder Sensor cal Constants
A149: =IF(AND((LEN(Cal!$B$285)=1),Cal!$B$285=0),"%?","?") -> %? | B149: = | C149: =Cal!$D$287 -> 0 | D149: ;
A150: =IF(AND((LEN(Cal!$B$285)=1),Cal!$B$285=0),"%?","?") -> %? | B150: = | C150: =Cal!$D$288 -> 0 | D150: ;
A151: =IF(AND((LEN(Cal!$B$285)=1),Cal!$B$285=0),"%?","?") -> %? | B151: = | C151: =Cal!$D$289 -> 0 | D151: ;
A153: %RAFOS cal Constants
A154: =IF(AND((LEN(Cal!$B$293)=1),Cal!$B$293=0),"%?","?") -> %? | B154: = | C154: =Cal!$D$295 -> 0 | D154: ;
A155: =IF(AND((LEN(Cal!$B$293)=1),Cal!$B$293=0),"%?","?") -> %? | B155: = | C155: =Cal!$D$296 -> 0 | D155: ;
A156: =IF(AND((LEN(Cal!$B$293)=1),Cal!$B$293=0),"%?","?") -> %? | B156: = | C156: =Cal!$D$297 -> 0 | D156: ;
A158: %New Sensor #1 cal Constants
A159: =IF(AND((LEN(Cal!$B$301)=1),Cal!$B$301=0),"%?","?") -> %? | B159: = | C159: =Cal!$D$303 -> 0 | D159: ;
A160: =IF(AND((LEN(Cal!$B$301)=1),Cal!$B$301=0),"%?","?") -> %? | B160: = | C160: =Cal!$D$304 -> 0 | D160: ;
A161: =IF(AND((LEN(Cal!$B$301)=1),Cal!$B$301=0),"%?","?") -> %? | B161: = | C161: =Cal!$D$305 -> 0 | D161: ;
A163: %New Sensor #2 cal Constants
A164: =IF(AND((LEN(Cal!$B$309)=1),Cal!$B$309=0),"%?","?") -> %? | B164: = | C164: =Cal!$D$311 -> 0 | D164: ;
A165: =IF(AND((LEN(Cal!$B$309)=1),Cal!$B$309=0),"%?","?") -> %? | B165: = | C165: =Cal!$D$312 -> 0 | D165: ;
A166: =IF(AND((LEN(Cal!$B$309)=1),Cal!$B$309=0),"%?","?") -> %? | B166: = | C166: =Cal!$D$313 -> 0 | D166: ;

Sheet CMDFILE (hidden)
A1: $C_PITCH, | B1: =Cal!$C$15 -> 2768
A2: $C_ROLL_CLIMB, | B2: =Cal!$C$30 -> 2030
A3: $C_ROLL_DIVE, | B3: =Cal!$C$29 -> 2050
A4: $C_VBD, | B4: =Cal!$C$45 -> 2898.976625
A5: $D_TGT, | B5: 30
A6: $MASS, | B6: =sg_calib_constants!$C$8*1000 -> 52652
A7: $MAX_BUOY, | B7: 5
A8: $PITCH_GAIN, | B8: 30
A9: $RHO, | B9: =sg_calib_constants!$C$10/1000 -> 1.0275
A10: $SM_CC, | B10: 150
A11: $T_DIVE, | B11: 10
A12: $T_MISSION, | B12: 15
A13: $AH0_10V, | B13: 0 | C13: <------------- | D13: ---|---------- | E13: Delete Comments in columns C, D, & F.
A14: $AH0_24V, | B14: 350 | C14: <------------- | D14: ---|---------- | E14: For a 15V system: $AH0_10V,0 & $AH0_24V,350
A15: $ALTIM_PING_DELTA, | B15: 5 | E15: For a 10/24V system: $AH0_10V,95 & $AH0_24V,145
A16: $ALTIM_PING_DEPTH, | B16: 80
A17: $D_NO_BLEED, | B17: 29
A18: $D_SURF, | B18: 3
A19: $KALMAN_USE, | B19: 2
A20: $NAV_MODE, | B20: 2
A21: $PITCH_AD_RATE, | B21: 175
A22: $PITCH_CNV, | B22: =Cal!$B$17 -> 0.003125763126
A23: $PITCH_MAX, | B23: =Cal!$C$13 -> 3917
A24: $PITCH_MIN, | B24: =Cal!$C$12 -> 182
A25: $PITCH_TIMEOUT, | B25: 17
A26: $PRESSURE_SLOPE, | B26: =Cal!$B$62 -> 0.0001165268599
A27: $ROLL_AD_RATE, | B27: 350
A28: $ROLL_CNV, | B28: =Cal!$B$32 -> 0.02827
A29: $ROLL_MAX, | B29: =Cal!$C$28 -> 3932
A30: $ROLL_MIN, | B30: =Cal!$C$27 -> 255
A31: $SEABIRD_C_G, | B31: =IF(Cal!$B$137=0,-11,Cal!$B$137) -> -9.76951496
A32: $SEABIRD_C_H, | B32: =IF(Cal!$B$138=0,0.6,Cal!$B$138) -> 1.08918934
A33: $SEABIRD_C_I, | B33: =IF(Cal!$B$139=0,-0.0014,Cal!$B$139) -> 0.000788938554
A34: $SEABIRD_C_J, | B34: =IF(Cal!$B$140=0,0.0001,Cal!$B$140) -> 5.78720188e-06
A35: $SEABIRD_T_G, | B35: =IF(Cal!$D$137=0,0.004,Cal!$D$137) -> 0.00429423343
A36: $SEABIRD_T_H, | B36: =IF(Cal!$D$138=0,0.0006,Cal!$D$138) -> 0.00062847037
A37: $SEABIRD_T_I, | B37: =IF(Cal!$D$139=0,0.000024,Cal!$D$139) -> 2.32398866e-05
A38: $SEABIRD_T_J, | B38: =IF(Cal!$D$140=0,0.0000026,Cal!$D$140) -> 2.40966639e-06
A39: $T_GPS, | B39: 5
A40: $T_NO_W, | B40: 120
A41: $T_RSLEEP, | B41: 3
A42: $T_TURN_SAMPINT, | B42: 5
A43: $USE_BATHY, | B43: 0
A44: $VBD_CNV, | B44: =Cal!$B$47 -> -0.245296
A45: $VBD_MAX, | B45: =Cal!$C$43 -> 3960
A46: $VBD_MIN, | B46: =Cal!$C$42 -> 500
A47: $VBD_PUMP_AD_RATE_SURFACE, | B47: 5
A48: $VBD_TIMEOUT, | B48: 720
A49: $XPDR_VALID, | B49: 2
A50: $XPDR_INHIBIT, | B50: 90
A51: $LOGGERS, | B51: 1 | C51: <------------- | D51: ---|
A52: $PC_RECORDABOVE, | B52: 1000 | D52: |
A53: $PC_PROFILE, | B53: 3 | D53: |----------- | E53: Delete these lines if CTD not installed. If installed delete Comments in columns C, D, & F.
A54: $PC_XMITPROFILE, | B54: 3 | D54: |
A55: $PC_UPLOADMAX, | B55: 1000000 | D55: |
A56: $PC_INTERVAL, | B56: 1 | C56: <------------- | D56: ---|
A57: $QUIT

Sheet PRM (hidden)
A1: $ID, | B1: ='Weight sheet'!$C$1 -> 512
A2: $MISSION, | B2: 0
A3: $DIVE, | B3: 0
A4: $N_DIVES, | B4: 0
A5: $D_SURF, | B5: 3
A6: $D_FLARE, | B6: 3
A7: $D_TGT, | B7: 30
A8: $D_ABORT, | B8: 300
A9: $D_NO_BLEED, | B9: 29
A10: $D_BOOST, | B10: 0
A11: $T_BOOST, | B11: 0
A12: $D_FINISH, | B12: 0
A13: $D_PITCH, | B13: 0
A14: $D_SAFE, | B14: 0
A15: $D_CALL, | B15: 0
A16: $SURFACE_URGENCY, | B16: 0
A17: $SURFACE_URGENCY_TRY, | B17: 0
A18: $SURFACE_URGENCY_FORCE, | B18: 0
A19: $T_DIVE, | B19: 10
A20: $T_MISSION, | B20: 15
A21: $T_ABORT, | B21: 720
A22: $T_TURN, | B22: 225
A23: $T_TURN_SAMPINT, | B23: 5
A24: $T_NO_W, | B24: 120
A25: $T_LOITER, | B25: 0
A26: $T_EPIRB, | B26: 0
A27: $USE_BATHY, | B27: 0
A28: $USE_ICE, | B28: 0
A29: $ICE_FREEZE_MARGIN, | B29: 0.30000001
A30: $D_OFFGRID, | B30: 100
A31: $T_WATCHDOG, | B31: 10
A32: $RELAUNCH, | B32: 0
A33: $APOGEE_PITCH, | B33: -5
A34: $MAX_BUOY, | B34: 5
A35: $COURSE_BIAS, | B35: 0
A36: $GLIDE_SLOPE, | B36: 30
A37: $SPEED_FACTOR, | B37: 1
A38: $RHO, | B38: =rho_2 -> 1.0275 | C38: (set number to value glider ballasted to)
A39: $MASS, | B39: =Trim!$C$10/1000 -> 52.6529 | C39: (set number to value found on trim sheet, C10 of Trim tab)
A40: $MASS_COMP, | B40: 0
A41: $NAV_MODE, | B41: 2
A42: $FERRY_MAX, | B42: 45
A43: $KALMAN_USE, | B43: 2
A44: $HD_A, | B44: 0.003836
A45: $HD_B, | B45: 0.010078
A46: $HD_C, | B46: 9.85e-06
A47: $HEADING, | B47: -1
A48: $ESCAPE_HEADING, | B48: 0
A49: $ESCAPE_HEADING_DELTA, | B49: 10
A50: $FIX_MISSING_TIMEOUT, | B50: 0
A51: $TGT_DEFAULT_LAT, | B51: 4743 | C51: (set to default latitude specific to deployment site)
A52: $TGT_DEFAULT_LON, | B52: -12223.5 | C52: (set to default longitude specific to deployment site)
A53: $TGT_AUTO_DEFAULT, | B53: 0
A54: $SM_CC, | B54: 150
A55: $N_FILEKB, | B55: 4
A56: $FILEMGR, | B56: 0
A57: $CALL_NDIVES, | B57: 1
A58: $COMM_SEQ, | B58: 0
A59: $PROTOCOL, | B59: 0
A60: $N_NOCOMM, | B60: 1
A61: $NOCOMM_ACTION, | B61: 0
A62: $N_NOSURFACE, | B62: 0
A63: $UPLOAD_DIVES_MAX, | B63: -1
A64: $CALL_TRIES, | B64: 5
A65: $CALL_WAIT, | B65: 60
A66: $CAPUPLOAD, | B66: 1
A67: $CAPMAXSIZE, | B67: 100000
A68: $HEAPDBG, | B68: 0
A69: $T_GPS, | B69: 5
A70: $N_GPS, | B70: 20
A71: $T_GPS_ALMANAC, | B71: 0
A72: $T_GPS_CHARGE, | B72: -1476.4034
A73: $T_RSLEEP, | B73: 3
A74: $STROBE, | B74: 0
A75: $RAFOS_PEAK_OFFSET, | B75: 1.5
A76: $RAFOS_CORR_THRESH, | B76: 60
A77: $RAFOS_HIT_WINDOW, | B77: 3600
A78: $PITCH_MIN, | B78: =Cal!$C$12 -> 182 | C78: (glider specific, obtain from Cal Tab of trim sheet)
A79: $PITCH_MAX, | B79: =Cal!$C$13 -> 3917 | C79: (glider specific, obtain from Cal Tab of trim sheet)
A80: $C_PITCH, | B80: =Cal!$C$15 -> 2768 | C80: (glider specific, obtain from Cal Tab of trim sheet)
A81: $PITCH_DBAND, | B81: 0.1
A82: $PITCH_CNV, | B82: 0.003125763
A83: $P_OVSHOOT, | B83: 0.079999998
A84: $PITCH_GAIN, | B84: 30
A85: $PITCH_TIMEOUT, | B85: 18
A86: $PITCH_AD_RATE, | B86: 160
A87: $PITCH_MAXERRORS, | B87: 1
A88: $PITCH_ADJ_GAIN, | B88: 0
A89: $PITCH_ADJ_DBAND, | B89: 0
A90: $ROLL_MIN, | B90: =Cal!$C$27 -> 255 | C90: (glider specific, obtain from Cal Tab of trim sheet)
A91: $ROLL_MAX, | B91: =Cal!$C$28 -> 3932 | C91: (glider specific, obtain from Cal Tab of trim sheet)
A92: $ROLL_DEG, | B92: 40
A93: $C_ROLL_DIVE, | B93: =Cal!$C$29 -> 2050 | C93: (glider specific, obtain from Cal Tab of trim sheet)
A94: $C_ROLL_CLIMB, | B94: =Cal!$C$30 -> 2030 | C94: (glider specific, obtain from Cal Tab of trim sheet)
A95: $HEAD_ERRBAND, | B95: 10
A96: $ROLL_CNV, | B96: 0.028270001
A97: $ROLL_TIMEOUT, | B97: 15
A98: $R_PORT_OVSHOOT, | B98: 25 | C98: (leave as set in the Self Test .log file)
A99: $R_STBD_OVSHOOT, | B99: 25 | C99: (leave as set in the Self Test .log file)
A100: $ROLL_AD_RATE, | B100: 350
A101: $ROLL_MAXERRORS, | B101: 1
A102: $ROLL_ADJ_GAIN, | B102: 0
A103: $ROLL_ADJ_DBAND, | B103: 0
A104: $VBD_MIN, | B104: =Cal!$C$42 -> 500 | C104: (glider specific, obtain from Cal Tab of trim sheet)
A105: $VBD_MAX, | B105: =Cal!$C$43 -> 3960 | C105: (glider specific, obtain from Cal Tab of trim sheet)
A106: $C_VBD, | B106: =Cal!$C$45 -> 2898.976625 | C106: (glider specific, obtain from Cal Tab of trim sheet)
A107: $VBD_DBAND, | B107: 2
A108: $VBD_CNV, | B108: -0.24529999
A109: $VBD_TIMEOUT, | B109: 720
A110: $PITCH_VBD_SHIFT, | B110: 0.0012300001
A111: $VBD_PUMP_AD_RATE_SURFACE, | B111: 5
A112: $VBD_PUMP_AD_RATE_APOGEE, | B112: 4
A113: $VBD_BLEED_AD_RATE, | B113: 8
A114: $UNCOM_BLEED, | B114: 60
A115: $VBD_MAXERRORS, | B115: 1
A116: $W_ADJ_DBAND, | B116: 0
A117: $DBDW, | B117: 0
A118: $PITCH_W_GAIN, | B118: 0
A119: $PITCH_W_DBAND, | B119: 0
A120: $CF8_MAXERRORS, | B120: 20
A121: $AH0_24V, | B121: =CMDFILE!$B$14 -> 350 | C121: (use 145 for 24V systems and 350 for 15V systems)
A122: $AH0_10V, | B122: =CMDFILE!$B$13 -> 0 | C122: (use 95 for 10V systems and 0 for 15V systems)
A123: $MINV_24V, | B123: 11.5 | C123: (use 19 for 24V systems and 11.5V for 15V systems)
A124: $MINV_10V, | B124: 11.5 | C124: (use 8.2 for 24V systems and 11.5V for 15V systems)
A125: $FG_AHR_10V, | B125: 0
A126: $FG_AHR_24V, | B126: 0
A127: $PHONE_SUPPLY, | B127: 2
A128: $PRESSURE_YINT, | B128: -49.106464
A129: $PRESSURE_SLOPE, | B129: ='Pres cal'!$B$64 -> 0.0001165268599 | C129: (glider specific, obtain from Press cal Tab of trim sheet)
A130: $AD7714Ch0Gain, | B130: 128
A131: $TCM_PITCH_OFFSET, | B131: 0
A132: $TCM_ROLL_OFFSET, | B132: 0
A133: $COMPASS_USE, | B133: 0
A134: $ALTIM_BOTTOM_PING_RANGE, | B134: 0
A135: $ALTIM_TOP_PING_RANGE, | B135: 0
A136: $ALTIM_BOTTOM_TURN_MARGIN, | B136: 0
A137: $ALTIM_TOP_TURN_MARGIN, | B137: 0
A138: $ALTIM_TOP_MIN_OBSTACLE, | B138: 1
A139: $ALTIM_PING_DEPTH, | B139: 80
A140: $ALTIM_PING_DELTA, | B140: 5
A141: $ALTIM_FREQUENCY, | B141: 13
A142: $ALTIM_PULSE, | B142: 3
A143: $ALTIM_SENSITIVITY, | B143: 2
A144: $XPDR_VALID, | B144: 2
A145: $XPDR_INHIBIT, | B145: 90
A146: $INT_PRESSURE_SLOPE, | B146: 0.0097660003
A147: $INT_PRESSURE_YINT, | B147: 0
A148: $DEEPGLIDER, | B148: 0
A149: $DEEPGLIDERMB, | B149: 0
A150: $MOTHERBOARD, | B150: 4
A151: $DEVICE1, | B151: 2
A152: $DEVICE2, | B152: -1
A153: $DEVICE3, | B153: -1
A154: $DEVICE4, | B154: -1
A155: $DEVICE5, | B155: -1
A156: $DEVICE6, | B156: -1
A157: $LOGGERS, | B157: 0
A158: $LOGGERDEVICE1, | B158: -1
A159: $LOGGERDEVICE2, | B159: -1
A160: $LOGGERDEVICE3, | B160: -1
A161: $LOGGERDEVICE4, | B161: -1
A162: $COMPASS_DEVICE, | B162: 33
A163: $COMPASS2_DEVICE, | B163: -1
A164: $PHONE_DEVICE, | B164: 48
A165: $GPS_DEVICE, | B165: 32
A166: $RAFOS_DEVICE, | B166: -1
A167: $XPDR_DEVICE, | B167: 24
A168: $SIM_W, | B168: 0.1
A169: $SIM_PITCH, | B169: -20
A170: $SEABIRD_T_G, | B170: =Cal!$D$137 -> 0.00429423343 | C170: (glider specific, obtain from Cal Tab of trim sheet)
A171: $SEABIRD_T_H, | B171: =Cal!$D$138 -> 0.00062847037 | C171: (glider specific, obtain from Cal Tab of trim sheet)
A172: $SEABIRD_T_I, | B172: =Cal!$D$139 -> 2.32398866e-05 | C172: (glider specific, obtain from Cal Tab of trim sheet)
A173: $SEABIRD_T_J, | B173: =Cal!$D$140 -> 2.40966639e-06 | C173: (glider specific, obtain from Cal Tab of trim sheet)
A174: $SEABIRD_C_G, | B174: =Cal!$B$137 -> -9.76951496 | C174: (glider specific, obtain from Cal Tab of trim sheet)
A175: $SEABIRD_C_H, | B175: =Cal!$B$138 -> 1.08918934 | C175: (glider specific, obtain from Cal Tab of trim sheet)
A176: $SEABIRD_C_I, | B176: =Cal!$B$139 -> 0.000788938554 | C176: (glider specific, obtain from Cal Tab of trim sheet)
A177: $SEABIRD_C_J, | B177: =Cal!$B$140 -> 5.78720188e-06 | C177: (glider specific, obtain from Cal Tab of trim sheet)
A178: $QUIT

Sheet As Built SN#s
B1: Unit # MS:
B4: System
A5: Item | B5: Description | C5: Serial Number | D5: Comments
A6: 4192452 | B6: CTO Model,System,Seaglider 1K | C6: ='Weight sheet'!$C$63 -> ??
A7: 4197060 | B7: KIT, SEAGLIDER - TTI | C7: ='Weight sheet'!$C$1 -> 512
A8: 4197060-00001 | B8: KIT, SEAGLIDER 1KA | C8: ='Weight sheet'!$C$1 -> 512
B11: Hull Parts:
A12: Item | B12: Description | C12: Serial Number | D12: Comments
A13: 4199360 | B13: ASSY, CABLE - PRESSURE SENSOR - A1W12 (Paine) | C13: ='Weight sheet'!$H$470 -> 253669
A14: 4199485 | B14: ASSY, BATTERY PACK - LITHIUM 24VDC | C14: ='Weight sheet'!$H$469 -> 1600007
A15: 4199484 | B15: ASSY, BATTERY PACK - LITHIUM, 10VDC | C15: ='Weight sheet'!$H$508 -> 1600012
A16: 4197562 | B16: MOTOR, PITCH/ROLL (Pitch) | C16: ='Weight sheet'!$H$467 -> 0
A17: 4197562 | B17: MOTOR, PITCH/ROLL (Roll) | C17: ='Weight sheet'!$H$468 -> 0
A18: 4199399 | B18: PUMP, HYDRAULIC - 3 PISTON, .045ccm, 300 bar @ 5000 RPM (Main Pump) | C18: ='Weight sheet'!$H$332 -> 0
A19: 4199366 | B19: ASSY, CABLE - PUMP MOTOR, VBD HIGH PRESSURE - A11W18 (Standard Boost Pump) | C19: ='Weight sheet'!$H$351 -> 0
A20: 4261167 | B20: ASSY, CABLE, MOTOR, BOOST PUMP HIGH VOL (High Vol Boost Pump) | C20: ='Weight sheet'!$H$368 -> 0
A21: 4307143 | B21: ASSY, MAIN BOARD | C21: ='Weight sheet'!$H$485 -> 92450012
A22: 4199040 | B22: Computer Supply,Microcontroller,Tattletale 8v2,1MB SRAM,RoHS (TT8) | C22: ='Weight sheet'!$H$486 -> 2422137
A23: 4199041 | B23: ADAPTER, COMPACTFLASH, FOR TATTLETALE 8V2 | C23: ='Weight sheet'!$H$487 -> 2590
A24: 4297019 | B24: Card,Memory,Compact Flash,2GB,-40to+85C,RoHS | C24: ='Weight sheet'!$H$487 -> 2590
A25: 4199419 | B25: PCBA, AFT TERMINAL | C25: ='Weight sheet'!$H$437 -> 0
A26: 4199370 | B26: ASSY, OEM NAVIGATION | C26: ='Weight sheet'!$H$492 -> 0
A27: 4199038 | B27: PCBA, TRANSPONDER & ALTIMETER | C27: ='Weight sheet'!$H$495 -> 193
A28: 4199036 | B28: TRANSPONDER - UNDERWATER COMMUNICATIONS TRANSDUCER | C28: ='Weight sheet'!$H$530 -> 5190
A29: 4246794 | B29: MODEM, L-BAND TRANSCEIVER - IRIDIUM | C29: ='Weight sheet'!$H$501 -> 707XL8
A30: - | B30: Modem IMEI: | C30: ='Weight sheet'!$H$502 -> 300224010849200
A31: 4215968 | B31: SIM CARD, SEAGLIDER | C31: ='Weight sheet'!$H$503 -> 8988169224000233297
A32: 4199374 | B32: ASSY, CABLE - RF RELAY CONTROL - A1W27 (RF Switch) | C32: ='Weight sheet'!$H$504 -> 0
A33: 4199420 | B33: PCBA, SPARTON COMPASS CARRIER | C33: ='Weight sheet'!$H$538 -> 91880010
A34: 4205793 | B34: COMPASS, DIGITAL - 3-AXIS, TILT COMPENSATED, SPARTON, ROHS | C34: ='Weight sheet'!$H$539 -> K887
A35: 4199332 | B35: ASSY, ANTENNA, GPSI | C35: ='Weight sheet'!$H$104 -> ES-140
B37: Sensors:
A38: Item | B38: Description | C38: Serial Number | D38: Comments | AA38: WetLab table
A39: 4199407 | B39: ASSY, SBE SAIL, CONDUCTIVITY - TEMPERATURE (CT-Sail) | C39: ='Weight sheet'!$H$452 -> 0073
A40: 4196239 | B40: KIT, OPTICAL SENSOR, DISSOLVED O2 - AANDERAA 4330 | C40: ='Weight sheet'!$H$110 -> 199 | AA40: Freq 1 | AB40: Freq 2 | AC40: Freq 3 | AD40: Vlookup code | AE40: Part Number | AF40: Description
A41: 4199047 | B41: SENSOR, OXYGEN, SBE - FREE FLOW | C41: ='Weight sheet'!$H$116 -> 0221 | AA41: CHL A | AB41: CDOM | AC41: 532 | AD41: =$AA$41&$AB$41&$AC$41 -> CHL ACDOM532 | AE41: 4273157 | AF41: KIT, SENSOR, FLUOROMETER-WET LABS BBFL2-VMT (532/CHL/CDOM)
A42: 4199436 | B42: PCBA, OXYGEN SENSOR | C42: ='Weight sheet'!$H$445 -> 0 | AA42: CHL A | AB42: CDOM | AC42: 650 | AD42: =$AA$42&$AB$42&$AC$42 -> CHL ACDOM650 | AE42: 4199039 | AF42: SENSOR, BACKSCATTER/FLUOROMETER - 650, CHL, CDOM
D43: Wetlab Model | E43: freq 1 | F43: Freq 2 | G43: Freq 3 | AA43: CHL A | AB43: 470 | AC43: 700 | AD43: =$AA$43&$AB$43&$AC$43 -> CHL A470700 | AE43: 4249861 | AF43: KIT, SENSOR, FLUOROMETER-WET LABS BB2FL-VMT (470/700/CHL-A)
A44: =IF(ISNA(VLOOKUP($E$44&$F$44&$G$44,$AD$41:$AF$48,2,FALSE)),"",(VLOOKUP($E$44&$F$44&$G$44,$AD$41:$AF$48,2,FALSE))) ->  | B44: =IF(ISNA(VLOOKUP($E$44&$F$44&$G$44,$AD$41:$AF$48,3,FALSE)),"Wetlab #1 (AFT)",(VLOOKUP($E$44&$F$44&$G$44,$AD$41:$AF$48,3,FALSE)&" (Forward)")) -> Wetlab #1 (AFT) | C44: =Cal!$B$151 -> 946 | D44: =Cal!$B$150 -> BBFL2 | E44: =Cal!$B$153 -> Chlorophyll | F44: =Cal!$B$160 -> CDOM | G44: =Cal!$B$167 -> 650 | AA44: CHL A | AB44: 700 | AC44: 470 | AD44: =$AA$44&$AB$44&$AC$44 -> CHL A700470 | AE44: 4249861 | AF44: KIT, SENSOR, FLUOROMETER-WET LABS BB2FL-VMT (470/700/CHL-A)
A45: =IF(ISNA(VLOOKUP($E$45&$F$45&$G$45,$AD$41:$AF$48,2,FALSE)),"",(VLOOKUP($E$45&$F$45&$G$45,$AD$41:$AF$48,2,FALSE))) ->  | B45: =IF(ISNA(VLOOKUP($E$45&$F$45&$G$45,$AD$41:$AF$48,3,FALSE)),"Wetlab #2 (AFT)",(VLOOKUP($E$45&$F$45&$G$45,$AD$41:$AF$48,3,FALSE)&" (AFT)")) -> Wetlab #2 (AFT) | C45: =Cal!$B$177 -> 1390 | D45: =Cal!$B$176 -> BB2FL | E45: =Cal!$B$179 -> Chlorophyll | F45: =Cal!$B$186 -> 470 | G45: =Cal!$B$193 -> 700 | AA45: None | AB45: None | AC45: 532 | AD45: =$AA$45&$AB$45&$AC$45 -> NoneNone532 | AE45: 4277480 | AF45: PUCK, SINGLE BACKSCATTER 532, WET LABS
A46: 4272424 | B46: SENSOR, CTD - SBE, TITANIUM | C46: ='Weight sheet'!$H$146 -> 0 | AA46: None | AB46: None | AC46: None | AD46: =$AA$46&$AB$46&$AC$46 -> NoneNoneNone | AE46: None | AF46: Wetlab not installed
A47: 4272326 | B47: PUMP, MINI, SUBMERSIBLE - 10,500M, TITANIUM (CTD Pump) | C47: ='Weight sheet'!$H$148 -> 0
A48: 4272347 | B48: SENSOR, OXYGEN, FREQUENCY OUTPUT - SBE 43F-1, TITANIUM HSG (Pumped) | C48: ='Weight sheet'!$H$151 -> 0
B49: Argos Tag | C49: ='Weight sheet'!$H$157 -> 90993
B50: Assy., PAR, BSI - QSP2000 | C50: ='Weight sheet'!$H$165 -> 0
A51: 4314372 | B51: Assy., Radiation Detector | C51: ='Weight sheet'!$H$170 -> 0
A52: 4314562 | B52: Assy, Nortek ADCP | C52: ='Weight sheet'!$H$179 -> 0
A53: 4321091 | B53: Assy, Imagenex ECHOSounder | C53: ='Weight sheet'!$H$186 -> 0
B54: Assy., RAFOS | C54: ='Weight sheet'!$H$194 -> 0
B55: Assy., New Sensor #1 | C55: ='Weight sheet'!$H$202 -> 0
B56: Assy., New Sensor #2 | C56: ='Weight sheet'!$H$210 -> 0
B62: Accessory & Spares Parts:
A63: Item | B63: Description | C63: Serial Number | D63: Comments
A64: 4193188 | B64: KIT, PRE-FLIGHT DIAGNOSTIC LAPTOP - SEAGLIDER | D64: Provided on an as ordered item
A65: 4195828 | B65: Kit, Spares, Seaglider | D65: Not Serialized, unless it has an antenna
A66: 4196238 | B66: Kit,Basestation,Seaglider | D66: Provided on an as ordered item
A67: 4199261 | B67: Computer,Laptop | D67: Provided on an as ordered item
A68: 4249520 | B68: KIT, STANDARD ANTENNA MAST ASSY, SEAGLIDER | D68: Provided on an as ordered item
A69: 4249882 | B69: KIT,CT SAIL W / BOARDS,SEAGLIDER | D69: Provided on an as ordered item

Sheet Log
A1: Date | B1: REV | C1: Change
A2: 2011-06-03 | B2: - | C2: Preliminary Release
A3: 2011-06-04 | B3: 1 | C3: Fixed Wetlab section (CHL A names links) in sg_calib_constants
A4: 2011-06-05 | B4: 2 | C4: Fixed errors in sg_calib_constants A91 & A112
A5: 2011-06-13 | B5: 3 | C5: Fixed error when Ballast is to small and zero'd out leaving tape and Straps installed that should have been removed.
A6: 2011-06-14 | B6: 4 | C6: Added default weights for Argos tag
A7: 2011-06-19 | B7: 5 | C7: Added code to update Mass, Density, & VBD on the Ballast tab to calculate Vol Max after tank regression.
A8: 2011-06-23 | B8: 6 | C8: Fixed Spelling error
A9: 2011-06-24 | B9: 7 | C9: Added Subassembly Serial number logging on the Weight sheet
A10: 2011-06-27 | B10: 8 | C10: Added recording of Ocean measured Thrust on Ballast Tab
A11: 2011-06-28 | B11: 9 | C11: Added "Ballasting Instructions" tab
A12: 2011-07-06 | B12: 10 | C12: Added PAR: part numbers, description, LCG, volume, and VCG&B. Converted PAR_2 to Radiation Sensor. Updated all numbers to Green or Red.
A13: 2011-07-07 | B13: 11 | C13: Fixed summed weight calculation on "Weight sheet" for Fairings. Added code to make sure all Pads, Straps, and Tape are zeroed out before starting Ballast solution. Corrected rh0 to be displayed as kg/m3 for Matlab script and added unit of measure for rh0, Mass, and Vol Max.
A14: 2011-07-08 | B14: 12 | C14: Fixed rh0 & Mass values on CMDFILE tab that got changed due to change on sg_calib_constants. Fixed a bug in the Macro if Lead weight is small.
A15: 2011-07-11 | B15: 13 | C15: Adjusted Max foam before spreading it to 3 or 4 quadrants.
A16: 2011-07-12 | B16: 14 | C16: Fixed formulas for none numeric serial numbers for all sensors in the sg_calib_constants tab
A17: 2011-07-13 | B17: 15 | C17: Added Macro button on Trim tab Cell AA2 for Pre-Flight data error checking.
A18: 2011-07-14 | B18: 16 | C18: change Mass back to kg on sg_calib_constants Tab
A19: 2011-07-22 | B19: 17 | C19: Changed Sensor #1 & #2 names to match Sensor #
A20: 2011-07-26 | B20: 18 | C20: Added check for Density mismatch between "Trim" tab and "Ballast" Tab before finalizing Trimsheet for customer. Added check to update New Environment comments on Ballast Tab
A21: 2011-07-27 | B21: 19 | C21: Added saving all ballast information after tank regression on the "Cal" Tab.
A22: 2011-07-28 | B22: 20 | C22: - Added "Nose weight to detachable nose screws" to both "Weight sheet" & "Trim" Tab. Updated Macro for new Ogive Plate and screw cells due to the line being added. - Corrected Volume calculation for detachable nose for the correct material. - Corrected Volume calculation for Ogive Top and Bottom Hatch covers. - Fixed "Weight sheet" Tab "Error check" button for line shift in the Forward Ogive section.
A23: 2011-08-01 | B23: 21 | C23: Fixed Volume and LCG for Ogive fairings. Set Density on Ballast Tab B29 equal to Rho after running Ocean Calc macro Fixed Customer Calc when less Lead is needed.
A24: 2011-08-03 | B24: 22 | C24: -Added 2 more sensors. -Fixed Nose plate weights for Ogive Fairing to sum up on "Ballast" Tab.
A25: 2011-08-09 | B25: 23 | C25: Fixed macro when setting default Ogive nose plate & screws. It was off by one line and not setting small screw.
A26: 2011-08-10 | B26: 24 | C26: -Added section for Foam Blocks on Weight Sheet & Trim Sheet -Added RAFOS Sensor
A27: 2011-08-17 | B27: 25 | C27: Added LCG and VCG&B info for Foam Blocks
A28: 2011-08-19 | B28: 26 | C28: - Fixed Weight sheet Ballast sub total formula to correct Absolute value for negative numbers. - Added Graphic for ballast placement on the Lead Worksheet.
A29: 2011-09-08 | B29: 27 | C29: - Fixed spelling errors and made all serial number labels to be "Serial #" -fixed Macro that removed pad and left straps
A30: 2011-09-14 | B30: 28 | C30: Fix Botton text and Button size to lock
A31: 2011-09-20 | B31: 29 | C31: Fixed Oil Volume calculation on Weight Sheet from Fixed number to value on Material Tab.
A32: 2011-09-22 | B32: 30 | C32: - Fixed Argos Scale weight link on the Trim Tab. - Updated Radiation parts names and paramenters
A33: 2011-10-03 | B33: 31 | C33: - Updated Comments on Ballast Tab in New Environment Ballasting section. - Added check for Material tab Comment in the Preflight error check Macro.
A34: 2011-10-07 | B34: 32 | C34: Updated Lead Placement wheel to correct Bottom and Port Numbering
A35: 2011-10-11 | B35: 33 | C35: Updated "CHL A" to "Chlorophyll" on the Cal Sheet Wetlab pull down menu.
A36: 2011-10-17 | B36: 34 | C36: - Cleaned up Customer Ballast code - Enhanced VCB Separation code - update small lead solution - Linked Lead tape from Trim sheet to Weight Sheet & Lead worksheet - Updated the Ballasting Instructions
A37: 2011-11-30 | B37: 35 | C37: Added Serial Number for Modem Cable Only applies to XG or XM
A38: 2011-12-09 | B38: 36 | C38: Added pull down for Modem Type and model Number
